Body Name,Body,Service Area Catergorisation,Service Division Catergorisation,Responsible Unit,Expenses Type,Detailed Expenses Type,Expenses Code,Date,Transaction Number,Amount,Capital / Revenue,Supplier Name,Supplier ID
North East Lincolnshire Council,http://statistics.data.gov.uk/id/local-authority/00FC,Cap Dep Chief Exec,Ad Environment,Fleet Replacement Programme,Cap Veh Plt Eqp-Purchase,Cap Veh Plt Eqp-Purchase,YB101,02/07/15,349934,128742.22,CAPITAL,ECON ENGINEERING LTD,103943
North East Lincolnshire Council,http://statistics.data.gov.uk/id/local-authority/00FC,Chief Executive,Director Of Finance,Backlog Maintenance,Cap Land/Build-Build Enh Wrk,Cap Land/Build-Build Enh Wrk,YA102,20/07/15,362072,7156,CAPITAL,COFELY WORKPLACE LIMITED,123983
North East Lincolnshire Council,http://statistics.data.gov.uk/id/local-authority/00FC,Chief Executive,Director Of Finance,Backlog Maintenance,Cap Land/Build-Build Enh Wrk,Cap Land/Build-Build Enh Wrk,YA102,16/07/15,361600,676.45,CAPITAL,BELL WASTE CONTROL,101433
North East Lincolnshire Council,http://statistics.data.gov.uk/id/local-authority/00FC,Chief Executive,Director Of Finance,Backlog Maintenance,Cap Land/Build-Build Enh Wrk,Cap Land/Build-Build Enh Wrk,YA102,20/07/15,362071,975.55,CAPITAL,COFELY WORKPLACE LIMITED,123983
North East Lincolnshire Council,http://statistics.data.gov.uk/id/local-authority/00FC,Chief Executive,Director Of Finance,Backlog Maintenance,Cap Land/Build-Build Enh Wrk,Cap Land/Build-Build Enh Wrk,YA102,16/07/15,361130,4685,CAPITAL,ETON-LINCS LIMITED,101510
North East Lincolnshire Council,http://statistics.data.gov.uk/id/local-authority/00FC,Chief Executive,Director Of Finance,Backlog Maintenance,Cap Land/Build-Build Enh Wrk,Cap Land/Build-Build Enh Wrk,YA102,21/07/15,362486,3175,CAPITAL,JET TECH LIMITED,101278
North East Lincolnshire Council,http://statistics.data.gov.uk/id/local-authority/00FC,Chief Executive,Director Of Finance,Backlog Maintenance,Cap Land/Build-Build Enh Wrk,Cap Land/Build-Build Enh Wrk,YA102,16/07/15,361106,3455.21,CAPITAL,KES BUILDING MAINTENANCE LIMITED,100786
North East Lincolnshire Council,http://statistics.data.gov.uk/id/local-authority/00FC,Chief Executive,Director Of Finance,Backlog Maintenance,Cap Land/Build-Build Enh Wrk,Cap Land/Build-Build Enh Wrk,YA102,14/07/15,360672,325,CAPITAL,OXLEY SHUTTERS LIMITED,100931
North East Lincolnshire Council,http://statistics.data.gov.uk/id/local-authority/00FC,Chief Executive,Director Of Finance,Backlog Maintenance,Cap Land/Build-Build Enh Wrk,Cap Land/Build-Build Enh Wrk,YA102,13/07/15,360663,330,CAPITAL,ETON-LINCS LIMITED,101510
North East Lincolnshire Council,http://statistics.data.gov.uk/id/local-authority/00FC,Chief Executive,Director Of Finance,Backlog Maintenance,Cap Land/Build-Build Enh Wrk,Cap Land/Build-Build Enh Wrk,YA102,23/07/15,362692,1531.01,CAPITAL,EAST KIRKBY ENGINEERING CO LTD,122478
North East Lincolnshire Council,http://statistics.data.gov.uk/id/local-authority/00FC,Chief Executive,Director Of Finance,Backlog Maintenance,Cap Land/Build-Build Enh Wrk,Cap Land/Build-Build Enh Wrk,YA102,30/07/15,364018,3762.02,CAPITAL,COFELY WORKPLACE LIMITED,123983
North East Lincolnshire Council,http://statistics.data.gov.uk/id/local-authority/00FC,Chief Executive,Director Of Finance,Saltings Allotments Developmt,Cap Land/Build-Build Enh Wrk,Cap Land/Build-Build Enh Wrk,YA102,06/07/15,359824,37950,CAPITAL,CONSTRUCTION SERVICES DIRECT LTD,124419
North East Lincolnshire Council,http://statistics.data.gov.uk/id/local-authority/00FC,Chief Executive,Director Of Finance,Saltings Allotments Developmt,Cap Land/Build-Build Enh Wrk,Cap Land/Build-Build Enh Wrk,YA102,16/07/15,361840,4000,CAPITAL,E S RUDKIN LTD,100632
North East Lincolnshire Council,http://statistics.data.gov.uk/id/local-authority/00FC,Chief Executive,Director Of Finance,Property Rationalisation Prog,Cap Land/Build-Build Enh Wrk,Cap Land/Build-Build Enh Wrk,YA102,16/07/15,361108,1168.2,CAPITAL,KES BUILDING MAINTENANCE LIMITED,100786
North East Lincolnshire Council,http://statistics.data.gov.uk/id/local-authority/00FC,Chief Executive,Director Of Finance,Property Rationalisation Prog,Cap Land/Build-Build Enh Wrk,Cap Land/Build-Build Enh Wrk,YA102,20/07/15,362075,15000,CAPITAL,COFELY WORKPLACE LIMITED,123983
North East Lincolnshire Council,http://statistics.data.gov.uk/id/local-authority/00FC,Chief Executive,Director Of Finance,Property Rationalisation Prog,Cap Infrastr-Purchase,Cap Infrastr-Purchase,YC101,06/07/15,359604,3820.3,CAPITAL,COMPUTACENTER UK LTD,101303
North East Lincolnshire Council,http://statistics.data.gov.uk/id/local-authority/00FC,Chief Executive,Director Of Finance,Property Rationalisation Prog,Cap Infrastr-Purchase,Cap Infrastr-Purchase,YC101,02/07/15,359121,1622.6,CAPITAL,INSIGHT DIRECT (UK) LTD,101011
North East Lincolnshire Council,http://statistics.data.gov.uk/id/local-authority/00FC,Chief Executive,Director Of Finance,Property Rationalisation Prog,Cap Infrastr-Purchase,Cap Infrastr-Purchase,YC101,02/07/15,359159,12469.8,CAPITAL,COMPUTACENTER UK LTD,101303
North East Lincolnshire Council,http://statistics.data.gov.uk/id/local-authority/00FC,Chief Executive,Director Of Finance,Property Rationalisation Prog,Cap Infrastr-Purchase,Cap Infrastr-Purchase,YC101,31/07/15,364213,9548.91,CAPITAL,SPECIALIST COMPUTER CENTRES PLC,110715
North East Lincolnshire Council,http://statistics.data.gov.uk/id/local-authority/00FC,Chief Executive,Director Of Finance,Property Rationalisation Prog,Cap Infrastr-Purchase,Cap Infrastr-Purchase,YC101,02/07/15,359157,2993.37,CAPITAL,COMPUTACENTER UK LTD,101303
North East Lincolnshire Council,http://statistics.data.gov.uk/id/local-authority/00FC,Chief Executive,Director Of Finance,Property Rationalisation Prog,Cap Infrastr-Purchase,Cap Infrastr-Purchase,YC101,09/07/15,360392,582,CAPITAL,SETON LIMITED,100585
North East Lincolnshire Council,http://statistics.data.gov.uk/id/local-authority/00FC,Chief Executive,Ad Joint Delivery,Education Management System,Cap Intangible Assets,Cap Intangible Assets,YH101,06/07/15,356373,502.31,CAPITAL,DS CALLARDS LIMITED,129977
North East Lincolnshire Council,http://statistics.data.gov.uk/id/local-authority/00FC,Chief Executive,Ad Joint Delivery,New Ict Framework,Cap Intangible Assets,Cap Intangible Assets,YH101,21/07/15,362564,2998.5,CAPITAL,CAPITA BUSINESS SERVICES LTD,102314
North East Lincolnshire Council,http://statistics.data.gov.uk/id/local-authority/00FC,Chief Executive,Ad Joint Delivery,New Ict Framework,Cap Intangible Assets,Cap Intangible Assets,YH101,13/07/15,359771,850,CAPITAL,VISIONWARE LTD,103028
North East Lincolnshire Council,http://statistics.data.gov.uk/id/local-authority/00FC,Chief Executive,Ad Joint Delivery,New Leisure Centre At Grimsby,Cap Land/Build-Build Enh Wrk,Cap Land/Build-Build Enh Wrk,YA102,09/07/15,360586,620096.56,CAPITAL,INTERSERVE CONSTRUCTION,128140
North East Lincolnshire Council,http://statistics.data.gov.uk/id/local-authority/00FC,Chief Executive,Ad Joint Delivery,Replacement/Refurbishment  It,Cap Veh Plt Eqp-Purchase,Cap Veh Plt Eqp-Purchase,YB101,07/07/15,359111,485,CAPITAL,ESP SYSTEX LTD,102062
North East Lincolnshire Council,http://statistics.data.gov.uk/id/local-authority/00FC,Chief Executive,Ad Joint Delivery,Replacement/Refurbishment  It,Cap Intangible Assets,Cap Intangible Assets,YH101,06/07/15,353304,258.86,CAPITAL,TRUSTMARQUE SOLUTIONS LTD,101275
North East Lincolnshire Council,http://statistics.data.gov.uk/id/local-authority/00FC,Chief Executive,Ad Joint Delivery,Immingham Pool,Cap Land/Build-Build Enh Wrk,Cap Land/Build-Build Enh Wrk,YA102,14/07/15,361386,1737.6,CAPITAL,THE GELDER GROUP,103601
North East Lincolnshire Council,http://statistics.data.gov.uk/id/local-authority/00FC,Chief Executive,Ad Joint Delivery,Immingham Pool,Cap Land/Build-Build Enh Wrk,Cap Land/Build-Build Enh Wrk,YA102,14/07/15,361385,2525,CAPITAL,THE GELDER GROUP,103601
North East Lincolnshire Council,http://statistics.data.gov.uk/id/local-authority/00FC,Chief Executive,Ad Joint Delivery,Immingham Pool,Cap Land/Build-Build Enh Wrk,Cap Land/Build-Build Enh Wrk,YA102,16/07/15,361115,286843.42,CAPITAL,F PARKINSON LTD,123944
North East Lincolnshire Council,http://statistics.data.gov.uk/id/local-authority/00FC,Chief Executive,Director Of Economy & Growth,Hps-Disabled Fac. Grants,Cap Grants To O/Side Sources,Cap Grants To O/Side Sources,YJ101,15/07/15,360559,5155,CAPITAL,OBAM LIFT SERVICES LTD,112666
North East Lincolnshire Council,http://statistics.data.gov.uk/id/local-authority/00FC,Chief Executive,Director Of Economy & Growth,Hps-Disabled Fac. Grants,Cap Grants To O/Side Sources,Cap Grants To O/Side Sources,YJ101,30/07/15,363999,-944,CAPITAL,GAINSBOROUGH SPECIALIST BATHING,127946
North East Lincolnshire Council,http://statistics.data.gov.uk/id/local-authority/00FC,Chief Executive,Director Of Economy & Growth,Hps-Disabled Fac. Grants,Cap Grants To O/Side Sources,Cap Grants To O/Side Sources,YJ101,14/07/15,361336,5070,CAPITAL,OBAM LIFT SERVICES LTD,112666
North East Lincolnshire Council,http://statistics.data.gov.uk/id/local-authority/00FC,Chief Executive,Director Of Economy & Growth,Hps-Disabled Fac. Grants,Cap Grants To O/Side Sources,Cap Grants To O/Side Sources,YJ101,07/07/15,359291,6729.45,CAPITAL,MEARS LTD,102433
North East Lincolnshire Council,http://statistics.data.gov.uk/id/local-authority/00FC,Chief Executive,Director Of Economy & Growth,Hps-Disabled Fac. Grants,Cap Grants To O/Side Sources,Cap Grants To O/Side Sources,YJ101,14/07/15,360623,1105,CAPITAL,CHAMELEON CARE SOLUTIONS UK LTD,129505
North East Lincolnshire Council,http://statistics.data.gov.uk/id/local-authority/00FC,Chief Executive,Director Of Economy & Growth,Hps-Disabled Fac. Grants,Cap Grants To O/Side Sources,Cap Grants To O/Side Sources,YJ101,15/07/15,360560,5785,CAPITAL,ABACUS HEALTHCARE,104334
North East Lincolnshire Council,http://statistics.data.gov.uk/id/local-authority/00FC,Chief Executive,Director Of Economy & Growth,Hps-Disabled Fac. Grants,Cap Grants To O/Side Sources,Cap Grants To O/Side Sources,YJ101,15/07/15,361002,5734.25,CAPITAL,VIC HANSEN BUILDING & JOINERY LTD,103981
North East Lincolnshire Council,http://statistics.data.gov.uk/id/local-authority/00FC,Chief Executive,Director Of Economy & Growth,Hps-Disabled Fac. Grants,Cap Grants To O/Side Sources,Cap Grants To O/Side Sources,YJ101,31/07/15,363710,4073.07,CAPITAL,TOPCON CONSTRUCTION LTD,108462
North East Lincolnshire Council,http://statistics.data.gov.uk/id/local-authority/00FC,Chief Executive,Director Of Economy & Growth,Hps-Disabled Fac. Grants,Cap Grants To O/Side Sources,Cap Grants To O/Side Sources,YJ101,02/07/15,359422,6537,CAPITAL,MARK BENNETT,101838
North East Lincolnshire Council,http://statistics.data.gov.uk/id/local-authority/00FC,Chief Executive,Director Of Economy & Growth,Hps-Disabled Fac. Grants,Cap Grants To O/Side Sources,Cap Grants To O/Side Sources,YJ101,07/07/15,359400,4914.49,CAPITAL,TOPCON CONSTRUCTION LTD,108462
North East Lincolnshire Council,http://statistics.data.gov.uk/id/local-authority/00FC,Chief Executive,Director Of Economy & Growth,Hps-Disabled Fac. Grants,Cap Grants To O/Side Sources,Cap Grants To O/Side Sources,YJ101,02/07/15,359288,5769.78,CAPITAL,RSL STEEPER,101616
North East Lincolnshire Council,http://statistics.data.gov.uk/id/local-authority/00FC,Chief Executive,Director Of Economy & Growth,Hps-Disabled Fac. Grants,Cap Grants To O/Side Sources,Cap Grants To O/Side Sources,YJ101,07/07/15,359305,3810,CAPITAL,VIC HANSEN BUILDING & JOINERY LTD,103981
North East Lincolnshire Council,http://statistics.data.gov.uk/id/local-authority/00FC,Chief Executive,Director Of Economy & Growth,Hps-Disabled Fac. Grants,Cap Grants To O/Side Sources,Cap Grants To O/Side Sources,YJ101,14/07/15,361335,653,CAPITAL,P G INGOLDBY & SONS LTD,100591
North East Lincolnshire Council,http://statistics.data.gov.uk/id/local-authority/00FC,Chief Executive,Director Of Economy & Growth,Hps-Disabled Fac. Grants,Cap Grants To O/Side Sources,Cap Grants To O/Side Sources,YJ101,17/07/15,361434,9863,CAPITAL,P G INGOLDBY & SONS LTD,100591
North East Lincolnshire Council,http://statistics.data.gov.uk/id/local-authority/00FC,Chief Executive,Director Of Economy & Growth,Hps-Disabled Fac. Grants,Cap Grants To O/Side Sources,Cap Grants To O/Side Sources,YJ101,30/07/15,363711,851,CAPITAL,P G INGOLDBY & SONS LTD,100591
North East Lincolnshire Council,http://statistics.data.gov.uk/id/local-authority/00FC,Chief Executive,Director Of Economy & Growth,Hps-Disabled Fac. Grants,Cap Grants To O/Side Sources,Cap Grants To O/Side Sources,YJ101,02/07/15,359301,799,CAPITAL,DOLPHIN MOBILITY EAST MIDLANDS LTD,101317
North East Lincolnshire Council,http://statistics.data.gov.uk/id/local-authority/00FC,Chief Executive,Director Of Economy & Growth,Hps-Disabled Fac. Grants,Cap Grants To O/Side Sources,Cap Grants To O/Side Sources,YJ101,15/07/15,361086,4135,CAPITAL,TOTAL HYGIENE LTD,100849
North East Lincolnshire Council,http://statistics.data.gov.uk/id/local-authority/00FC,Chief Executive,Director Of Economy & Growth,Hps-Disabled Fac. Grants,Cap Grants To O/Side Sources,Cap Grants To O/Side Sources,YJ101,02/07/15,359302,5729,CAPITAL,VIC HANSEN BUILDING & JOINERY LTD,103981
North East Lincolnshire Council,http://statistics.data.gov.uk/id/local-authority/00FC,Chief Executive,Director Of Economy & Growth,Hps-Disabled Fac. Grants,Cap Grants To O/Side Sources,Cap Grants To O/Side Sources,YJ101,02/07/15,359303,420,CAPITAL,STEVE BENNETT ARCHITECTURAL DESIGN,103819
North East Lincolnshire Council,http://statistics.data.gov.uk/id/local-authority/00FC,Chief Executive,Director Of Economy & Growth,Hps-Disabled Fac. Grants,Cap Grants To O/Side Sources,Cap Grants To O/Side Sources,YJ101,02/07/15,359292,5735.72,CAPITAL,F R TOWNSEND & CO LTD,104217
North East Lincolnshire Council,http://statistics.data.gov.uk/id/local-authority/00FC,Chief Executive,Director Of Economy & Growth,Hps-Disabled Fac. Grants,Cap Grants To O/Side Sources,Cap Grants To O/Side Sources,YJ101,30/07/15,363822,7532.25,CAPITAL,F R TOWNSEND & CO LTD,104217
North East Lincolnshire Council,http://statistics.data.gov.uk/id/local-authority/00FC,Chief Executive,Director Of Economy & Growth,Hps-Disabled Fac. Grants,Cap Grants To O/Side Sources,Cap Grants To O/Side Sources,YJ101,31/07/15,363821,20594.63,CAPITAL,P G INGOLDBY & SONS LTD,100591
North East Lincolnshire Council,http://statistics.data.gov.uk/id/local-authority/00FC,Chief Executive,Director Of Economy & Growth,Hps-Disabled Fac. Grants,Cap Grants To O/Side Sources,Cap Grants To O/Side Sources,YJ101,30/07/15,363994,15086.5,CAPITAL,P G INGOLDBY & SONS LTD,100591
North East Lincolnshire Council,http://statistics.data.gov.uk/id/local-authority/00FC,Chief Executive,Director Of Economy & Growth,Hps-Disabled Fac. Grants,Cap Grants To O/Side Sources,Cap Grants To O/Side Sources,YJ101,31/07/15,363820,7028.83,CAPITAL,F R TOWNSEND & CO LTD,104217
North East Lincolnshire Council,http://statistics.data.gov.uk/id/local-authority/00FC,Chief Executive,Director Of Economy & Growth,Hps-Disabled Fac. Grants,Cap Grants To O/Side Sources,Cap Grants To O/Side Sources,YJ101,02/07/15,359304,3949,CAPITAL,OBAM LIFT SERVICES LTD,112666
North East Lincolnshire Council,http://statistics.data.gov.uk/id/local-authority/00FC,Chief Executive,Director Of Economy & Growth,Hps-Disabled Fac. Grants,Cap Grants To O/Side Sources,Cap Grants To O/Side Sources,YJ101,02/07/15,359378,2635,CAPITAL,OBAM LIFT SERVICES LTD,112666
North East Lincolnshire Council,http://statistics.data.gov.uk/id/local-authority/00FC,Chief Executive,Director Of Economy & Growth,Hps-Disabled Fac. Grants,Cap Grants To O/Side Sources,Cap Grants To O/Side Sources,YJ101,09/07/15,360522,6034,CAPITAL,MARK BENNETT,101838
North East Lincolnshire Council,http://statistics.data.gov.uk/id/local-authority/00FC,Chief Executive,Director Of Economy & Growth,Hps-Disabled Fac. Grants,Cap Grants To O/Side Sources,Cap Grants To O/Side Sources,YJ101,07/07/15,359396,2232,CAPITAL,TOTAL HYGIENE LTD,100849
North East Lincolnshire Council,http://statistics.data.gov.uk/id/local-authority/00FC,Chief Executive,Director Of Economy & Growth,Local Transport Plan Schemes,Cap Land/Build-Build Enh Wrk,Cap Land/Build-Build Enh Wrk,YA102,17/07/15,361593,10400,CAPITAL,ESS SYSTEMS LTD,116642
North East Lincolnshire Council,http://statistics.data.gov.uk/id/local-authority/00FC,Chief Executive,Director Of Economy & Growth,Local Transport Plan Schemes,Cap Land/Build-Build Enh Wrk,Cap Land/Build-Build Enh Wrk,YA102,15/07/15,361592,10000,CAPITAL,ESS SYSTEMS LTD,116642
North East Lincolnshire Council,http://statistics.data.gov.uk/id/local-authority/00FC,Chief Executive,Director Of Economy & Growth,Local Transport Plan Schemes,Cap Land/Build-Build Enh Wrk,Cap Land/Build-Build Enh Wrk,YA102,09/07/15,359802,371.02,CAPITAL,NORTHERN POWERGRID (YORKSHIRE) PLC,108328
North East Lincolnshire Council,http://statistics.data.gov.uk/id/local-authority/00FC,Chief Executive,Director Of Economy & Growth,Local Transport Plan Schemes,Cap Infrastr-Purchase,Cap Infrastr-Purchase,YC101,17/07/15,361023,282.51,CAPITAL,BUYER DIRECT LTD,130858
North East Lincolnshire Council,http://statistics.data.gov.uk/id/local-authority/00FC,Chief Executive,Director Of Economy & Growth,Local Transport Plan Schemes,Cap Infrastr-Purchase,Cap Infrastr-Purchase,YC101,06/07/15,359763,2100,CAPITAL,LOCK IT SAFE LTD,101779
North East Lincolnshire Council,http://statistics.data.gov.uk/id/local-authority/00FC,Chief Executive,Director Of Economy & Growth,Local Transport Plan Schemes,Cap Infrastr-Prof Fees,Cap Infrastr-Prof Fees,YC103,02/07/15,352027,2480,CAPITAL,TRICS CONSORTIUM LTD,130252
North East Lincolnshire Council,http://statistics.data.gov.uk/id/local-authority/00FC,Chief Executive,Director Of Economy & Growth,Local Transport Plan Schemes,Cap Land/Build-Build Enh Wrk,Cap Land/Build-Build Enh Wrk,YA102,21/07/15,362566,895,CAPITAL,IMPACT MARKETING & PUBLICITY LTD,105827
North East Lincolnshire Council,http://statistics.data.gov.uk/id/local-authority/00FC,Chief Executive,Director Of Economy & Growth,Local Transport Plan Schemes,Cap Infrastr-Build Enh Wrk,Cap Infrastr-Build Enh Wrk,YC102,17/07/15,361564,4120,CAPITAL,ONEWAY TM LIMITED,128602
North East Lincolnshire Council,http://statistics.data.gov.uk/id/local-authority/00FC,Chief Executive,Director Of Economy & Growth,Local Transport Plan Schemes,Cap Infrastr-Build Enh Wrk,Cap Infrastr-Build Enh Wrk,YC102,30/07/15,351921,1638.75,CAPITAL,KIELY BROS LTD,106644
North East Lincolnshire Council,http://statistics.data.gov.uk/id/local-authority/00FC,Chief Executive,Director Of Economy & Growth,Local Transport Plan Schemes,Cap Infrastr-Build Enh Wrk,Cap Infrastr-Build Enh Wrk,YC102,30/07/15,360526,59098.55,CAPITAL,KIELY BROS LTD,106644
North East Lincolnshire Council,http://statistics.data.gov.uk/id/local-authority/00FC,Chief Executive,Director Of Economy & Growth,Local Transport Plan Schemes,Cap Infrastr-Build Enh Wrk,Cap Infrastr-Build Enh Wrk,YC102,15/07/15,360002,259972.67,CAPITAL,PBS CONSTRUCTION (NORTH EAST) LTD,127459
North East Lincolnshire Council,http://statistics.data.gov.uk/id/local-authority/00FC,Chief Executive,Director Of Economy & Growth,Local Transport Plan Schemes,Cap Infrastr-Build Enh Wrk,Cap Infrastr-Build Enh Wrk,YC102,06/07/15,352299,6207.74,CAPITAL,P H CONSTRUCTION SERVICES LTD,102107
North East Lincolnshire Council,http://statistics.data.gov.uk/id/local-authority/00FC,Chief Executive,Director Of Economy & Growth,Local Transport Plan Schemes,Cap Infrastr-Build Enh Wrk,Cap Infrastr-Build Enh Wrk,YC102,30/07/15,351921,161061.04,CAPITAL,KIELY BROS LTD,106644
North East Lincolnshire Council,http://statistics.data.gov.uk/id/local-authority/00FC,Chief Executive,Director Of Economy & Growth,Local Transport Plan Schemes,Cap Infrastr-Build Enh Wrk,Cap Infrastr-Build Enh Wrk,YC102,30/07/15,360526,342612.2,CAPITAL,KIELY BROS LTD,106644
North East Lincolnshire Council,http://statistics.data.gov.uk/id/local-authority/00FC,Chief Executive,Director Of Economy & Growth,Local Transport Plan Schemes,Cap Land/Build-Build Enh Wrk,Cap Land/Build-Build Enh Wrk,YA102,09/07/15,359801,536.9,CAPITAL,NORTHERN POWERGRID (YORKSHIRE) PLC,108328
North East Lincolnshire Council,http://statistics.data.gov.uk/id/local-authority/00FC,Chief Executive,Director Of Economy & Growth,Local Transport Plan Schemes,Cap Land/Build-Build Enh Wrk,Cap Land/Build-Build Enh Wrk,YA102,15/07/15,361675,336,CAPITAL,PELL FRISCHMANN CONSULTANTS,100880
North East Lincolnshire Council,http://statistics.data.gov.uk/id/local-authority/00FC,Chief Executive,Director Of Economy & Growth,Local Transport Plan Schemes,Cap Land/Build-Build Enh Wrk,Cap Land/Build-Build Enh Wrk,YA102,15/07/15,361676,1044.9,CAPITAL,PELL FRISCHMANN CONSULTANTS,100880
North East Lincolnshire Council,http://statistics.data.gov.uk/id/local-authority/00FC,Chief Executive,Director Of Economy & Growth,Freeman Street Regeneration,Cap Invest Prop-Build Enh Wrk,Cap Invest Prop-Build Enh Wrk,YE102,15/07/15,360557,7500,CAPITAL,REDACTED PERSONAL INFORMATION,REDACTED PERSONAL INFORMATION
North East Lincolnshire Council,http://statistics.data.gov.uk/id/local-authority/00FC,Chief Executive,Director Of Economy & Growth,Freeman Street Regeneration,Cap Invest Prop-Build Enh Wrk,Cap Invest Prop-Build Enh Wrk,YE102,02/07/15,359401,721.3,CAPITAL,REDACTED PERSONAL INFORMATION,REDACTED PERSONAL INFORMATION
North East Lincolnshire Council,http://statistics.data.gov.uk/id/local-authority/00FC,Chief Executive,Director Of Economy & Growth,Freeman Street Regeneration,Cap Invest Prop-Build Enh Wrk,Cap Invest Prop-Build Enh Wrk,YE102,02/07/15,359419,7500,CAPITAL,REDACTED PERSONAL INFORMATION,REDACTED PERSONAL INFORMATION
North East Lincolnshire Council,http://statistics.data.gov.uk/id/local-authority/00FC,Chief Executive,Director Of Economy & Growth,Freeman Street Regeneration,Cap Invest Prop-Build Enh Wrk,Cap Invest Prop-Build Enh Wrk,YE102,07/07/15,359398,7500,CAPITAL,REDACTED PERSONAL INFORMATION,REDACTED PERSONAL INFORMATION
North East Lincolnshire Council,http://statistics.data.gov.uk/id/local-authority/00FC,Chief Executive,Director Of Economy & Growth,Freeman Street Regeneration,Cap Invest Prop-Build Enh Wrk,Cap Invest Prop-Build Enh Wrk,YE102,02/07/15,359377,6671.25,CAPITAL,REDACTED PERSONAL INFORMATION,REDACTED PERSONAL INFORMATION
North East Lincolnshire Council,http://statistics.data.gov.uk/id/local-authority/00FC,Chief Executive,Director Of Economy & Growth,Housing Assist Grants And Loan,Cap Grants To O/Side Sources,Cap Grants To O/Side Sources,YJ101,13/07/15,360591,4100,CAPITAL,DEAN WILLETT & SONS,101982
North East Lincolnshire Council,http://statistics.data.gov.uk/id/local-authority/00FC,Chief Executive,Director Of Economy & Growth,Local Sustainable Trans Fund,Cap Infrastr-Build Enh Wrk,Cap Infrastr-Build Enh Wrk,YC102,21/07/15,361560,5100,CAPITAL,SOVEREIGN SIGNS LTD,125963
North East Lincolnshire Council,http://statistics.data.gov.uk/id/local-authority/00FC,Chief Executive,Director Of Economy & Growth,Cartergate Development,Cap Land/Build-Build Enh Wrk,Cap Land/Build-Build Enh Wrk,YA102,07/07/15,359928,3180,CAPITAL,GBH UTILITIES LTD,128799
North East Lincolnshire Council,http://statistics.data.gov.uk/id/local-authority/00FC,Chief Executive,Director Of Economy & Growth,Cartergate Development,Cap Infrastr-Prof Fees,Cap Infrastr-Prof Fees,YC103,14/07/15,359497,950,CAPITAL,LDA DESIGN,129056
North East Lincolnshire Council,http://statistics.data.gov.uk/id/local-authority/00FC,Chief Executive,Director Of Economy & Growth,Cartergate Development,Cap Infrastr-Prof Fees,Cap Infrastr-Prof Fees,YC103,23/07/15,362176,50000,CAPITAL,COFELY WORKPLACE LIMITED,123983
North East Lincolnshire Council,http://statistics.data.gov.uk/id/local-authority/00FC,Chief Executive,Director Of Economy & Growth,Pinchpoint Scheme,Cap Land/Build-Build Enh Wrk,Cap Land/Build-Build Enh Wrk,YA102,31/07/15,364012,94518.13,CAPITAL,VOLKERLASER LTD,126094
North East Lincolnshire Council,http://statistics.data.gov.uk/id/local-authority/00FC,Chief Executive,Director Of Economy & Growth,Pinchpoint Scheme,Cap Land/Build-Build Enh Wrk,Cap Land/Build-Build Enh Wrk,YA102,23/07/15,361681,2978.31,CAPITAL,NETWORK RAIL,103407
North East Lincolnshire Council,http://statistics.data.gov.uk/id/local-authority/00FC,Chief Executive,Director Of Economy & Growth,Pinchpoint Scheme,Cap Land/Build-Build Enh Wrk,Cap Land/Build-Build Enh Wrk,YA102,15/07/15,360319,3350,CAPITAL,LDA DESIGN,129056
North East Lincolnshire Council,http://statistics.data.gov.uk/id/local-authority/00FC,Chief Executive,Director Of Economy & Growth,Pinchpoint Scheme,Cap Land/Build-Prof Fees,Cap Land/Build-Prof Fees,YA103,17/07/15,361084,31890.58,CAPITAL,PBS CONSTRUCTION (NORTH EAST) LTD,127459
North East Lincolnshire Council,http://statistics.data.gov.uk/id/local-authority/00FC,Chief Executive,Director Of Economy & Growth,Pinchpoint Scheme,Cap Infrastr-Build Enh Wrk,Cap Infrastr-Build Enh Wrk,YC102,15/07/15,360625,975.5,CAPITAL,P H CONSTRUCTION SERVICES LTD,102107
North East Lincolnshire Council,http://statistics.data.gov.uk/id/local-authority/00FC,Chief Executive,Director Of Economy & Growth,Pinchpoint Scheme,Cap Infrastr-Build Enh Wrk,Cap Infrastr-Build Enh Wrk,YC102,02/07/15,359174,1650,CAPITAL,CAMPBELL DESIGN AND ENGINEERING LTD,128191
North East Lincolnshire Council,http://statistics.data.gov.uk/id/local-authority/00FC,Chief Executive,Director Of Economy & Growth,Victoria Mills,Cap Land/Build-Build Enh Wrk,Cap Land/Build-Build Enh Wrk,YA102,23/07/15,362454,55018,CAPITAL,LINDUM GROUP LIMITED,101185
North East Lincolnshire Council,http://statistics.data.gov.uk/id/local-authority/00FC,Chief Executive,Director Of Finance,Accountancy,Government Departments,Third Party Prov - Govt Depts,PE101,27/07/15,362686,29826.38,REVENUE,KPMG FEES ACCOUNT,101071
North East Lincolnshire Council,http://statistics.data.gov.uk/id/local-authority/00FC,Chief Executive,Director Of Finance,Accountancy,Government Departments,Third Party Prov - Govt Depts,PE101,27/07/15,362686,3179,REVENUE,KPMG FEES ACCOUNT,101071
North East Lincolnshire Council,http://statistics.data.gov.uk/id/local-authority/00FC,Chief Executive,Director Of Finance,Chief Exec & Support,Contributions To Provisions,Contributions - Third Sector,LK102,30/07/15,364078,400,REVENUE,FRIENDS OF CLEETHORPES HERITAGE,123216
North East Lincolnshire Council,http://statistics.data.gov.uk/id/local-authority/00FC,Chief Executive,Director Of Finance,Chief Exec & Support,Contributions To Provisions,Contributions - Third Sector,LK102,30/07/15,364046,2500,REVENUE,FUSION BOXING FIT,131192
North East Lincolnshire Council,http://statistics.data.gov.uk/id/local-authority/00FC,Chief Executive,Director Of Finance,Chief Exec & Support,Consultancy,Consultancy,PL101,13/07/15,360662,1660.3,REVENUE,COMPLETE OFFICE SOLUTIONS (UK) LTD,123664
North East Lincolnshire Council,http://statistics.data.gov.uk/id/local-authority/00FC,Chief Executive,Director Of Finance,Chief Exec & Support,Consultancy,Consultancy,PL101,20/07/15,362073,2073,REVENUE,COFELY WORKPLACE LIMITED,123983
North East Lincolnshire Council,http://statistics.data.gov.uk/id/local-authority/00FC,Chief Executive,Director Of Finance,Chief Exec & Support,Consultancy,Consultancy,PL101,02/07/15,359117,365.8,REVENUE,SHORELINE HOUSING PARTNERSHIP LTD,100139
North East Lincolnshire Council,http://statistics.data.gov.uk/id/local-authority/00FC,Chief Executive,Director Of Finance,Chief Exec & Support,Consultancy,Consultancy,PL101,27/07/15,363074,6960,REVENUE,THE BEECH CONSULTANCY,128323
North East Lincolnshire Council,http://statistics.data.gov.uk/id/local-authority/00FC,Chief Executive,Director Of Finance,Cfs Assets & Pc Programme,Rep Alterations Maint Building,Client Funded R & M Work,GA123,30/07/15,363826,8782.05,REVENUE,COFELY WORKPLACE LIMITED,123983
North East Lincolnshire Council,http://statistics.data.gov.uk/id/local-authority/00FC,Chief Executive,Director Of Finance,Cfs Assets & Pc Programme,Rep Alterations Maint Building,Buildings - Repairs And Maint,GA102,13/07/15,360866,570,REVENUE,NORTHERN POWERGRID (YORKSHIRE) PLC,108328
North East Lincolnshire Council,http://statistics.data.gov.uk/id/local-authority/00FC,Chief Executive,Director Of Finance,Cfs Assets & Pc Programme,Print Stationery / Gen Off Exp,Advertising,LD104,23/07/15,361901,565.08,REVENUE,LOCAL WORLD LIMITED,118774
North East Lincolnshire Council,http://statistics.data.gov.uk/id/local-authority/00FC,Chief Executive,Director Of Finance,Facilities Management,Cleaning And Domestic Supplies,Cleaning - Services,GH102,20/07/15,362081,165491.34,REVENUE,FUTURE CLEANING SERVICES LTD,102557
North East Lincolnshire Council,http://statistics.data.gov.uk/id/local-authority/00FC,Chief Executive,Director Of Finance,Facilities Management,Rents,Rent,GC101,09/07/15,360578,7412.5,REVENUE,CAPAX (C I ) LIMITED,101112
North East Lincolnshire Council,http://statistics.data.gov.uk/id/local-authority/00FC,Chief Executive,Director Of Finance,Facilities Management,Energy Costs,Electricity,GB102,30/07/15,364017,1694.88,REVENUE,ASSOCIATED BRITISH PORTS,100834
North East Lincolnshire Council,http://statistics.data.gov.uk/id/local-authority/00FC,Chief Executive,Director Of Finance,Facilities Management,Cleaning And Domestic Supplies,Refuse Collection,GH104,16/07/15,361601,421.2,REVENUE,BELL WASTE CONTROL,101433
North East Lincolnshire Council,http://statistics.data.gov.uk/id/local-authority/00FC,Chief Executive,Director Of Finance,Facilities Management,Energy Costs,Heating Fuel,GB103,06/07/15,359457,1117.45,REVENUE,CERTAS ENERGY,124794
North East Lincolnshire Council,http://statistics.data.gov.uk/id/local-authority/00FC,Chief Executive,Director Of Finance,Facilities Management,Energy Costs,Heating Fuel,GB103,06/07/15,359613,930.2,REVENUE,CERTAS ENERGY,124794
North East Lincolnshire Council,http://statistics.data.gov.uk/id/local-authority/00FC,Chief Executive,Director Of Finance,Facilities Management,Rents,Service Charge,GC102,07/07/15,360301,9360,REVENUE,IMMINGHAM TOWN COUNCIL,101597
North East Lincolnshire Council,http://statistics.data.gov.uk/id/local-authority/00FC,Chief Executive,Director Of Finance,Facilities Management,Rents,Rent,GC101,09/07/15,360572,9250,REVENUE,JOHN SUTCLIFFE & SON (HOLDINGS) LTD,101339
North East Lincolnshire Council,http://statistics.data.gov.uk/id/local-authority/00FC,Chief Executive,Director Of Finance,Facilities Management,Rents,Service Charge,GC102,09/07/15,360525,745,REVENUE,JOHN SUTCLIFFE & SON (HOLDINGS) LTD,101339
North East Lincolnshire Council,http://statistics.data.gov.uk/id/local-authority/00FC,Chief Executive,Director Of Finance,Facilities Management,Rents,Rent,GC101,02/07/15,358957,13125,REVENUE,BLACKTHORN HOLDINGS LTD,101914
North East Lincolnshire Council,http://statistics.data.gov.uk/id/local-authority/00FC,Chief Executive,Director Of Finance,Facilities Management,Rents,Rent,GC101,07/07/15,360300,7425.6,REVENUE,IMMINGHAM TOWN COUNCIL,101597
North East Lincolnshire Council,http://statistics.data.gov.uk/id/local-authority/00FC,Chief Executive,Director Of Finance,Facilities Management,Energy Costs,Electricity,GB102,02/07/15,358924,279.22,REVENUE,OLD CLEE PRIMARY ACADEMY,119822
North East Lincolnshire Council,http://statistics.data.gov.uk/id/local-authority/00FC,Chief Executive,Director Of Finance,Facilities Management,Energy Costs,Gas,GB101,14/07/15,360528,-50.89,REVENUE,OLD CLEE PRIMARY ACADEMY,119822
North East Lincolnshire Council,http://statistics.data.gov.uk/id/local-authority/00FC,Chief Executive,Director Of Finance,Facilities Management,Rents,Rent,GC101,23/07/15,362164,1250,REVENUE,THE GRIMSBY INSTITUTE OF FURTHER,102742
North East Lincolnshire Council,http://statistics.data.gov.uk/id/local-authority/00FC,Chief Executive,Director Of Finance,Facilities Management,Rents,Service Charge,GC102,23/07/15,362164,1100,REVENUE,THE GRIMSBY INSTITUTE OF FURTHER,102742
North East Lincolnshire Council,http://statistics.data.gov.uk/id/local-authority/00FC,Chief Executive,Director Of Finance,Commercial Estate,Rates,Rates,GD101,09/07/15,360589,2925.67,REVENUE,NORTH EAST LINCOLNSHIRE COUNCIL,100894
North East Lincolnshire Council,http://statistics.data.gov.uk/id/local-authority/00FC,Chief Executive,Director Of Finance,Commercial Estate,Cleaning And Domestic Supplies,Refuse Collection,GH104,16/07/15,361668,-83.46,REVENUE,BELL WASTE CONTROL,101433
North East Lincolnshire Council,http://statistics.data.gov.uk/id/local-authority/00FC,Chief Executive,Director Of Finance,Commercial Estate,Cleaning And Domestic Supplies,Cleaning - Consumables,GH103,20/07/15,362149,323.04,REVENUE,PETER HOGARTH & SONS LTD,100815
North East Lincolnshire Council,http://statistics.data.gov.uk/id/local-authority/00FC,Chief Executive,Director Of Finance,Commercial Estate,Water Services,Water,GE101,30/07/15,363650,2060.42,REVENUE,ASSOCIATED BRITISH PORTS,100834
North East Lincolnshire Council,http://statistics.data.gov.uk/id/local-authority/00FC,Chief Executive,Director Of Economy & Growth,Beach Safety,Communications And Computing,Telephones,LF112,02/07/15,359452,672,REVENUE,BRITISH TELECOMMUNICATIONS PLC,100974
North East Lincolnshire Council,http://statistics.data.gov.uk/id/local-authority/00FC,Chief Executive,Director Of Economy & Growth,Discovery Centre,Print Stationery / Gen Off Exp,Printing And Stationery,LD103,23/07/15,362183,-36.81,REVENUE,LYRECO UK LIMITED,101120
North East Lincolnshire Council,http://statistics.data.gov.uk/id/local-authority/00FC,Chief Executive,Director Of Economy & Growth,Discovery Centre,Equip / Furniture / Materials,Equipment - Purchase,LA101,13/07/15,360653,1380,REVENUE,SYLVESTER-KEAL LTD,100593
North East Lincolnshire Council,http://statistics.data.gov.uk/id/local-authority/00FC,Chief Executive,Director Of Economy & Growth,Discovery Centre,Equip / Furniture / Materials,Goods For Resale,LA123,09/07/15,360647,276.13,REVENUE,HOLDSWORTH LTD,121021
North East Lincolnshire Council,http://statistics.data.gov.uk/id/local-authority/00FC,Chief Executive,Director Of Economy & Growth,Discovery Centre,Equip / Furniture / Materials,Goods For Resale,LA123,23/07/15,362389,326.6,REVENUE,R W STOKES & SONS LTD,123706
North East Lincolnshire Council,http://statistics.data.gov.uk/id/local-authority/00FC,Chief Executive,Director Of Economy & Growth,Discovery Centre,Equip / Furniture / Materials,Goods For Resale,LA123,09/07/15,360647,260.33,REVENUE,HOLDSWORTH LTD,121021
North East Lincolnshire Council,http://statistics.data.gov.uk/id/local-authority/00FC,Chief Executive,Director Of Economy & Growth,Events,Rep Alterations Maint Building,Buildings - Repairs And Maint,GA102,13/07/15,360688,478.46,REVENUE,KES BUILDING MAINTENANCE LIMITED,100786
North East Lincolnshire Council,http://statistics.data.gov.uk/id/local-authority/00FC,Chief Executive,Director Of Economy & Growth,Events,Private Contractors,Third Party Prov - Private,PH101,15/07/15,361174,3000,REVENUE,DEMON EVENTS,125764
North East Lincolnshire Council,http://statistics.data.gov.uk/id/local-authority/00FC,Chief Executive,Director Of Economy & Growth,Events,Private Contractors,Third Party Prov - Private,PH101,09/07/15,360395,1000,REVENUE,NORTH EAST LINCOLNSHIRE PRIDE (T/A GY PRIDE),126567
North East Lincolnshire Council,http://statistics.data.gov.uk/id/local-authority/00FC,Chief Executive,Director Of Economy & Growth,Events,Private Contractors,Third Party Prov - Private,PH101,02/07/15,359453,5000,REVENUE,SOLID ENTERTAINMENTS,106032
North East Lincolnshire Council,http://statistics.data.gov.uk/id/local-authority/00FC,Chief Executive,Director Of Economy & Growth,Events,Private Contractors,Third Party Prov - Private,PH101,27/07/15,363079,5000,REVENUE,CLEEFEST,121709
North East Lincolnshire Council,http://statistics.data.gov.uk/id/local-authority/00FC,Chief Executive,Director Of Economy & Growth,Marketing And Promotion,Equip / Furniture / Materials,Promotions,LA124,21/07/15,359602,300,REVENUE,EAST COAST PICTURES LTD,102719
North East Lincolnshire Council,http://statistics.data.gov.uk/id/local-authority/00FC,Chief Executive,Director Of Economy & Growth,Marketing And Promotion,Equip / Furniture / Materials,Promotions,LA124,30/07/15,363179,400,REVENUE,SEAVIEW TRAIN,109694
North East Lincolnshire Council,http://statistics.data.gov.uk/id/local-authority/00FC,Chief Executive,Director Of Economy & Growth,Marketing And Promotion,Equip / Furniture / Materials,Promotions,LA124,06/07/15,358328,1075.3,REVENUE,PRO-ACTIVE TEAMWEAR LTD,101069
North East Lincolnshire Council,http://statistics.data.gov.uk/id/local-authority/00FC,Chief Executive,Director Of Economy & Growth,Marketing And Promotion,Equip / Furniture / Materials,Promotions,LA124,16/07/15,356415,338,REVENUE,MARINER MEDICAL & DRIVING SERVICES LTD,110617
North East Lincolnshire Council,http://statistics.data.gov.uk/id/local-authority/00FC,Chief Executive,Director Of Economy & Growth,Marketing And Promotion,Equip / Furniture / Materials,Promotions,LA124,21/07/15,358369,462,REVENUE,PRO-ACTIVE TEAMWEAR LTD,101069
North East Lincolnshire Council,http://statistics.data.gov.uk/id/local-authority/00FC,Chief Executive,Director Of Economy & Growth,Marketing And Promotion,Equip / Furniture / Materials,Promotions,LA124,21/07/15,359818,1650,REVENUE,MACHINE NETWORKS LTD,116538
North East Lincolnshire Council,http://statistics.data.gov.uk/id/local-authority/00FC,Chief Executive,Director Of Economy & Growth,Marketing And Promotion,Equip / Furniture / Materials,Promotions,LA124,27/07/15,363073,300,REVENUE,PREMIER PRINT & PROMOTIONS LIMITED,130937
North East Lincolnshire Council,http://statistics.data.gov.uk/id/local-authority/00FC,Chief Executive,Director Of Economy & Growth,Museums & N F Heritage Centre,Equip / Furniture / Materials,Equipment - Purchase,LA101,13/07/15,359798,349,REVENUE,PRESERVATION EQUIPMENT LTD,105510
North East Lincolnshire Council,http://statistics.data.gov.uk/id/local-authority/00FC,Chief Executive,Director Of Economy & Growth,Museums & N F Heritage Centre,Equip / Furniture / Materials,Promotions,LA124,15/07/15,360735,472.5,REVENUE,PRO-ACTIVE TEAMWEAR LTD,101069
North East Lincolnshire Council,http://statistics.data.gov.uk/id/local-authority/00FC,Chief Executive,Director Of Economy & Growth,Museums & N F Heritage Centre,Equip / Furniture / Materials,Promotions,LA124,15/07/15,360732,257.29,REVENUE,PRO-ACTIVE TEAMWEAR LTD,101069
North East Lincolnshire Council,http://statistics.data.gov.uk/id/local-authority/00FC,Chief Executive,Director Of Economy & Growth,Museums & N F Heritage Centre,Equip / Furniture / Materials,Goods For Resale,LA123,15/07/15,361669,-10.8,REVENUE,HOLDSWORTH LTD,121021
North East Lincolnshire Council,http://statistics.data.gov.uk/id/local-authority/00FC,Chief Executive,Director Of Economy & Growth,Museums & N F Heritage Centre,Equip / Furniture / Materials,Goods For Resale,LA123,15/07/15,361670,-6.35,REVENUE,HOLDSWORTH LTD,121021
North East Lincolnshire Council,http://statistics.data.gov.uk/id/local-authority/00FC,Chief Executive,Director Of Economy & Growth,Museums & N F Heritage Centre,Equip / Furniture / Materials,Goods For Resale,LA123,15/07/15,361672,-1.95,REVENUE,HOLDSWORTH LTD,121021
North East Lincolnshire Council,http://statistics.data.gov.uk/id/local-authority/00FC,Chief Executive,Director Of Economy & Growth,Museums & N F Heritage Centre,Equip / Furniture / Materials,Goods For Resale,LA123,21/07/15,361673,-3.56,REVENUE,HOLDSWORTH LTD,121021
North East Lincolnshire Council,http://statistics.data.gov.uk/id/local-authority/00FC,Chief Executive,Director Of Economy & Growth,Museums & N F Heritage Centre,Equip / Furniture / Materials,Goods For Resale,LA123,21/07/15,361671,-14.35,REVENUE,HOLDSWORTH LTD,121021
North East Lincolnshire Council,http://statistics.data.gov.uk/id/local-authority/00FC,Chief Executive,Director Of Economy & Growth,Tourist Information Centre,Private Contractors,Third Party Prov - Private,PH101,07/07/15,359967,392,REVENUE,SOLID ENTERTAINMENTS,106032
North East Lincolnshire Council,http://statistics.data.gov.uk/id/local-authority/00FC,Chief Executive,Director Of Economy & Growth,Tourist Information Centre,Private Contractors,Third Party Prov - Private,PH101,02/07/15,359399,821,REVENUE,THE CAXTON PLAYERS,129590
North East Lincolnshire Council,http://statistics.data.gov.uk/id/local-authority/00FC,Chief Executive,Director Of Economy & Growth,Tourist Information Centre,Private Contractors,Third Party Prov - Private,PH101,06/07/15,359297,352.5,REVENUE,THE CAXTON PLAYERS,129590
North East Lincolnshire Council,http://statistics.data.gov.uk/id/local-authority/00FC,Chief Executive,Director Of Economy & Growth,Tourist Information Centre,Private Contractors,Third Party Prov - Private,PH101,13/07/15,360018,3378,REVENUE,DEMON EVENTS,125764
North East Lincolnshire Council,http://statistics.data.gov.uk/id/local-authority/00FC,Chief Executive,Director Of Economy & Growth,Tourist Information Centre,Private Contractors,Third Party Prov - Private,PH101,13/07/15,360937,2709,REVENUE,GRIMSBY JAZZ,104461
North East Lincolnshire Council,http://statistics.data.gov.uk/id/local-authority/00FC,Chief Executive,Director Of Economy & Growth,Tourist Information Centre,Private Contractors,Third Party Prov - Private,PH101,13/07/15,359966,532.5,REVENUE,LINCS INSPIRE LTD,120610
North East Lincolnshire Council,http://statistics.data.gov.uk/id/local-authority/00FC,Chief Executive,Director Of Economy & Growth,Tourist Information Centre,Private Contractors,Third Party Prov - Private,PH101,14/07/15,361075,1946.45,REVENUE,NATIONAL EXPRESS LTD,100835
North East Lincolnshire Council,http://statistics.data.gov.uk/id/local-authority/00FC,Chief Executive,Director Of Economy & Growth,Tourist Information Centre,Private Contractors,Third Party Prov - Private,PH101,14/07/15,361074,1631.5,REVENUE,NATIONAL EXPRESS LTD,100835
North East Lincolnshire Council,http://statistics.data.gov.uk/id/local-authority/00FC,Chief Executive,Director Of Economy & Growth,Community Investment Team,Private Contractors,Third Party Prov - Private,PH101,07/07/15,360244,676,REVENUE,GRAND DESIGN SERVICES,123032
North East Lincolnshire Council,http://statistics.data.gov.uk/id/local-authority/00FC,Chief Executive,Director Of Economy & Growth,Community Investment Team,Private Contractors,Third Party Prov - Private,PH101,21/07/15,362181,260,REVENUE,CRYOTECH (GRIMSBY) LTD,114094
North East Lincolnshire Council,http://statistics.data.gov.uk/id/local-authority/00FC,Chief Executive,Director Of Economy & Growth,Community Investment Team,Private Contractors,Third Party Prov - Private,PH101,17/07/15,361694,676,REVENUE,EMPOWER EMPLOYABILITY MENTORING PROGRAMME,118831
North East Lincolnshire Council,http://statistics.data.gov.uk/id/local-authority/00FC,Chief Executive,Director Of Economy & Growth,Community Investment Team,Private Contractors,Third Party Prov - Private,PH101,15/07/15,361038,780,REVENUE,PROSPECT FARM COUNTRY COTTAGES,101297
North East Lincolnshire Council,http://statistics.data.gov.uk/id/local-authority/00FC,Chief Executive,Director Of Economy & Growth,Community Investment Team,Private Contractors,Third Party Prov - Private,PH101,09/07/15,360354,910,REVENUE,AGE UK NORTH EAST LINCOLNSHIRE,113772
North East Lincolnshire Council,http://statistics.data.gov.uk/id/local-authority/00FC,Chief Executive,Director Of Economy & Growth,Community Investment Team,Private Contractors,Third Party Prov - Private,PH101,13/07/15,360552,1931.25,REVENUE,FAST-FORM SYSTEMS LTD,127598
North East Lincolnshire Council,http://statistics.data.gov.uk/id/local-authority/00FC,Chief Executive,Director Of Economy & Growth,Community Investment Team,Private Contractors,Third Party Prov - Private,PH101,21/07/15,362182,1260,REVENUE,THE MOTOR PLACE LTD,127975
North East Lincolnshire Council,http://statistics.data.gov.uk/id/local-authority/00FC,Chief Executive,Director Of Economy & Growth,Community Investment Team,Private Contractors,Third Party Prov - Private,PH101,09/07/15,360331,795.06,REVENUE,SUPREME BATHROOMS & SHOWERS LTD,126265
North East Lincolnshire Council,http://statistics.data.gov.uk/id/local-authority/00FC,Chief Executive,Director Of Economy & Growth,Community Investment Team,Private Contractors,Third Party Prov - Private,PH101,15/07/15,361028,1668,REVENUE,MAYNE GAS HEATING LTD,101861
North East Lincolnshire Council,http://statistics.data.gov.uk/id/local-authority/00FC,Chief Executive,Director Of Economy & Growth,Community Investment Team,Private Contractors,Third Party Prov - Private,PH101,14/07/15,361052,722.8,REVENUE,CENTRE4 LIMITED,126893
North East Lincolnshire Council,http://statistics.data.gov.uk/id/local-authority/00FC,Chief Executive,Director Of Economy & Growth,Community Investment Team,Private Contractors,Third Party Prov - Private,PH101,23/07/15,362197,1239,REVENUE,LINDSEY GARDEN PRODUCTS,106060
North East Lincolnshire Council,http://statistics.data.gov.uk/id/local-authority/00FC,Chief Executive,Director Of Economy & Growth,Community Investment Team,Private Contractors,Third Party Prov - Private,PH101,21/07/15,361690,832,REVENUE,THE OLIVE TREE CAFE,111152
North East Lincolnshire Council,http://statistics.data.gov.uk/id/local-authority/00FC,Chief Executive,Director Of Economy & Growth,Community Investment Team,Private Contractors,Third Party Prov - Private,PH101,02/07/15,359129,731.25,REVENUE,MAINLINE CYCLES,127500
North East Lincolnshire Council,http://statistics.data.gov.uk/id/local-authority/00FC,Chief Executive,Director Of Economy & Growth,Community Investment Team,Private Contractors,Third Party Prov - Private,PH101,15/07/15,361730,702,REVENUE,MAINLINE CYCLES,127500
North East Lincolnshire Council,http://statistics.data.gov.uk/id/local-authority/00FC,Chief Executive,Director Of Economy & Growth,Community Investment Team,Private Contractors,Third Party Prov - Private,PH101,15/07/15,361120,1659.94,REVENUE,NAVIGO,104262
North East Lincolnshire Council,http://statistics.data.gov.uk/id/local-authority/00FC,Chief Executive,Director Of Economy & Growth,Community Investment Team,Private Contractors,Third Party Prov - Private,PH101,15/07/15,361426,1608.86,REVENUE,NAVIGO,104262
North East Lincolnshire Council,http://statistics.data.gov.uk/id/local-authority/00FC,Chief Executive,Director Of Economy & Growth,Community Investment Team,Private Contractors,Third Party Prov - Private,PH101,23/07/15,362175,1049.75,REVENUE,ANDREW JAMES FORWARDING LTD,129014
North East Lincolnshire Council,http://statistics.data.gov.uk/id/local-authority/00FC,Chief Executive,Director Of Economy & Growth,Community Investment Team,Private Contractors,Third Party Prov - Private,PH101,23/07/15,362688,845,REVENUE,ABBEY WALK GALLERY,102306
North East Lincolnshire Council,http://statistics.data.gov.uk/id/local-authority/00FC,Chief Executive,Director Of Economy & Growth,Community Investment Team,Private Contractors,Third Party Prov - Private,PH101,21/07/15,361689,584.19,REVENUE,LYNX POLYTHENE LTD,110149
North East Lincolnshire Council,http://statistics.data.gov.uk/id/local-authority/00FC,Chief Executive,Director Of Economy & Growth,Community Investment Team,Private Contractors,Third Party Prov - Private,PH101,15/07/15,360565,1920,REVENUE,MADE TO MEASURE JOINERY GY LTD,128603
North East Lincolnshire Council,http://statistics.data.gov.uk/id/local-authority/00FC,Chief Executive,Director Of Economy & Growth,Community Investment Team,Private Contractors,Third Party Prov - Private,PH101,14/07/15,361050,2080,REVENUE,DEAN WILLETT & SONS,101982
North East Lincolnshire Council,http://statistics.data.gov.uk/id/local-authority/00FC,Chief Executive,Director Of Economy & Growth,Community Investment Team,Private Contractors,Third Party Prov - Private,PH101,23/07/15,362178,1563,REVENUE,ST GRIMSBY RECYCLING LTD,129543
North East Lincolnshire Council,http://statistics.data.gov.uk/id/local-authority/00FC,Chief Executive,Director Of Economy & Growth,Community Investment Team,Private Contractors,Third Party Prov - Private,PH101,20/07/15,362170,762.32,REVENUE,NAVIGO,104262
North East Lincolnshire Council,http://statistics.data.gov.uk/id/local-authority/00FC,Chief Executive,Director Of Economy & Growth,Community Investment Team,Private Contractors,Third Party Prov - Private,PH101,02/07/15,359446,469.12,REVENUE,NAVIGO,104262
North East Lincolnshire Council,http://statistics.data.gov.uk/id/local-authority/00FC,Chief Executive,Director Of Economy & Growth,Community Investment Team,Private Contractors,Third Party Prov - Private,PH101,14/07/15,361048,676,REVENUE,MOTORS OF BRIGHOWGATE LTD,128555
North East Lincolnshire Council,http://statistics.data.gov.uk/id/local-authority/00FC,Chief Executive,Director Of Economy & Growth,Community Investment Team,Private Contractors,Third Party Prov - Private,PH101,23/07/15,362396,1365.55,REVENUE,COUNTRY COOKING,101214
North East Lincolnshire Council,http://statistics.data.gov.uk/id/local-authority/00FC,Chief Executive,Director Of Economy & Growth,Community Investment Team,Private Contractors,Third Party Prov - Private,PH101,15/07/15,360566,1323.12,REVENUE,CPO MEDIA,102186
North East Lincolnshire Council,http://statistics.data.gov.uk/id/local-authority/00FC,Chief Executive,Director Of Economy & Growth,Community Investment Team,Private Contractors,Third Party Prov - Private,PH101,13/07/15,360533,1365,REVENUE,AGE UK NORTH EAST LINCOLNSHIRE,113772
North East Lincolnshire Council,http://statistics.data.gov.uk/id/local-authority/00FC,Chief Executive,Director Of Economy & Growth,Community Investment Team,Private Contractors,Third Party Prov - Private,PH101,23/07/15,362194,1690,REVENUE,GRAHAM CHAPMAN CLASSIC CARS,126506
North East Lincolnshire Council,http://statistics.data.gov.uk/id/local-authority/00FC,Chief Executive,Director Of Economy & Growth,Community Investment Team,Private Contractors,Third Party Prov - Private,PH101,17/07/15,361804,672,REVENUE,VIRRGO CORPORATE LTD,120158
North East Lincolnshire Council,http://statistics.data.gov.uk/id/local-authority/00FC,Chief Executive,Director Of Economy & Growth,Community Investment Team,Private Contractors,Third Party Prov - Private,PH101,30/07/15,363824,676,REVENUE,FRIENDSHIP AT HOME,108515
North East Lincolnshire Council,http://statistics.data.gov.uk/id/local-authority/00FC,Chief Executive,Director Of Economy & Growth,Community Investment Team,Private Contractors,Third Party Prov - Private,PH101,09/07/15,360388,640,REVENUE,GRAYS HEATING LTD,128179
North East Lincolnshire Council,http://statistics.data.gov.uk/id/local-authority/00FC,Chief Executive,Director Of Economy & Growth,Community Investment Team,Private Contractors,Third Party Prov - Private,PH101,23/07/15,362221,844.94,REVENUE,CARTY'S FISHERIES (SUSAN CARTY T/A),129508
North East Lincolnshire Council,http://statistics.data.gov.uk/id/local-authority/00FC,Chief Executive,Director Of Economy & Growth,Community Investment Team,Private Contractors,Third Party Prov - Private,PH101,14/07/15,361049,1365,REVENUE,WOMENS AID,100326
North East Lincolnshire Council,http://statistics.data.gov.uk/id/local-authority/00FC,Chief Executive,Director Of Economy & Growth,Community Investment Team,Private Contractors,Third Party Prov - Private,PH101,09/07/15,360357,468,REVENUE,THE OLIVE TREE CAFE,111152
North East Lincolnshire Council,http://statistics.data.gov.uk/id/local-authority/00FC,Chief Executive,Director Of Economy & Growth,Community Investment Team,Private Contractors,Third Party Prov - Private,PH101,23/07/15,362088,806,REVENUE,GR PET SUPPLIES,129704
North East Lincolnshire Council,http://statistics.data.gov.uk/id/local-authority/00FC,Chief Executive,Director Of Economy & Growth,Community Investment Team,Private Contractors,Third Party Prov - Private,PH101,15/07/15,360532,1690,REVENUE,THOMPSON BUILDERS,129102
North East Lincolnshire Council,http://statistics.data.gov.uk/id/local-authority/00FC,Chief Executive,Director Of Economy & Growth,Community Investment Team,Private Contractors,Third Party Prov - Private,PH101,21/07/15,362565,2000,REVENUE,CARE4ALL,111733
North East Lincolnshire Council,http://statistics.data.gov.uk/id/local-authority/00FC,Chief Executive,Director Of Economy & Growth,Community Investment Team,Private Contractors,Third Party Prov - Private,PH101,21/07/15,358068,-2000,REVENUE,CARE4ALL,111733
North East Lincolnshire Council,http://statistics.data.gov.uk/id/local-authority/00FC,Chief Executive,Director Of Economy & Growth,Community Investment Team,Private Contractors,Third Party Prov - Private,PH101,09/07/15,360355,2000,REVENUE,WEB VISUAL LTD,124828
North East Lincolnshire Council,http://statistics.data.gov.uk/id/local-authority/00FC,Chief Executive,Director Of Economy & Growth,Community Investment Team,Private Contractors,Third Party Prov - Private,PH101,30/07/15,363107,2000,REVENUE,DE FONTENAY LTD T/A LASER RED,128426
North East Lincolnshire Council,http://statistics.data.gov.uk/id/local-authority/00FC,Chief Executive,Director Of Economy & Growth,Community Investment Team,Private Contractors,Third Party Prov - Private,PH101,02/07/15,359448,1500,REVENUE,FOCUS INDEPENDENT ADULT SOCIAL WORK CIC,124071
North East Lincolnshire Council,http://statistics.data.gov.uk/id/local-authority/00FC,Chief Executive,Director Of Economy & Growth,Community Investment Team,Private Contractors,Third Party Prov - Private,PH101,23/07/15,362646,300,REVENUE,LINCS ELECTRICAL WHOLESALERS LTD,103116
North East Lincolnshire Council,http://statistics.data.gov.uk/id/local-authority/00FC,Chief Executive,Director Of Economy & Growth,Community Investment Team,Private Contractors,Third Party Prov - Private,PH101,23/07/15,362684,2730,REVENUE,BLACK FISH BRANDING SOLUTIONS,120696
North East Lincolnshire Council,http://statistics.data.gov.uk/id/local-authority/00FC,Chief Executive,Director Of Economy & Growth,Community Investment Team,Private Contractors,Third Party Prov - Private,PH101,14/07/15,361054,1141,REVENUE,RPM INDUSTRIAL SERVICES LTD,126845
North East Lincolnshire Council,http://statistics.data.gov.uk/id/local-authority/00FC,Chief Executive,Director Of Economy & Growth,Community Investment Team,Private Contractors,Third Party Prov - Private,PH101,23/07/15,362195,6599.64,REVENUE,CENTRE4 LIMITED,126893
North East Lincolnshire Council,http://statistics.data.gov.uk/id/local-authority/00FC,Chief Executive,Director Of Economy & Growth,Community Investment Team,Miscellaneous Expenses,Legal Fees - General,LL103,21/07/15,361685,922.5,REVENUE,WILKIN & CHAPMAN LLP CLIENT ACCOUNT,130718
North East Lincolnshire Council,http://statistics.data.gov.uk/id/local-authority/00FC,Chief Executive,Director Of Economy & Growth,Community Investment Team,Other Agencies,Grants Pd Over To Third Party,PJ138,23/07/15,362198,5712.76,REVENUE,BJB LIFT TRUCKS LTD,101173
North East Lincolnshire Council,http://statistics.data.gov.uk/id/local-authority/00FC,Chief Executive,Director Of Economy & Growth,Retained Function,Indirect Employee Expenses,Medical Expenses - Employees,EB112,09/07/15,333948,-25,REVENUE,REDACTED PERSONAL INFORMATION,REDACTED PERSONAL INFORMATION
North East Lincolnshire Council,http://statistics.data.gov.uk/id/local-authority/00FC,Chief Executive,Director Of Economy & Growth,Retained Function,Grants And Subscriptions,Subscriptions,LJ101,17/07/15,356057,4000,REVENUE,CITY OF YORK COUNCIL,120597
North East Lincolnshire Council,http://statistics.data.gov.uk/id/local-authority/00FC,Chief Executive,Director Of Economy & Growth,Retained Function,Contributions To Provisions,Contributions - Communities,LK101,21/07/15,357187,2320,REVENUE,HUMBER NATURE PARTNERSHIP,126732
North East Lincolnshire Council,http://statistics.data.gov.uk/id/local-authority/00FC,Chief Executive,Director Of Economy & Growth,Retained Function,Contributions To Provisions,Contributions - Communities,LK101,21/07/15,357187,4400,REVENUE,HUMBER NATURE PARTNERSHIP,126732
North East Lincolnshire Council,http://statistics.data.gov.uk/id/local-authority/00FC,Chief Executive,Director Of Economy & Growth,Planning,Customer And Client Receipts,Fees/Chrgs-O/Side Scope Vat 4,VC125,07/07/15,360406,288,REVENUE,REDACTED PERSONAL INFORMATION,REDACTED PERSONAL INFORMATION
North East Lincolnshire Council,http://statistics.data.gov.uk/id/local-authority/00FC,Chief Executive,Director Of Economy & Growth,Drainage & Coastal Defence,Miscellaneous Expenses,Other Interest Charged,LL124,07/07/15,359454,10568.63,REVENUE,PBS CONSTRUCTION (NORTH EAST) LTD,127459
North East Lincolnshire Council,http://statistics.data.gov.uk/id/local-authority/00FC,Chief Executive,Director Of Economy & Growth,Drainage & Coastal Defence,Private Contractors,Third Party Prov - Private,PH101,17/07/15,361825,1452.48,REVENUE,C E SMITH & SONS,104444
North East Lincolnshire Council,http://statistics.data.gov.uk/id/local-authority/00FC,Chief Executive,Director Of Economy & Growth,Highways Dso,Dlo Holding,Depot Fuel Holding Account,LM101,06/07/15,359603,16776,REVENUE,HARVEST ENERGY LTD,102544
North East Lincolnshire Council,http://statistics.data.gov.uk/id/local-authority/00FC,Chief Executive,Director Of Economy & Growth,Highways Dso,Dlo Holding,Depot Fuel Holding Account,LM101,06/07/15,359464,700.2,REVENUE,CERTAS ENERGY,124794
North East Lincolnshire Council,http://statistics.data.gov.uk/id/local-authority/00FC,Chief Executive,Director Of Economy & Growth,Highways Dso,Dlo Holding,Depot Fuel Holding Account,LM101,07/07/15,359455,16776.93,REVENUE,HARVEST ENERGY LTD,102544
North East Lincolnshire Council,http://statistics.data.gov.uk/id/local-authority/00FC,Chief Executive,Director Of Economy & Growth,Highways Dso,Dlo Holding,Depot Fuel Holding Account,LM101,17/07/15,361824,16713,REVENUE,HARVEST ENERGY LTD,102544
North East Lincolnshire Council,http://statistics.data.gov.uk/id/local-authority/00FC,Chief Executive,Director Of Economy & Growth,Highways Dso,Dlo Holding,Depot Fuel Holding Account,LM101,17/07/15,361823,16699.53,REVENUE,HARVEST ENERGY LTD,102544
North East Lincolnshire Council,http://statistics.data.gov.uk/id/local-authority/00FC,Chief Executive,Director Of Economy & Growth,Highways Dso,Dlo Holding,Depot Fuel Holding Account,LM101,17/07/15,361811,1149.85,REVENUE,CERTAS ENERGY,124794
North East Lincolnshire Council,http://statistics.data.gov.uk/id/local-authority/00FC,Chief Executive,Director Of Economy & Growth,Highways Dso,Dlo Holding,Depot Fuel Holding Account,LM101,17/07/15,361821,16349.3,REVENUE,HARVEST ENERGY LTD,102544
North East Lincolnshire Council,http://statistics.data.gov.uk/id/local-authority/00FC,Chief Executive,Director Of Economy & Growth,Highways Dso,Dlo Holding,Depot Fuel Holding Account,LM101,17/07/15,361814,16473.6,REVENUE,HARVEST ENERGY LTD,102544
North East Lincolnshire Council,http://statistics.data.gov.uk/id/local-authority/00FC,Chief Executive,Director Of Economy & Growth,Highways Dso,Dlo Holding,Depot Fuel Holding Account,LM101,06/07/15,359513,16791.33,REVENUE,HARVEST ENERGY LTD,102544
North East Lincolnshire Council,http://statistics.data.gov.uk/id/local-authority/00FC,Chief Executive,Director Of Economy & Growth,Highways Dso,Dlo Holding,Depot Fuel Holding Account,LM101,07/07/15,359456,16983.09,REVENUE,HARVEST ENERGY LTD,102544
North East Lincolnshire Council,http://statistics.data.gov.uk/id/local-authority/00FC,Chief Executive,Director Of Economy & Growth,Highways Dso,Dlo Holding,Depot Fuel Holding Account,LM101,06/07/15,359458,1167,REVENUE,CERTAS ENERGY,124794
North East Lincolnshire Council,http://statistics.data.gov.uk/id/local-authority/00FC,Chief Executive,Director Of Economy & Growth,Highways Dso,Dlo Holding,Depot Fuel Holding Account,LM101,06/07/15,359459,1152.75,REVENUE,CERTAS ENERGY,124794
North East Lincolnshire Council,http://statistics.data.gov.uk/id/local-authority/00FC,Chief Executive,Director Of Economy & Growth,Street Lighting,Rep Alterations Maint Building,Street Lighting-General Maint,GA111,02/07/15,358727,526.15,REVENUE,NORTHERN POWERGRID (YORKSHIRE) PLC,108328
North East Lincolnshire Council,http://statistics.data.gov.uk/id/local-authority/00FC,Chief Executive,Director Of Economy & Growth,Street Lighting,Rep Alterations Maint Building,Street Light-Irrecoverable Dam,GA112,02/07/15,359416,389.99,REVENUE,NORTHERN POWERGRID (YORKSHIRE) PLC,108328
North East Lincolnshire Council,http://statistics.data.gov.uk/id/local-authority/00FC,Chief Executive,Director Of Economy & Growth,Street Lighting,Rep Alterations Maint Building,Street Light-Irrecoverable Dam,GA112,06/07/15,359799,389.99,REVENUE,NORTHERN POWERGRID (YORKSHIRE) PLC,108328
North East Lincolnshire Council,http://statistics.data.gov.uk/id/local-authority/00FC,Chief Executive,Director Of Economy & Growth,Street Lighting,Rep Alterations Maint Building,Traffic Mgmt-Irrecoverable Dam,GA115,06/07/15,359812,389.99,REVENUE,NORTHERN POWERGRID (YORKSHIRE) PLC,108328
North East Lincolnshire Council,http://statistics.data.gov.uk/id/local-authority/00FC,Chief Executive,Director Of Economy & Growth,Street Lighting,Rep Alterations Maint Building,Traffic Signs / Signals,GA113,06/07/15,359814,389.99,REVENUE,NORTHERN POWERGRID (YORKSHIRE) PLC,108328
North East Lincolnshire Council,http://statistics.data.gov.uk/id/local-authority/00FC,Chief Executive,Director Of Economy & Growth,Street Lighting,Rep Alterations Maint Building,Traffic Signs / Signals,GA113,06/07/15,359816,389.99,REVENUE,NORTHERN POWERGRID (YORKSHIRE) PLC,108328
North East Lincolnshire Council,http://statistics.data.gov.uk/id/local-authority/00FC,Chief Executive,Director Of Economy & Growth,Street Lighting,Rep Alterations Maint Building,Traffic Signs / Signals,GA113,09/07/15,359817,389.99,REVENUE,NORTHERN POWERGRID (YORKSHIRE) PLC,108328
North East Lincolnshire Council,http://statistics.data.gov.uk/id/local-authority/00FC,Chief Executive,Director Of Economy & Growth,Street Lighting,Rep Alterations Maint Building,Traffic Signs / Signals,GA113,09/07/15,359810,366.63,REVENUE,NORTHERN POWERGRID (YORKSHIRE) PLC,108328
North East Lincolnshire Council,http://statistics.data.gov.uk/id/local-authority/00FC,Chief Executive,Director Of Economy & Growth,Street Lighting,Rep Alterations Maint Building,Traffic Signs / Signals,GA113,09/07/15,359800,389.99,REVENUE,NORTHERN POWERGRID (YORKSHIRE) PLC,108328
North East Lincolnshire Council,http://statistics.data.gov.uk/id/local-authority/00FC,Chief Executive,Director Of Economy & Growth,Traffic Management,Private Contractors,Third Party Prov - Private,PH101,23/07/15,362658,693.49,REVENUE,LOCAL WORLD LIMITED,118774
North East Lincolnshire Council,http://statistics.data.gov.uk/id/local-authority/00FC,Chief Executive,Director Of Economy & Growth,Traffic Management,Private Contractors,Third Party Prov - Private,PH101,07/07/15,359383,282.54,REVENUE,LOCAL WORLD LIMITED,118774
North East Lincolnshire Council,http://statistics.data.gov.uk/id/local-authority/00FC,Chief Executive,Director Of Economy & Growth,Transport Policy,Private Contractors,Concessionary Fares,PH104,15/07/15,361565,REDACTED COMMERCIALLY SENSITIVE,REVENUE,GY CLPS & DISTRICT DIAL A RIDE,100980
North East Lincolnshire Council,http://statistics.data.gov.uk/id/local-authority/00FC,Chief Executive,Director Of Economy & Growth,Transport Policy,Private Contractors,Contract Payments,PH105,15/07/15,361019,14989.88,REVENUE,ESSENTIAL FLEET SERVICES LTD,101159
North East Lincolnshire Council,http://statistics.data.gov.uk/id/local-authority/00FC,Chief Executive,Director Of Public Health,Director Public Health,Equip / Furniture / Materials,Promotions,LA124,23/07/15,362455,14146.31,REVENUE,CARE PLUS GROUP,126792
North East Lincolnshire Council,http://statistics.data.gov.uk/id/local-authority/00FC,Chief Executive,Director Of Public Health,Director Public Health,Equip / Furniture / Materials,Promotions,LA124,27/07/15,363260,37005.26,REVENUE,CENTRE4 LIMITED,126893
North East Lincolnshire Council,http://statistics.data.gov.uk/id/local-authority/00FC,Chief Executive,Director Of Public Health,Director Public Health,Expenses,Course/Conf Accom - Employees,LH102,23/07/15,362184,-120,REVENUE,THE UNIVERSITY OF MANCHESTER,120832
North East Lincolnshire Council,http://statistics.data.gov.uk/id/local-authority/00FC,Chief Executive,Director Of Public Health,Director Public Health,Health Authorities,Third Pp - Health Auth,PD101,07/07/15,360411,-579,REVENUE,NHS NORTH YORKSHIRE AND HUMBER CSU,121292
North East Lincolnshire Council,http://statistics.data.gov.uk/id/local-authority/00FC,Chief Executive,Director Of Public Health,Director Public Health,Health Authorities,Third Pp - Health Auth,PD101,07/07/15,360430,579,REVENUE,NHS YORKSHIRE & THE HUMBER CS,129360
North East Lincolnshire Council,http://statistics.data.gov.uk/id/local-authority/00FC,Chief Executive,Director Of Public Health,Director Public Health,Consultancy,Consultancy,PL101,09/07/15,359994,1700,REVENUE,UK HEALTH FORUM,122205
North East Lincolnshire Council,http://statistics.data.gov.uk/id/local-authority/00FC,Chief Executive,Director Of Public Health,Drug / Alcohol Action Service,Private Contractors,Contract Payments,PH105,02/07/15,359367,118583.33,REVENUE,CARE PLUS GROUP,106467
North East Lincolnshire Council,http://statistics.data.gov.uk/id/local-authority/00FC,Chief Executive,Director Of Public Health,Drug / Alcohol Action Service,Private Contractors,Contract Payments,PH105,23/07/15,362534,30220.88,REVENUE,NHS BUSINESS SERVICES AUTHORITY,127751
North East Lincolnshire Council,http://statistics.data.gov.uk/id/local-authority/00FC,Chief Executive,Director Of Public Health,Drug / Alcohol Action Service,Private Contractors,Contract Payments,PH105,02/07/15,359392,12500,REVENUE,FREELANCE NEEDLE EXCHANGE LIMITED,119999
North East Lincolnshire Council,http://statistics.data.gov.uk/id/local-authority/00FC,Chief Executive,Director Of Public Health,Drug / Alcohol Action Service,Private Contractors,Contract Payments,PH105,17/07/15,361772,1479.84,REVENUE,DR SINHA & DR G DE,108111
North East Lincolnshire Council,http://statistics.data.gov.uk/id/local-authority/00FC,Chief Executive,Director Of Public Health,Drug / Alcohol Action Service,Private Contractors,Contract Payments,PH105,23/07/15,362119,1294.86,REVENUE,PELHAM MEDICAL GROUP,104350
North East Lincolnshire Council,http://statistics.data.gov.uk/id/local-authority/00FC,Chief Executive,Director Of Public Health,Drug / Alcohol Action Service,Private Contractors,Contract Payments,PH105,23/07/15,362118,649.25,REVENUE,DR I D S CHALMERS & DR V O MEIER,104521
North East Lincolnshire Council,http://statistics.data.gov.uk/id/local-authority/00FC,Chief Executive,Director Of Public Health,Drug / Alcohol Action Service,Private Contractors,Contract Payments,PH105,07/07/15,359395,15833.33,REVENUE,FREELANCE NEEDLE EXCHANGE LIMITED,119999
North East Lincolnshire Council,http://statistics.data.gov.uk/id/local-authority/00FC,Chief Executive,Director Of Public Health,Sexual Health,Voluntary Associations,Third Pp - Third Sector,PF101,09/07/15,360341,2331.69,REVENUE,POSITIVE HEALTH,125235
North East Lincolnshire Council,http://statistics.data.gov.uk/id/local-authority/00FC,Chief Executive,Director Of Public Health,Sexual Health,Private Contractors,Contract Payments,PH105,14/07/15,360629,55401,REVENUE,VIRGIN CARE SERVICES LTD,120538
North East Lincolnshire Council,http://statistics.data.gov.uk/id/local-authority/00FC,Chief Executive,Director Of Public Health,Sexual Health,Private Contractors,Third Party Prov - Private,PH101,30/07/15,363089,435,REVENUE,TESCO PHARMACY,106098
North East Lincolnshire Council,http://statistics.data.gov.uk/id/local-authority/00FC,Chief Executive,Director Of Public Health,Sexual Health,Private Contractors,Third Party Prov - Private,PH101,30/07/15,363090,435,REVENUE,ASDA PHARMACY,104011
North East Lincolnshire Council,http://statistics.data.gov.uk/id/local-authority/00FC,Chief Executive,Director Of Public Health,Sexual Health,Private Contractors,Third Party Prov - Private,PH101,13/07/15,360628,255,REVENUE,COTTINGHAM PHARMACY,104020
North East Lincolnshire Council,http://statistics.data.gov.uk/id/local-authority/00FC,Chief Executive,Director Of Public Health,Sexual Health,Other Agencies,Health Charges,PJ131,14/07/15,360378,535.93,REVENUE,THE LEEDS TEACHING HOSPITALS NHS TRUST,110974
North East Lincolnshire Council,http://statistics.data.gov.uk/id/local-authority/00FC,Chief Executive,Director Of Public Health,Sexual Health,Other Agencies,Other,PJ121,30/07/15,363094,960,REVENUE,BEACON MEDICAL CENTRE,109525
North East Lincolnshire Council,http://statistics.data.gov.uk/id/local-authority/00FC,Chief Executive,Director Of Public Health,Sexual Health,Other Agencies,Other,PJ121,30/07/15,363094,360,REVENUE,BEACON MEDICAL CENTRE,109525
North East Lincolnshire Council,http://statistics.data.gov.uk/id/local-authority/00FC,Chief Executive,Director Of Public Health,Sexual Health,Other Agencies,Other,PJ121,30/07/15,363094,280,REVENUE,BEACON MEDICAL CENTRE,109525
North East Lincolnshire Council,http://statistics.data.gov.uk/id/local-authority/00FC,Chief Executive,Director Of Public Health,Sexual Health,Other Agencies,Other,PJ121,15/07/15,360994,2160,REVENUE,THE CHANTRY HEALTH GROUP,108912
North East Lincolnshire Council,http://statistics.data.gov.uk/id/local-authority/00FC,Chief Executive,Director Of Public Health,Sexual Health,Other Agencies,Other,PJ121,15/07/15,360999,1040,REVENUE,THE CHANTRY HEALTH GROUP,108912
North East Lincolnshire Council,http://statistics.data.gov.uk/id/local-authority/00FC,Chief Executive,Director Of Public Health,Sexual Health,Other Agencies,Other,PJ121,09/07/15,360336,320,REVENUE,DR BISWAS & PARTNER,112288
North East Lincolnshire Council,http://statistics.data.gov.uk/id/local-authority/00FC,Chief Executive,Director Of Public Health,Sexual Health,Other Agencies,Other,PJ121,30/07/15,363094,360,REVENUE,BEACON MEDICAL CENTRE,109525
North East Lincolnshire Council,http://statistics.data.gov.uk/id/local-authority/00FC,Chief Executive,Director Of Public Health,Sexual Health,Other Agencies,Other,PJ121,14/07/15,360630,1520,REVENUE,DR HOPPER & PARTNERS,103900
North East Lincolnshire Council,http://statistics.data.gov.uk/id/local-authority/00FC,Chief Executive,Ad Joint Delivery,Local Taxation & Benefits,Miscellaneous Expenses,Debt Recovery Costs,LL111,07/07/15,359418,560,REVENUE,JACOBS CERTIFIED BAILIFFS,101788
North East Lincolnshire Council,http://statistics.data.gov.uk/id/local-authority/00FC,Chief Executive,Ad Joint Delivery,Local Taxation & Benefits,Miscellaneous Expenses,Debt Recovery Costs,LL111,13/07/15,360909,342.6,REVENUE,WILKIN CHAPMAN LLP,110675
North East Lincolnshire Council,http://statistics.data.gov.uk/id/local-authority/00FC,Chief Executive,Ad Joint Delivery,Local Taxation & Benefits,Miscellaneous Expenses,Debt Recovery Costs,LL111,28/07/15,363121,303.53,REVENUE,NEWLYN,123422
North East Lincolnshire Council,http://statistics.data.gov.uk/id/local-authority/00FC,Chief Executive,Ad Joint Delivery,Local Taxation & Benefits,Miscellaneous Expenses,Other Supplies & Services,LL110,14/07/15,361186,4775,REVENUE,INFORM CPI,124803
North East Lincolnshire Council,http://statistics.data.gov.uk/id/local-authority/00FC,Chief Executive,Ad Joint Delivery,Head Commission & Info Systems,Miscellaneous Expenses,Legal Fees - General,LL103,15/07/15,361596,250,REVENUE,BEETENSON & GIBBON SOLICITORS,100514
North East Lincolnshire Council,http://statistics.data.gov.uk/id/local-authority/00FC,Chief Executive,Ad Joint Delivery,Head Commission & Info Systems,Direct Employee Expenses,Agency Staff,EA105,13/07/15,360000,4500,REVENUE,MECOS LTD,128199
North East Lincolnshire Council,http://statistics.data.gov.uk/id/local-authority/00FC,Chief Executive,Ad Joint Delivery,Head Commission & Info Systems,Miscellaneous Expenses,Other Expenses General,LL119,27/07/15,361164,4000,REVENUE,KPMG FEES ACCOUNT,101071
North East Lincolnshire Council,http://statistics.data.gov.uk/id/local-authority/00FC,Chief Executive,Ad Joint Delivery,Head Commission & Info Systems,Consultancy,Consultancy,PL101,17/07/15,361155,1950,REVENUE,ADVANCED BUSINESS SOLUTIONS,101614
North East Lincolnshire Council,http://statistics.data.gov.uk/id/local-authority/00FC,Chief Executive,Ad Joint Delivery,Information Technology,Communications And Computing,Telephones,LF112,30/07/15,364014,255.12,REVENUE,BRITISH TELECOMMUNICATIONS PLC,100974
North East Lincolnshire Council,http://statistics.data.gov.uk/id/local-authority/00FC,Chief Executive,Ad Joint Delivery,Information Technology,Communications And Computing,Telephones,LF112,13/07/15,360873,309.51,REVENUE,VIRGIN MEDIA,107612
North East Lincolnshire Council,http://statistics.data.gov.uk/id/local-authority/00FC,Chief Executive,Ad Joint Delivery,Information Technology,Communications And Computing,Telephones,LF112,13/07/15,360902,2669.5,REVENUE,VIRGIN MEDIA,107612
North East Lincolnshire Council,http://statistics.data.gov.uk/id/local-authority/00FC,Chief Executive,Ad Joint Delivery,Information Technology,Communications And Computing,Telephones,LF112,15/07/15,361032,275.58,REVENUE,VIRGIN MEDIA,107612
North East Lincolnshire Council,http://statistics.data.gov.uk/id/local-authority/00FC,Chief Executive,Ad Joint Delivery,Information Technology,Communications And Computing,Telephones,LF112,13/07/15,360883,264.05,REVENUE,VIRGIN MEDIA,107612
North East Lincolnshire Council,http://statistics.data.gov.uk/id/local-authority/00FC,Chief Executive,Ad Joint Delivery,Information Technology,Communications And Computing,Computer H/Ware - Maintenance,LF106,06/07/15,359819,5000,REVENUE,LEEDS CITY COUNCIL,100545
North East Lincolnshire Council,http://statistics.data.gov.uk/id/local-authority/00FC,Chief Executive,Ad Joint Delivery,Information Technology,Communications And Computing,Computer H/Ware - Purchases,LF105,15/07/15,361058,12375,REVENUE,VIRGIN MEDIA,107612
North East Lincolnshire Council,http://statistics.data.gov.uk/id/local-authority/00FC,Chief Executive,Ad Joint Delivery,Information Technology,Communications And Computing,Computer H/Ware - Purchases,LF105,14/07/15,361043,2200,REVENUE,VIRGIN MEDIA,107612
North East Lincolnshire Council,http://statistics.data.gov.uk/id/local-authority/00FC,Chief Executive,Ad Joint Delivery,Information Technology,Communications And Computing,Computer H/Ware - Purchases,LF105,17/07/15,361850,2500,REVENUE,VIRGIN MEDIA,107612
North East Lincolnshire Council,http://statistics.data.gov.uk/id/local-authority/00FC,Chief Executive,Ad Joint Delivery,Information Technology,Communications And Computing,Computer H/Ware - Purchases,LF105,23/07/15,362185,-65.38,REVENUE,INSIGHT DIRECT (UK) LTD,101011
North East Lincolnshire Council,http://statistics.data.gov.uk/id/local-authority/00FC,Chief Executive,Ad Joint Delivery,Information Technology,Communications And Computing,Computer H/Ware - Purchases,LF105,15/07/15,361010,695.92,REVENUE,VIRGIN MEDIA,107612
North East Lincolnshire Council,http://statistics.data.gov.uk/id/local-authority/00FC,Chief Executive,Ad Joint Delivery,Information Technology,Communications And Computing,Computer H/Ware - Purchases,LF105,09/07/15,360374,387.4,REVENUE,SPECIALIST COMPUTER CENTRES PLC,110715
North East Lincolnshire Council,http://statistics.data.gov.uk/id/local-authority/00FC,Chief Executive,Ad Joint Delivery,Information Technology,Communications And Computing,Computer H/Ware - Purchases,LF105,13/07/15,358066,345.96,REVENUE,DELL COMPUTER CORPORATION LTD,100892
North East Lincolnshire Council,http://statistics.data.gov.uk/id/local-authority/00FC,Chief Executive,Ad Joint Delivery,Information Technology,Communications And Computing,Computer H/Ware - Purchases,LF105,17/07/15,361447,1775.2,REVENUE,VODAFONE LIMITED,103661
North East Lincolnshire Council,http://statistics.data.gov.uk/id/local-authority/00FC,Chief Executive,Ad Joint Delivery,Information Technology,Communications And Computing,Computer H/Ware - Purchases,LF105,17/07/15,361800,1705,REVENUE,PRIME LIGHT ELECTRICAL LTD,128586
North East Lincolnshire Council,http://statistics.data.gov.uk/id/local-authority/00FC,Chief Executive,Ad Joint Delivery,Information Technology,Communications And Computing,Computer H/Ware - Purchases,LF105,13/07/15,358066,1060.64,REVENUE,DELL COMPUTER CORPORATION LTD,100892
North East Lincolnshire Council,http://statistics.data.gov.uk/id/local-authority/00FC,Chief Executive,Ad Joint Delivery,Information Technology,Communications And Computing,Computer H/Ware - Purchases,LF105,30/07/15,363096,454.71,REVENUE,SPECIALIST COMPUTER CENTRES PLC,110715
North East Lincolnshire Council,http://statistics.data.gov.uk/id/local-authority/00FC,Chief Executive,Ad Joint Delivery,Information Technology,Communications And Computing,Computer H/Ware - Purchases,LF105,14/07/15,356308,1461.96,REVENUE,SPECIALIST COMPUTER CENTRES PLC,110715
North East Lincolnshire Council,http://statistics.data.gov.uk/id/local-authority/00FC,Chief Executive,Ad Joint Delivery,Information Technology,Communications And Computing,Computer H/Ware - Purchases,LF105,17/07/15,361163,449,REVENUE,POWER CONTROL LTD,112737
North East Lincolnshire Council,http://statistics.data.gov.uk/id/local-authority/00FC,Chief Executive,Ad Joint Delivery,Information Technology,Communications And Computing,Computer H/Ware - Purchases,LF105,13/07/15,349627,1924,REVENUE,IMERJA LTD,102238
North East Lincolnshire Council,http://statistics.data.gov.uk/id/local-authority/00FC,Chief Executive,Ad Joint Delivery,Information Technology,Communications And Computing,Computer H/Ware - Purchases,LF105,15/07/15,361432,-1924,REVENUE,IMERJA LTD,102238
North East Lincolnshire Council,http://statistics.data.gov.uk/id/local-authority/00FC,Chief Executive,Ad Joint Delivery,Information Technology,Communications And Computing,Computer H/Ware - Purchases,LF105,15/07/15,361420,1924,REVENUE,IMERJA LTD,102238
North East Lincolnshire Council,http://statistics.data.gov.uk/id/local-authority/00FC,Chief Executive,Ad Joint Delivery,Information Technology,Communications And Computing,Computer S/Ware - Maintenance,LF102,09/07/15,360519,829.95,REVENUE,NATIONAL CONSORTIUM FOR EXAMINATION RESULTS,110067
North East Lincolnshire Council,http://statistics.data.gov.uk/id/local-authority/00FC,Chief Executive,Ad Joint Delivery,Information Technology,Communications And Computing,Computer S/Ware - Maintenance,LF102,14/07/15,360733,9500,REVENUE,LEARNING POOL LIMITED,101834
North East Lincolnshire Council,http://statistics.data.gov.uk/id/local-authority/00FC,Chief Executive,Ad Joint Delivery,Information Technology,Communications And Computing,Telephones,LF112,15/07/15,361021,2894.79,REVENUE,VODAFONE LIMITED,101324
North East Lincolnshire Council,http://statistics.data.gov.uk/id/local-authority/00FC,Chief Executive,Ad Joint Delivery,Information Technology,Print Stationery / Gen Off Exp,Photocopier - Running Costs,LD102,31/07/15,362550,280.98,REVENUE,UNITED CARLTON OFFICE SYSTEMS LTD,101652
North East Lincolnshire Council,http://statistics.data.gov.uk/id/local-authority/00FC,Chief Executive,Ad Joint Delivery,Information Technology,Print Stationery / Gen Off Exp,Photocopier - Running Costs,LD102,31/07/15,362541,274.69,REVENUE,UNITED CARLTON OFFICE SYSTEMS LTD,101652
North East Lincolnshire Council,http://statistics.data.gov.uk/id/local-authority/00FC,Chief Executive,Ad Joint Delivery,Information Technology,Print Stationery / Gen Off Exp,Photocopier - Running Costs,LD102,09/07/15,358853,314.12,REVENUE,UNITED CARLTON OFFICE SYSTEMS LTD,101652
North East Lincolnshire Council,http://statistics.data.gov.uk/id/local-authority/00FC,Chief Executive,Ad Joint Delivery,Information Technology,Print Stationery / Gen Off Exp,Photocopier - Running Costs,LD102,02/07/15,358860,378.36,REVENUE,UNITED CARLTON OFFICE SYSTEMS LTD,101652
North East Lincolnshire Council,http://statistics.data.gov.uk/id/local-authority/00FC,Chief Executive,Ad Joint Delivery,Information Technology,Print Stationery / Gen Off Exp,Photocopier - Running Costs,LD102,06/07/15,358861,307.02,REVENUE,UNITED CARLTON OFFICE SYSTEMS LTD,101652
North East Lincolnshire Council,http://statistics.data.gov.uk/id/local-authority/00FC,Chief Executive,Ad Joint Delivery,Information Technology,Print Stationery / Gen Off Exp,Photocopier - Running Costs,LD102,06/07/15,358940,307.03,REVENUE,UNITED CARLTON OFFICE SYSTEMS LTD,101652
North East Lincolnshire Council,http://statistics.data.gov.uk/id/local-authority/00FC,Chief Executive,Ad Joint Delivery,Information Technology,Print Stationery / Gen Off Exp,Photocopier - Running Costs,LD102,02/07/15,358860,307.02,REVENUE,UNITED CARLTON OFFICE SYSTEMS LTD,101652
North East Lincolnshire Council,http://statistics.data.gov.uk/id/local-authority/00FC,Chief Executive,Ad Joint Delivery,Information Technology,Print Stationery / Gen Off Exp,Printing And Stationery,LD103,06/07/15,359502,263,REVENUE,LYRECO UK LIMITED,101120
North East Lincolnshire Council,http://statistics.data.gov.uk/id/local-authority/00FC,Chief Executive,Ad Joint Delivery,Information Technology,Print Stationery / Gen Off Exp,Printing And Stationery,LD103,31/07/15,362541,661.18,REVENUE,UNITED CARLTON OFFICE SYSTEMS LTD,101652
North East Lincolnshire Council,http://statistics.data.gov.uk/id/local-authority/00FC,Chief Executive,Ad Joint Delivery,Information Technology,Print Stationery / Gen Off Exp,Printing And Stationery,LD103,31/07/15,362550,417.23,REVENUE,UNITED CARLTON OFFICE SYSTEMS LTD,101652
North East Lincolnshire Council,http://statistics.data.gov.uk/id/local-authority/00FC,Chief Executive,Ad Joint Delivery,Information Technology,Print Stationery / Gen Off Exp,Printing And Stationery,LD103,06/07/15,358863,369.97,REVENUE,UNITED CARLTON OFFICE SYSTEMS LTD,101652
North East Lincolnshire Council,http://statistics.data.gov.uk/id/local-authority/00FC,Chief Executive,Ad Joint Delivery,Information Technology,Print Stationery / Gen Off Exp,Printing And Stationery,LD103,06/07/15,358940,293.44,REVENUE,UNITED CARLTON OFFICE SYSTEMS LTD,101652
North East Lincolnshire Council,http://statistics.data.gov.uk/id/local-authority/00FC,Chief Executive,Ad Joint Delivery,Information Technology,Print Stationery / Gen Off Exp,Printing And Stationery,LD103,06/07/15,358862,495.17,REVENUE,UNITED CARLTON OFFICE SYSTEMS LTD,101652
North East Lincolnshire Council,http://statistics.data.gov.uk/id/local-authority/00FC,Chief Executive,Ad Joint Delivery,Information Technology,Print Stationery / Gen Off Exp,Printing And Stationery,LD103,02/07/15,358856,288.87,REVENUE,UNITED CARLTON OFFICE SYSTEMS LTD,101652
North East Lincolnshire Council,http://statistics.data.gov.uk/id/local-authority/00FC,Chief Executive,Ad Joint Delivery,Information Technology,Print Stationery / Gen Off Exp,Printing And Stationery,LD103,02/07/15,358852,301.29,REVENUE,UNITED CARLTON OFFICE SYSTEMS LTD,101652
North East Lincolnshire Council,http://statistics.data.gov.uk/id/local-authority/00FC,Chief Executive,Ad Joint Delivery,Community Support Mgmt A/C,Rep Alterations Maint Building,Buildings - Repairs And Maint,GA102,23/07/15,358235,330,REVENUE,COFELY WORKPLACE LIMITED,123983
North East Lincolnshire Council,http://statistics.data.gov.uk/id/local-authority/00FC,Chief Executive,Ad Joint Delivery,Leisure Contracts,Rep Alterations Maint Building,Buildings - Repairs And Maint,GA102,06/07/15,360008,16760,REVENUE,AJET DRAIN SERVICES,102888
North East Lincolnshire Council,http://statistics.data.gov.uk/id/local-authority/00FC,Chief Executive,Ad Joint Delivery,Leisure Contracts,Rep Alterations Maint Building,Buildings - Repairs And Maint,GA102,06/07/15,359981,5600,REVENUE,LUDAFLORS,100547
North East Lincolnshire Council,http://statistics.data.gov.uk/id/local-authority/00FC,Chief Executive,Ad Joint Delivery,Leisure Contracts,Energy Costs,Electricity,GB102,27/07/15,363241,2553.16,REVENUE,NPOWER LIMITED,101414
North East Lincolnshire Council,http://statistics.data.gov.uk/id/local-authority/00FC,Chief Executive,Ad Joint Delivery,Leisure Contracts,Energy Costs,Electricity,GB102,27/07/15,363243,2485.41,REVENUE,NPOWER LIMITED,101414
North East Lincolnshire Council,http://statistics.data.gov.uk/id/local-authority/00FC,Chief Executive,Ad Joint Delivery,Leisure Contracts,Energy Costs,Electricity,GB102,27/07/15,363244,7242.82,REVENUE,NPOWER LIMITED,101414
North East Lincolnshire Council,http://statistics.data.gov.uk/id/local-authority/00FC,Chief Executive,Ad Joint Delivery,Leisure Contracts,Energy Costs,Electricity,GB102,27/07/15,363240,3716.08,REVENUE,NPOWER LIMITED,101414
North East Lincolnshire Council,http://statistics.data.gov.uk/id/local-authority/00FC,Chief Executive,Ad Joint Delivery,Leisure Contracts,Energy Costs,Electricity,GB102,27/07/15,363242,6396.57,REVENUE,NPOWER LIMITED,101414
North East Lincolnshire Council,http://statistics.data.gov.uk/id/local-authority/00FC,Chief Executive,Ad Joint Delivery,Leisure Contracts,Private Contractors,Contract Payments,PH105,27/07/15,362202,725898,REVENUE,LINCS INSPIRE LTD,120610
North East Lincolnshire Council,http://statistics.data.gov.uk/id/local-authority/00FC,Chief Executive,Ad Joint Delivery,Human Resources,Indirect Employee Expenses,Disclosure Checks,EB124,09/07/15,360396,9328,REVENUE,DISCLOSURE & BARRING SERVICE,119180
North East Lincolnshire Council,http://statistics.data.gov.uk/id/local-authority/00FC,Chief Executive,Ad Joint Delivery,Human Resources,Indirect Employee Expenses,Staff Training,EB122,09/07/15,359166,380,REVENUE,THE COLOUR WORKS INTERNATIONAL LTD,109018
North East Lincolnshire Council,http://statistics.data.gov.uk/id/local-authority/00FC,Chief Executive,Ad Joint Delivery,Human Resources,Catering,Catering Costs,LB102,21/07/15,361444,495,REVENUE,NAVIGO,104262
North East Lincolnshire Council,http://statistics.data.gov.uk/id/local-authority/00FC,Chief Executive,Ad Joint Delivery,Human Resources,Indirect Employee Expenses,Staff Training,EB122,31/07/15,361691,1408.48,REVENUE,LINK SUPPORT SERVICES (UK) LTD,130829
North East Lincolnshire Council,http://statistics.data.gov.uk/id/local-authority/00FC,Chief Executive,Ad Joint Delivery,Human Resources,Miscellaneous Expenses,Other Supplies & Services,LL110,17/07/15,361591,4000,REVENUE,EXCITELEARNING,130001
North East Lincolnshire Council,http://statistics.data.gov.uk/id/local-authority/00FC,Chief Executive,Ad Joint Delivery,Human Resources,Indirect Employee Expenses,Staff Training,EB122,07/07/15,359509,420,REVENUE,WAKEFIELD MD COUNCIL,100967
North East Lincolnshire Council,http://statistics.data.gov.uk/id/local-authority/00FC,Chief Executive,Ad Joint Delivery,Human Resources,Indirect Employee Expenses,Staff Training,EB122,13/07/15,361007,650,REVENUE,CIPFA BUSINESS LIMITED,102338
North East Lincolnshire Council,http://statistics.data.gov.uk/id/local-authority/00FC,Chief Executive,Ad Joint Delivery,Human Resources,Indirect Employee Expenses,Staff Training,EB122,30/07/15,362361,690,REVENUE,UNIVERSITY OF LINCOLN,101299
North East Lincolnshire Council,http://statistics.data.gov.uk/id/local-authority/00FC,Chief Executive,Ad Joint Delivery,Human Resources,Indirect Employee Expenses,Staff Training,EB122,02/07/15,359316,1170,REVENUE,MENTAL HEALTH LAWYERS ASSOCIATION,130306
North East Lincolnshire Council,http://statistics.data.gov.uk/id/local-authority/00FC,Chief Executive,Ad Joint Delivery,Human Resources,Indirect Employee Expenses,Staff Training,EB122,30/07/15,362369,345,REVENUE,UNIVERSITY OF LINCOLN,101299
North East Lincolnshire Council,http://statistics.data.gov.uk/id/local-authority/00FC,Chief Executive,Ad Joint Delivery,Human Resources,Indirect Employee Expenses,Staff Training,EB122,02/07/15,358843,300,REVENUE,MR NIGEL K BISHOP,109708
North East Lincolnshire Council,http://statistics.data.gov.uk/id/local-authority/00FC,Chief Executive,Ad Joint Delivery,Human Resources,Indirect Employee Expenses,Staff Training,EB122,15/07/15,361537,495,REVENUE,PENNA PLC,122954
North East Lincolnshire Council,http://statistics.data.gov.uk/id/local-authority/00FC,Chief Executive,Ad Joint Delivery,Human Resources,Indirect Employee Expenses,Staff Training,EB122,02/07/15,358844,421.1,REVENUE,SUE WOOLMORE,111635
North East Lincolnshire Council,http://statistics.data.gov.uk/id/local-authority/00FC,Chief Executive,Ad Joint Delivery,Human Resources,Indirect Employee Expenses,Medical Expenses - Employees,EB112,14/07/15,361154,272.46,REVENUE,N LINCS & GOOLE HOSPITALS NHS,111074
North East Lincolnshire Council,http://statistics.data.gov.uk/id/local-authority/00FC,Chief Executive,Ad Joint Delivery,Human Resources,Indirect Employee Expenses,Medical Expenses - Employees,EB112,13/07/15,360992,1065,REVENUE,NORTH LINCOLNSHIRE COUNCIL,101186
North East Lincolnshire Council,http://statistics.data.gov.uk/id/local-authority/00FC,Chief Executive,Ad Joint Delivery,Human Resources,Indirect Employee Expenses,Medical Expenses - Employees,EB112,15/07/15,361546,995,REVENUE,NORTH LINCOLNSHIRE COUNCIL,101186
North East Lincolnshire Council,http://statistics.data.gov.uk/id/local-authority/00FC,Chief Executive,Ad Joint Delivery,Human Resources,Indirect Employee Expenses,Staff Advertising,EB113,09/07/15,360385,920,REVENUE,PENNA COMMUNICATIONS,102320
North East Lincolnshire Council,http://statistics.data.gov.uk/id/local-authority/00FC,Chief Executive,Ad Joint Delivery,Central Commissioning & Delive,Catering,Provisions,LB101,15/07/15,361594,9099.26,REVENUE,DAIRY CREST LTD,101743
North East Lincolnshire Council,http://statistics.data.gov.uk/id/local-authority/00FC,Chief Executive,Ad Joint Delivery,Central Commissioning & Delive,Catering,Purchase School Meals,LB103,27/07/15,363236,-30,REVENUE,CYGNET CATERING,108880
North East Lincolnshire Council,http://statistics.data.gov.uk/id/local-authority/00FC,Chief Executive,Ad Joint Delivery,Central Commissioning & Delive,Catering,Purchase School Meals,LB103,27/07/15,363237,237459.3,REVENUE,CYGNET CATERING,108880
North East Lincolnshire Council,http://statistics.data.gov.uk/id/local-authority/00FC,Chief Executive,Ad Joint Delivery,Central Commissioning & Delive,Catering,Purchase School Meals,LB103,27/07/15,363238,51242.1,REVENUE,CYGNET CATERING,108880
North East Lincolnshire Council,http://statistics.data.gov.uk/id/local-authority/00FC,Chief Executive,Ad Joint Delivery,Central Commissioning & Delive,Private Contractors,Contract Payments,PH105,28/07/15,363526,1923.89,REVENUE,MATRIX SCM LTD,108117
North East Lincolnshire Council,http://statistics.data.gov.uk/id/local-authority/00FC,Chief Executive,Ad Joint Delivery,Central Commissioning & Delive,Private Contractors,Contract Payments,PH105,28/07/15,363527,25308.41,REVENUE,MATRIX SCM LTD,108117
North East Lincolnshire Council,http://statistics.data.gov.uk/id/local-authority/00FC,Chief Executive,Ad Joint Delivery,Central Commissioning & Delive,Private Contractors,Contract Payments,PH105,28/07/15,363528,9015.55,REVENUE,MATRIX SCM LTD,108117
North East Lincolnshire Council,http://statistics.data.gov.uk/id/local-authority/00FC,Chief Executive,Ad Joint Delivery,Central Commissioning & Delive,Private Contractors,Contract Payments,PH105,28/07/15,363529,5925.92,REVENUE,MATRIX SCM LTD,108117
North East Lincolnshire Council,http://statistics.data.gov.uk/id/local-authority/00FC,Chief Executive,Ad Joint Delivery,Central Commissioning & Delive,Private Contractors,Contract Payments,PH105,28/07/15,363531,6392.05,REVENUE,MATRIX SCM LTD,108117
North East Lincolnshire Council,http://statistics.data.gov.uk/id/local-authority/00FC,Chief Executive,Ad Joint Delivery,Central Commissioning & Delive,Private Contractors,Contract Payments,PH105,28/07/15,363557,5656.75,REVENUE,MATRIX SCM LTD,108117
North East Lincolnshire Council,http://statistics.data.gov.uk/id/local-authority/00FC,Chief Executive,Ad Joint Delivery,Central Commissioning & Delive,Private Contractors,Contract Payments,PH105,28/07/15,363559,307.49,REVENUE,MATRIX SCM LTD,108117
North East Lincolnshire Council,http://statistics.data.gov.uk/id/local-authority/00FC,Chief Executive,Ad Joint Delivery,Bus Support & Customer Serv,Miscellaneous Expenses,Other Supplies & Services,LL110,17/07/15,361701,2896.11,REVENUE,STOR-A-FILE LTD,124466
North East Lincolnshire Council,http://statistics.data.gov.uk/id/local-authority/00FC,Chief Executive,Ad Joint Delivery,Bus Support & Customer Serv,Equip / Furniture / Materials,Goods For Resale,LA123,17/07/15,360334,1102.84,REVENUE,NORTHGATE PUBLIC SERVICES (UK) LTD,101841
North East Lincolnshire Council,http://statistics.data.gov.uk/id/local-authority/00FC,Chief Executive,Ad Joint Delivery,Bus Support & Customer Serv,Private Contractors,External Security Services,PH103,17/07/15,361827,464.51,REVENUE,G4S CASH SERVICES (UK) LIMITED,100952
North East Lincolnshire Council,http://statistics.data.gov.uk/id/local-authority/00FC,Chief Executive,Ad Joint Delivery,Bus Support & Customer Serv,Private Contractors,External Security Services,PH103,09/07/15,360362,4298.68,REVENUE,ALLPAY LIMITED,112919
North East Lincolnshire Council,http://statistics.data.gov.uk/id/local-authority/00FC,Chief Executive,Ad Joint Delivery,Bus Support & Customer Serv,Communications And Computing,Postage,LF111,15/07/15,361393,1302.59,REVENUE,ROYAL MAIL GROUP PLC,101082
North East Lincolnshire Council,http://statistics.data.gov.uk/id/local-authority/00FC,Chief Executive,Ad Joint Delivery,Bus Support & Customer Serv,Communications And Computing,Postage,LF111,15/07/15,361611,1305.24,REVENUE,ROYAL MAIL GROUP PLC,101082
North East Lincolnshire Council,http://statistics.data.gov.uk/id/local-authority/00FC,Chief Executive,Ad Joint Delivery,Bus Support & Customer Serv,Communications And Computing,Postage,LF111,17/07/15,362103,1193.12,REVENUE,ROYAL MAIL GROUP PLC,101082
North East Lincolnshire Council,http://statistics.data.gov.uk/id/local-authority/00FC,Chief Executive,Ad Joint Delivery,Bus Support & Customer Serv,Communications And Computing,Postage,LF111,31/07/15,363997,1085.79,REVENUE,ROYAL MAIL GROUP PLC,101082
North East Lincolnshire Council,http://statistics.data.gov.uk/id/local-authority/00FC,Chief Executive,Ad Joint Delivery,Bus Support & Customer Serv,Communications And Computing,Postage,LF111,06/07/15,358964,2107.35,REVENUE,ROYAL MAIL GROUP PLC,101082
North East Lincolnshire Council,http://statistics.data.gov.uk/id/local-authority/00FC,Chief Executive,Ad Joint Delivery,Bus Support & Customer Serv,Communications And Computing,Postage,LF111,17/07/15,362102,1936.85,REVENUE,ROYAL MAIL GROUP PLC,101082
North East Lincolnshire Council,http://statistics.data.gov.uk/id/local-authority/00FC,Chief Executive,Ad Governance And Democracy,Registrars & Civic Services,Miscellaneous Expenses,Civic Regalia And Events,LL117,27/07/15,362429,600,REVENUE,ROYAL BRITISH LEGION POPPY APPEAL,111623
North East Lincolnshire Council,http://statistics.data.gov.uk/id/local-authority/00FC,Chief Executive,Ad Governance And Democracy,Registrars & Civic Services,Miscellaneous Expenses,Hospitality,LL112,14/07/15,361446,596,REVENUE,SIMPLY DELICIOUS TOO LTD,130625
North East Lincolnshire Council,http://statistics.data.gov.uk/id/local-authority/00FC,Chief Executive,Ad Governance And Democracy,Registrars & Civic Services,Rents,Rent,GC101,30/07/15,364004,1110,REVENUE,CLEETHORPES CHARTER TRUSTEES,101604
North East Lincolnshire Council,http://statistics.data.gov.uk/id/local-authority/00FC,Chief Executive,Ad Governance And Democracy,Communications And Marketing,Equip / Furniture / Materials,Equipment - Purchase,LA101,02/07/15,359122,1450,REVENUE,SUPREME LABELLING LTD,105281
North East Lincolnshire Council,http://statistics.data.gov.uk/id/local-authority/00FC,Chief Executive,Ad Governance And Democracy,Communications And Marketing,Equip / Furniture / Materials,Equipment - Purchase,LA101,02/07/15,358257,1450,REVENUE,SUPREME LABELLING LTD,105281
North East Lincolnshire Council,http://statistics.data.gov.uk/id/local-authority/00FC,Chief Executive,Ad Governance And Democracy,Communications And Marketing,Private Contractors,Third Party Prov - Private,PH101,02/07/15,358777,721,REVENUE,PITNEY BOWES LIMITED,101236
North East Lincolnshire Council,http://statistics.data.gov.uk/id/local-authority/00FC,Chief Executive,Ad Governance And Democracy,Communications And Marketing,Private Contractors,Third Party Prov - Private,PH101,23/07/15,362535,816.6,REVENUE,HOUND ENVELOPES LTD,110120
North East Lincolnshire Council,http://statistics.data.gov.uk/id/local-authority/00FC,Chief Executive,Ad Governance And Democracy,Communications And Marketing,Private Contractors,Third Party Prov - Private,PH101,23/07/15,362535,266,REVENUE,HOUND ENVELOPES LTD,110120
North East Lincolnshire Council,http://statistics.data.gov.uk/id/local-authority/00FC,Chief Executive,Ad Governance And Democracy,Communications And Marketing,Private Contractors,Third Party Prov - Private,PH101,23/07/15,360947,461.82,REVENUE,TOTAL SIGNS AND GRAPHICS LTD,104775
North East Lincolnshire Council,http://statistics.data.gov.uk/id/local-authority/00FC,Chief Executive,Ad Governance And Democracy,Communications And Marketing,Private Contractors,Third Party Prov - Private,PH101,02/07/15,359385,275,REVENUE,SYSTEMATIC PRINT MANAGEMENT LTD,101147
North East Lincolnshire Council,http://statistics.data.gov.uk/id/local-authority/00FC,Chief Executive,Ad Governance And Democracy,Communications And Marketing,Private Contractors,Third Party Prov - Private,PH101,13/07/15,359894,1276,REVENUE,ALPHA CARD COMPACT MEDIA LTD,130094
North East Lincolnshire Council,http://statistics.data.gov.uk/id/local-authority/00FC,Chief Executive,Ad Governance And Democracy,Communications And Marketing,Private Contractors,Third Party Prov - Private,PH101,23/07/15,362220,455,REVENUE,SYSTEMATIC PRINT MANAGEMENT LTD,101147
North East Lincolnshire Council,http://statistics.data.gov.uk/id/local-authority/00FC,Chief Executive,Ad Governance And Democracy,Communications And Marketing,Private Contractors,Third Party Prov - Private,PH101,23/07/15,361148,478,REVENUE,AR PRINTING LTD,100596
North East Lincolnshire Council,http://statistics.data.gov.uk/id/local-authority/00FC,Chief Executive,Ad Governance And Democracy,Communications And Marketing,Private Contractors,Third Party Prov - Private,PH101,23/07/15,362674,-1410,REVENUE,SYSTEMATIC PRINT MANAGEMENT LTD,101147
North East Lincolnshire Council,http://statistics.data.gov.uk/id/local-authority/00FC,Chief Executive,Ad Governance And Democracy,Communications And Marketing,Private Contractors,Third Party Prov - Private,PH101,23/07/15,362216,490,REVENUE,SYSTEMATIC PRINT MANAGEMENT LTD,101147
North East Lincolnshire Council,http://statistics.data.gov.uk/id/local-authority/00FC,Chief Executive,Ad Governance And Democracy,Communications And Marketing,Direct Employee Expenses,Agency Staff,EA105,09/07/15,360330,3200,REVENUE,WALTON MEDIA LTD,126989
North East Lincolnshire Council,http://statistics.data.gov.uk/id/local-authority/00FC,Chief Executive,Ad Governance And Democracy,Communications And Marketing,Print Stationery / Gen Off Exp,Printing And Stationery,LD103,06/07/15,359294,359.79,REVENUE,MAGAZINE WORLD,120005
North East Lincolnshire Council,http://statistics.data.gov.uk/id/local-authority/00FC,Chief Executive,Ad Governance And Democracy,Communications And Marketing,Print Stationery / Gen Off Exp,Printing And Stationery,LD103,15/07/15,360554,600,REVENUE,YOUR VIRTUAL PR LTD,127737
North East Lincolnshire Council,http://statistics.data.gov.uk/id/local-authority/00FC,Chief Executive,Ad Governance And Democracy,Communications And Marketing,Grants And Subscriptions,Subscriptions,LJ101,23/07/15,357699,250,REVENUE,LG COMMUNICATIONS,119708
North East Lincolnshire Council,http://statistics.data.gov.uk/id/local-authority/00FC,Chief Executive,Ad Governance And Democracy,Communications And Marketing,Miscellaneous Expenses,Legal Fees - General,LL103,30/07/15,362682,250,REVENUE,BEETENSON & GIBBON SOLICITORS,100514
North East Lincolnshire Council,http://statistics.data.gov.uk/id/local-authority/00FC,Chief Executive,Ad Governance And Democracy,Elections & Complaints,Indirect Employee Expenses,Staff Training,EB122,23/07/15,362091,602,REVENUE,THE ASSOCIATION OF ELECTORAL ADMINISTRATORS,107770
North East Lincolnshire Council,http://statistics.data.gov.uk/id/local-authority/00FC,Chief Executive,Ad Governance And Democracy,Elections & Complaints,Indirect Employee Expenses,Staff Training,EB122,23/07/15,362090,1000,REVENUE,HALAROSE LIMITED,101974
North East Lincolnshire Council,http://statistics.data.gov.uk/id/local-authority/00FC,Chief Executive,Ad Governance And Democracy,Elections & Complaints,Grants And Subscriptions,Subscriptions,LJ101,15/07/15,361006,340.45,REVENUE,LEXISNEXIS UK,101447
North East Lincolnshire Council,http://statistics.data.gov.uk/id/local-authority/00FC,Chief Executive,Ad Governance And Democracy,Elections & Complaints,Rents,Rent,GC101,13/07/15,359821,19309.1,REVENUE,MEARS LTD,102433
North East Lincolnshire Council,http://statistics.data.gov.uk/id/local-authority/00FC,Chief Executive,Ad Governance And Democracy,Elections & Complaints,Contract Hire-Operating Leases,Vehicles - Contract Hire,JC101,13/07/15,359821,2179.43,REVENUE,MEARS LTD,102433
North East Lincolnshire Council,http://statistics.data.gov.uk/id/local-authority/00FC,Chief Executive,Ad Governance And Democracy,Elections & Complaints,Print Stationery / Gen Off Exp,Printing And Stationery,LD103,23/07/15,362092,1190,REVENUE,PRINT IMAGE NETWORK LTD,103724
North East Lincolnshire Council,http://statistics.data.gov.uk/id/local-authority/00FC,Chief Executive,Ad Governance And Democracy,Elections & Complaints,Communications And Computing,Postage,LF111,09/07/15,360531,2398.7,REVENUE,PRINT IMAGE FACILITIES LLP,125574
North East Lincolnshire Council,http://statistics.data.gov.uk/id/local-authority/00FC,Chief Executive,Ad Governance And Democracy,Elections & Complaints,Communications And Computing,Postage,LF111,06/07/15,359822,868.7,REVENUE,ROYAL MAIL GROUP PLC,101082
North East Lincolnshire Council,http://statistics.data.gov.uk/id/local-authority/00FC,Chief Executive,Ad Governance And Democracy,Elections & Complaints,Communications And Computing,Postage,LF111,17/07/15,362153,1408,REVENUE,ROYAL MAIL GROUP PLC,101082
North East Lincolnshire Council,http://statistics.data.gov.uk/id/local-authority/00FC,Chief Executive,Ad Governance And Democracy,Elections & Complaints,Miscellaneous Expenses,Other Expenses General,LL119,20/07/15,362169,-71.25,REVENUE,SHAW & SONS LTD,100561
North East Lincolnshire Council,http://statistics.data.gov.uk/id/local-authority/00FC,Chief Executive,Ad Governance And Democracy,Elections & Complaints,Miscellaneous Expenses,Other Expenses General,LL119,21/07/15,362167,10198,REVENUE,SHAW & SONS LTD,100561
North East Lincolnshire Council,http://statistics.data.gov.uk/id/local-authority/00FC,Chief Executive,Ad Governance And Democracy,Elections & Complaints,Miscellaneous Expenses,Other Expenses General,LL119,13/07/15,359821,22374.35,REVENUE,MEARS LTD,102433
North East Lincolnshire Council,http://statistics.data.gov.uk/id/local-authority/00FC,Chief Executive,Ad Law,Coroners,Other Agencies,Mortuary Storage Charges,PJ156,07/07/15,359888,4517,REVENUE,N LINCS & GOOLE HOSPITALS NHS,111074
North East Lincolnshire Council,http://statistics.data.gov.uk/id/local-authority/00FC,Chief Executive,Ad Law,Coroners,Other Agencies,Mortuary Storage Charges,PJ156,07/07/15,359903,3323,REVENUE,N LINCS & GOOLE HOSPITALS NHS,111074
North East Lincolnshire Council,http://statistics.data.gov.uk/id/local-authority/00FC,Chief Executive,Ad Law,Coroners,Other Agencies,Mortuary Storage Charges,PJ156,13/07/15,359883,2457,REVENUE,N LINCS & GOOLE HOSPITALS NHS,111074
North East Lincolnshire Council,http://statistics.data.gov.uk/id/local-authority/00FC,Chief Executive,Ad Law,Coroners,Other Agencies,Other,PJ121,21/07/15,336008,324.75,REVENUE,REDACTED PERSONAL INFORMATION,REDACTED PERSONAL INFORMATION
North East Lincolnshire Council,http://statistics.data.gov.uk/id/local-authority/00FC,Chief Executive,Ad Law,Coroners,Other Agencies,Post Mortems,PJ148,07/07/15,359886,1483.49,REVENUE,UNIVERSITY HOSPITALS OF LEICESTER NHS TRUST,107238
North East Lincolnshire Council,http://statistics.data.gov.uk/id/local-authority/00FC,Chief Executive,Ad Law,Coroners,Other Agencies,Post Mortems,PJ148,02/07/15,359118,276.9,REVENUE,REDACTED PERSONAL INFORMATION,REDACTED PERSONAL INFORMATION
North East Lincolnshire Council,http://statistics.data.gov.uk/id/local-authority/00FC,Chief Executive,Ad Law,Coroners,Other Agencies,Post Mortems,PJ148,23/07/15,362226,276.9,REVENUE,REDACTED PERSONAL INFORMATION,REDACTED PERSONAL INFORMATION
North East Lincolnshire Council,http://statistics.data.gov.uk/id/local-authority/00FC,Chief Executive,Ad Law,Coroners,Other Agencies,Post Mortems,PJ148,23/07/15,362554,290.4,REVENUE,REDACTED PERSONAL INFORMATION,REDACTED PERSONAL INFORMATION
North East Lincolnshire Council,http://statistics.data.gov.uk/id/local-authority/00FC,Chief Executive,Ad Law,Coroners,Other Agencies,Post Mortems,PJ148,07/07/15,359884,902.5,REVENUE,N LINCS & GOOLE HOSPITALS NHS,111074
North East Lincolnshire Council,http://statistics.data.gov.uk/id/local-authority/00FC,Chief Executive,Ad Law,Legal Services,Consultancy,Consultancy,PL101,15/07/15,360940,3220,REVENUE,RICKEM LIMITED,129764
North East Lincolnshire Council,http://statistics.data.gov.uk/id/local-authority/00FC,Chief Executive,Ad Law,Legal Services,Miscellaneous Expenses,Legal Fees - General,LL103,17/07/15,362064,1252.73,REVENUE,DR DBR BAILHAM,112147
North East Lincolnshire Council,http://statistics.data.gov.uk/id/local-authority/00FC,Chief Executive,Ad Law,Legal Services,Miscellaneous Expenses,Legal Fees - General,LL103,07/07/15,359996,400,REVENUE,TELEFONICA UK LTD,119678
North East Lincolnshire Council,http://statistics.data.gov.uk/id/local-authority/00FC,Chief Executive,Ad Law,Legal Services,Miscellaneous Expenses,Legal Fees - General,LL103,09/07/15,360521,520,REVENUE,DR ELLIS MOSLEY,104893
North East Lincolnshire Council,http://statistics.data.gov.uk/id/local-authority/00FC,Chief Executive,Ad Law,Legal Services,Miscellaneous Expenses,Legal Fees - General,LL103,13/07/15,350001,3170,REVENUE,DR ELLIS MOSLEY,104893
North East Lincolnshire Council,http://statistics.data.gov.uk/id/local-authority/00FC,Chief Executive,Ad Law,Legal Services,Miscellaneous Expenses,Legal Fees - General,LL103,06/07/15,359599,295.5,REVENUE,LEXTOX DRUG & ALCOHOL TESTING,125634
North East Lincolnshire Council,http://statistics.data.gov.uk/id/local-authority/00FC,Chief Executive,Ad Law,Legal Services,Miscellaneous Expenses,Legal Fees - General,LL103,07/07/15,360003,409.6,REVENUE,MRS TERRY MADDEN (THERESE),130571
North East Lincolnshire Council,http://statistics.data.gov.uk/id/local-authority/00FC,Chief Executive,Ad Law,Legal Services,Miscellaneous Expenses,Legal Fees - General,LL103,09/07/15,360007,732.78,REVENUE,MRS TERRY MADDEN (THERESE),130571
North East Lincolnshire Council,http://statistics.data.gov.uk/id/local-authority/00FC,Chief Executive,Ad Law,Legal Services,Miscellaneous Expenses,Legal Fees - General,LL103,09/07/15,360387,500,REVENUE,SSB LAW,130495
North East Lincolnshire Council,http://statistics.data.gov.uk/id/local-authority/00FC,Chief Executive,Ad Law,Legal Services,Miscellaneous Expenses,Legal Fees - General,LL103,14/07/15,361147,755,REVENUE,BATES & MOUNTAIN SOLICITORS,105051
North East Lincolnshire Council,http://statistics.data.gov.uk/id/local-authority/00FC,Chief Executive,Ad Law,Legal Services,Miscellaneous Expenses,Legal Fees - General,LL103,15/07/15,361089,1068,REVENUE,BOND DICKINSON LLP,121775
North East Lincolnshire Council,http://statistics.data.gov.uk/id/local-authority/00FC,Chief Executive,Ad Law,Legal Services,Miscellaneous Expenses,Legal Fees - General,LL103,02/07/15,359290,483.65,REVENUE,CARTER BROWN LTD,106320
North East Lincolnshire Council,http://statistics.data.gov.uk/id/local-authority/00FC,Chief Executive,Ad Law,Legal Services,Miscellaneous Expenses,Legal Fees - General,LL103,15/07/15,361022,474,REVENUE,ANGLIA DNA SERVICES LTD,120720
North East Lincolnshire Council,http://statistics.data.gov.uk/id/local-authority/00FC,Chief Executive,Ad Law,Legal Services,Miscellaneous Expenses,Legal Fees - General,LL103,14/07/15,361339,690.04,REVENUE,MASON BAGGOTT & GARTON SOLICITORS,111455
North East Lincolnshire Council,http://statistics.data.gov.uk/id/local-authority/00FC,Chief Executive,Ad Law,Legal Services,Miscellaneous Expenses,Legal Fees - General,LL103,15/07/15,360966,1655,REVENUE,MR MICHAEL S BURDON,104432
North East Lincolnshire Council,http://statistics.data.gov.uk/id/local-authority/00FC,Chief Executive,Ad Law,Legal Services,Miscellaneous Expenses,Legal Fees - General,LL103,17/07/15,361343,450,REVENUE,MISS ELIZABETH SHAW,111062
North East Lincolnshire Council,http://statistics.data.gov.uk/id/local-authority/00FC,Chief Executive,Ad Law,Legal Services,Miscellaneous Expenses,Legal Fees - General,LL103,23/07/15,362174,578,REVENUE,MS DEBI MILLER,124336
North East Lincolnshire Council,http://statistics.data.gov.uk/id/local-authority/00FC,Chief Executive,Ad Law,Legal Services,Miscellaneous Expenses,Legal Fees - General,LL103,15/07/15,361026,540,REVENUE,MISS M HARBIN,128807
North East Lincolnshire Council,http://statistics.data.gov.uk/id/local-authority/00FC,Chief Executive,Ad Law,Legal Services,Miscellaneous Expenses,Legal Fees - General,LL103,15/07/15,361429,1512.5,REVENUE,MR MICHAEL S BURDON,104432
North East Lincolnshire Council,http://statistics.data.gov.uk/id/local-authority/00FC,Chief Executive,Ad Law,Legal Services,Miscellaneous Expenses,Legal Fees - General,LL103,09/07/15,359601,1070,REVENUE,MR MICHAEL S BURDON,104432
North East Lincolnshire Council,http://statistics.data.gov.uk/id/local-authority/00FC,Chief Executive,Ad Law,Legal Services,Miscellaneous Expenses,Legal Fees - General,LL103,23/07/15,362400,631.17,REVENUE,PROFESSOR ANN M MORTIMER,111064
North East Lincolnshire Council,http://statistics.data.gov.uk/id/local-authority/00FC,Chief Executive,Ad Law,Legal Services,Miscellaneous Expenses,Legal Fees - General,LL103,15/07/15,361113,391.05,REVENUE,CENTRE FOR PSCHOLOGY LIMITED,108118
North East Lincolnshire Council,http://statistics.data.gov.uk/id/local-authority/00FC,Chief Executive,Ad Law,Legal Services,Miscellaneous Expenses,Legal Fees - General,LL103,14/07/15,361337,334.4,REVENUE,AD LITEM LEGAL SERVICES,104447
North East Lincolnshire Council,http://statistics.data.gov.uk/id/local-authority/00FC,Chief Executive,Ad Law,Legal Services,Miscellaneous Expenses,Legal Fees - General,LL103,14/07/15,334868,425.51,REVENUE,REDACTED PERSONAL INFORMATION,REDACTED PERSONAL INFORMATION
North East Lincolnshire Council,http://statistics.data.gov.uk/id/local-authority/00FC,Deputy Chief Executive,Ad Environment,Cemeteries & Crematorium,Equip / Furniture / Materials,Equipment - Maintenance,LA104,17/07/15,361829,380.69,REVENUE,ARCO LTD,100509
North East Lincolnshire Council,http://statistics.data.gov.uk/id/local-authority/00FC,Deputy Chief Executive,Ad Environment,Cemeteries & Crematorium,Equip / Furniture / Materials,Equipment - Maintenance,LA104,17/07/15,361855,683.96,REVENUE,EDEN SPRINGS UK LTD,101556
North East Lincolnshire Council,http://statistics.data.gov.uk/id/local-authority/00FC,Deputy Chief Executive,Ad Environment,Cemeteries & Crematorium,Equip / Furniture / Materials,Equipment - Purchase,LA101,02/07/15,358402,485,REVENUE,THE COLUMBARIA COMPANY,100621
North East Lincolnshire Council,http://statistics.data.gov.uk/id/local-authority/00FC,Deputy Chief Executive,Ad Environment,Cemeteries & Crematorium,Communications And Computing,Computer S/Ware - Purchases,LF101,30/07/15,363098,454.71,REVENUE,SPECIALIST COMPUTER CENTRES PLC,110715
North East Lincolnshire Council,http://statistics.data.gov.uk/id/local-authority/00FC,Deputy Chief Executive,Ad Environment,Cemeteries & Crematorium,Private Contractors,External Security Services,PH103,27/07/15,362644,309.5,REVENUE,JOHN MOORE SECURITY LTD,100633
North East Lincolnshire Council,http://statistics.data.gov.uk/id/local-authority/00FC,Deputy Chief Executive,Ad Environment,Garage & Fleet Strategy,Direct Transport Costs,Vehicles - Repairs And Maint,JA105,07/07/15,360286,1454.76,REVENUE,FLEET FACTORS LTD,100886
North East Lincolnshire Council,http://statistics.data.gov.uk/id/local-authority/00FC,Deputy Chief Executive,Ad Environment,Garage & Fleet Strategy,Direct Transport Costs,Vehicles - Repairs And Maint,JA105,07/07/15,360245,435.5,REVENUE,B A BUSH & SON LTD,101828
North East Lincolnshire Council,http://statistics.data.gov.uk/id/local-authority/00FC,Deputy Chief Executive,Ad Environment,Garage & Fleet Strategy,Direct Transport Costs,Vehicles - Repairs And Maint,JA105,07/07/15,360249,384.3,REVENUE,FLEET FACTORS LTD,100886
North East Lincolnshire Council,http://statistics.data.gov.uk/id/local-authority/00FC,Deputy Chief Executive,Ad Environment,Garage & Fleet Strategy,Direct Transport Costs,Vehicles - Repairs And Maint,JA105,30/07/15,363544,608.16,REVENUE,FLEET FACTORS LTD,100886
North East Lincolnshire Council,http://statistics.data.gov.uk/id/local-authority/00FC,Deputy Chief Executive,Ad Environment,Garage & Fleet Strategy,Direct Transport Costs,Vehicles - Repairs And Maint,JA105,30/07/15,363545,5064.37,REVENUE,FLEET FACTORS LTD,100886
North East Lincolnshire Council,http://statistics.data.gov.uk/id/local-authority/00FC,Deputy Chief Executive,Ad Environment,Garage & Fleet Strategy,Direct Transport Costs,Vehicles - Repairs And Maint,JA105,30/07/15,363546,1928.7,REVENUE,FLEET FACTORS LTD,100886
North East Lincolnshire Council,http://statistics.data.gov.uk/id/local-authority/00FC,Deputy Chief Executive,Ad Environment,Garage & Fleet Strategy,Direct Transport Costs,Vehicles - Repairs And Maint,JA105,30/07/15,363547,450.34,REVENUE,FLEET FACTORS LTD,100886
North East Lincolnshire Council,http://statistics.data.gov.uk/id/local-authority/00FC,Deputy Chief Executive,Ad Environment,Garage & Fleet Strategy,Direct Transport Costs,Vehicles - Repairs And Maint,JA105,30/07/15,363548,4269.91,REVENUE,FLEET FACTORS LTD,100886
North East Lincolnshire Council,http://statistics.data.gov.uk/id/local-authority/00FC,Deputy Chief Executive,Ad Environment,Garage & Fleet Strategy,Direct Transport Costs,Vehicles - Repairs And Maint,JA105,02/07/15,358702,430,REVENUE,B A BUSH & SON LTD,101828
North East Lincolnshire Council,http://statistics.data.gov.uk/id/local-authority/00FC,Deputy Chief Executive,Ad Environment,Garage & Fleet Strategy,Direct Transport Costs,Vehicles - Repairs And Maint,JA105,07/07/15,359532,430,REVENUE,B A BUSH & SON LTD,101828
North East Lincolnshire Council,http://statistics.data.gov.uk/id/local-authority/00FC,Deputy Chief Executive,Ad Environment,Garage & Fleet Strategy,Direct Transport Costs,Vehicles - Repairs And Maint,JA105,13/07/15,360308,486.46,REVENUE,B A BUSH & SON LTD,101828
North East Lincolnshire Council,http://statistics.data.gov.uk/id/local-authority/00FC,Deputy Chief Executive,Ad Environment,Garage & Fleet Strategy,Direct Transport Costs,Vehicles - Repairs And Maint,JA105,02/07/15,359593,524.16,REVENUE,B A BUSH & SON LTD,101828
North East Lincolnshire Council,http://statistics.data.gov.uk/id/local-authority/00FC,Deputy Chief Executive,Ad Environment,Garage & Fleet Strategy,Direct Transport Costs,Vehicles - Repairs And Maint,JA105,09/07/15,360296,430,REVENUE,B A BUSH & SON LTD,101828
North East Lincolnshire Council,http://statistics.data.gov.uk/id/local-authority/00FC,Deputy Chief Executive,Ad Environment,Garage & Fleet Strategy,Direct Transport Costs,Vehicles - Repairs And Maint,JA105,09/07/15,360311,430,REVENUE,B A BUSH & SON LTD,101828
North East Lincolnshire Council,http://statistics.data.gov.uk/id/local-authority/00FC,Deputy Chief Executive,Ad Environment,Garage & Fleet Strategy,Direct Transport Costs,Vehicles - Repairs And Maint,JA105,02/07/15,359531,4801.62,REVENUE,FLEET FACTORS LTD,100886
North East Lincolnshire Council,http://statistics.data.gov.uk/id/local-authority/00FC,Deputy Chief Executive,Ad Environment,Garage & Fleet Strategy,Direct Transport Costs,Vehicles - Repairs And Maint,JA105,06/07/15,359533,2676.48,REVENUE,FLEET FACTORS LTD,100886
North East Lincolnshire Council,http://statistics.data.gov.uk/id/local-authority/00FC,Deputy Chief Executive,Ad Environment,Garage & Fleet Strategy,Direct Transport Costs,Vehicles - Repairs And Maint,JA105,06/07/15,359534,461.62,REVENUE,FLEET FACTORS LTD,100886
North East Lincolnshire Council,http://statistics.data.gov.uk/id/local-authority/00FC,Deputy Chief Executive,Ad Environment,Garage & Fleet Strategy,Direct Transport Costs,Vehicles - Repairs And Maint,JA105,06/07/15,359535,916.12,REVENUE,FLEET FACTORS LTD,100886
North East Lincolnshire Council,http://statistics.data.gov.uk/id/local-authority/00FC,Deputy Chief Executive,Ad Environment,Garage & Fleet Strategy,Direct Transport Costs,Vehicles - Repairs And Maint,JA105,07/07/15,360272,848.53,REVENUE,FLEET FACTORS LTD,100886
North East Lincolnshire Council,http://statistics.data.gov.uk/id/local-authority/00FC,Deputy Chief Executive,Ad Environment,Garage & Fleet Strategy,Direct Transport Costs,Vehicles - Repairs And Maint,JA105,09/07/15,360277,2911.66,REVENUE,FLEET FACTORS LTD,100886
North East Lincolnshire Council,http://statistics.data.gov.uk/id/local-authority/00FC,Deputy Chief Executive,Ad Environment,Garage & Fleet Strategy,Direct Transport Costs,Vehicles - Repairs And Maint,JA105,16/07/15,361842,259.46,REVENUE,FLEET FACTORS LTD,100886
North East Lincolnshire Council,http://statistics.data.gov.uk/id/local-authority/00FC,Deputy Chief Executive,Ad Environment,Garage & Fleet Strategy,Direct Transport Costs,Vehicles - Repairs And Maint,JA105,07/07/15,359537,3355.51,REVENUE,FLEET FACTORS LTD,100886
North East Lincolnshire Council,http://statistics.data.gov.uk/id/local-authority/00FC,Deputy Chief Executive,Ad Environment,Garage & Fleet Strategy,Direct Transport Costs,Vehicles - Repairs And Maint,JA105,02/07/15,358761,460,REVENUE,HODSON & KAUSS,100620
North East Lincolnshire Council,http://statistics.data.gov.uk/id/local-authority/00FC,Deputy Chief Executive,Ad Environment,Garage & Fleet Strategy,Direct Transport Costs,Vehicles - Repairs And Maint,JA105,30/07/15,363704,430,REVENUE,B A BUSH & SON LTD,101828
North East Lincolnshire Council,http://statistics.data.gov.uk/id/local-authority/00FC,Deputy Chief Executive,Ad Environment,Garage & Fleet Strategy,Direct Transport Costs,Vehicles - Repairs And Maint,JA105,30/07/15,363705,468.22,REVENUE,B A BUSH & SON LTD,101828
North East Lincolnshire Council,http://statistics.data.gov.uk/id/local-authority/00FC,Deputy Chief Executive,Ad Environment,Garage & Fleet Strategy,Direct Transport Costs,Vehicles - Repairs And Maint,JA105,30/07/15,363706,645,REVENUE,B A BUSH & SON LTD,101828
North East Lincolnshire Council,http://statistics.data.gov.uk/id/local-authority/00FC,Deputy Chief Executive,Ad Environment,Garage & Fleet Strategy,Direct Transport Costs,Vehicles - Repairs And Maint,JA105,30/07/15,363725,264.47,REVENUE,B A BUSH & SON LTD,101828
North East Lincolnshire Council,http://statistics.data.gov.uk/id/local-authority/00FC,Deputy Chief Executive,Ad Environment,Garage & Fleet Strategy,Direct Transport Costs,Vehicles - Repairs And Maint,JA105,31/07/15,363720,1290,REVENUE,B A BUSH & SON LTD,101828
North East Lincolnshire Council,http://statistics.data.gov.uk/id/local-authority/00FC,Deputy Chief Executive,Ad Environment,Garage & Fleet Strategy,Direct Transport Costs,Vehicles - Repairs And Maint,JA105,31/07/15,363722,588.78,REVENUE,B A BUSH & SON LTD,101828
North East Lincolnshire Council,http://statistics.data.gov.uk/id/local-authority/00FC,Deputy Chief Executive,Ad Environment,Garage & Fleet Strategy,Direct Transport Costs,Vehicles - Repairs And Maint,JA105,31/07/15,363794,295.57,REVENUE,B A BUSH & SON LTD,101828
North East Lincolnshire Council,http://statistics.data.gov.uk/id/local-authority/00FC,Deputy Chief Executive,Ad Environment,Garage & Fleet Strategy,Clothes Uniforms And Laundry,Laundry,LC103,07/07/15,360401,349.72,REVENUE,JOHNSONS APPARELMASTER,100810
North East Lincolnshire Council,http://statistics.data.gov.uk/id/local-authority/00FC,Deputy Chief Executive,Ad Environment,Grounds And Street Cleansing,Direct Transport Costs,Vehicles - Running Costs,JA104,03/07/15,359598,982.63,REVENUE,ALLSTAR BUSINESS SOLUTIONS LTD,108278
North East Lincolnshire Council,http://statistics.data.gov.uk/id/local-authority/00FC,Deputy Chief Executive,Ad Environment,Grounds And Street Cleansing,Equip / Furniture / Materials,Equipment - Purchase,LA101,23/07/15,359790,1320,REVENUE,FLEET LINE MARKERS LIMITED,100595
North East Lincolnshire Council,http://statistics.data.gov.uk/id/local-authority/00FC,Deputy Chief Executive,Ad Environment,Grounds And Street Cleansing,Equip / Furniture / Materials,Equipment - Purchase,LA101,21/07/15,357367,2450,REVENUE,KERNOCK PARK PLANTS,101259
North East Lincolnshire Council,http://statistics.data.gov.uk/id/local-authority/00FC,Deputy Chief Executive,Ad Environment,Grounds And Street Cleansing,Private Contractors,Contract Payments,PH105,31/07/15,363857,2500,REVENUE,IMMINGHAM TOWN COUNCIL,101597
North East Lincolnshire Council,http://statistics.data.gov.uk/id/local-authority/00FC,Deputy Chief Executive,Ad Environment,Grounds And Street Cleansing,Private Contractors,Contract Payments,PH105,31/07/15,363857,13750,REVENUE,IMMINGHAM TOWN COUNCIL,101597
North East Lincolnshire Council,http://statistics.data.gov.uk/id/local-authority/00FC,Deputy Chief Executive,Ad Environment,Grounds And Street Cleansing,Private Contractors,Third Party Prov - Private,PH101,23/07/15,359877,1280,REVENUE,ONEWAY TM LIMITED,128602
North East Lincolnshire Council,http://statistics.data.gov.uk/id/local-authority/00FC,Deputy Chief Executive,Ad Environment,Grounds And Street Cleansing,Direct Transport Costs,Vehicles - Running Costs,JA104,03/07/15,359598,481.28,REVENUE,ALLSTAR BUSINESS SOLUTIONS LTD,108278
North East Lincolnshire Council,http://statistics.data.gov.uk/id/local-authority/00FC,Deputy Chief Executive,Ad Environment,Grounds And Street Cleansing,Equip / Furniture / Materials,Equipment - Hire,LA102,10/07/15,361040,-150.7,REVENUE,ANGLIAN WATER,100508
North East Lincolnshire Council,http://statistics.data.gov.uk/id/local-authority/00FC,Deputy Chief Executive,Ad Environment,Grounds And Street Cleansing,Equip / Furniture / Materials,Equipment - Hire,LA102,10/07/15,361042,-150.7,REVENUE,ANGLIAN WATER,100508
North East Lincolnshire Council,http://statistics.data.gov.uk/id/local-authority/00FC,Deputy Chief Executive,Ad Environment,Grounds And Street Cleansing,Equip / Furniture / Materials,Equipment - Purchase,LA101,09/07/15,360328,1690,REVENUE,CROMWELL POLYTHENE LTD,101183
North East Lincolnshire Council,http://statistics.data.gov.uk/id/local-authority/00FC,Deputy Chief Executive,Ad Environment,Grounds And Street Cleansing,Private Contractors,Contract Payments,PH105,31/07/15,363857,7500,REVENUE,IMMINGHAM TOWN COUNCIL,101597
North East Lincolnshire Council,http://statistics.data.gov.uk/id/local-authority/00FC,Deputy Chief Executive,Ad Environment,Grounds And Street Cleansing,Rep Alterations Maint Building,Buildings - Repairs And Maint,GA102,31/07/15,362679,675,REVENUE,BCJ CONSTRUCTION LTD,112224
North East Lincolnshire Council,http://statistics.data.gov.uk/id/local-authority/00FC,Deputy Chief Executive,Ad Environment,Grounds And Street Cleansing,Rep Alterations Maint Building,Buildings - Repairs And Maint,GA102,31/07/15,362679,375,REVENUE,BCJ CONSTRUCTION LTD,112224
North East Lincolnshire Council,http://statistics.data.gov.uk/id/local-authority/00FC,Deputy Chief Executive,Ad Environment,Grounds And Street Cleansing,Rep Alterations Maint Building,Buildings - Repairs And Maint,GA102,31/07/15,362679,550,REVENUE,BCJ CONSTRUCTION LTD,112224
North East Lincolnshire Council,http://statistics.data.gov.uk/id/local-authority/00FC,Deputy Chief Executive,Ad Environment,Grounds And Street Cleansing,Rep Alterations Maint Building,Buildings - Repairs And Maint,GA102,31/07/15,362679,437,REVENUE,BCJ CONSTRUCTION LTD,112224
North East Lincolnshire Council,http://statistics.data.gov.uk/id/local-authority/00FC,Deputy Chief Executive,Ad Environment,Grounds And Street Cleansing,Rep Alterations Maint Building,Buildings - Repairs And Maint,GA102,27/07/15,363083,970,REVENUE,TERRY WILLIS,102562
North East Lincolnshire Council,http://statistics.data.gov.uk/id/local-authority/00FC,Deputy Chief Executive,Ad Environment,Grounds And Street Cleansing,Equip / Furniture / Materials,Equipment - Purchase,LA101,21/07/15,358244,310.26,REVENUE,HYDRA INTERNATIONAL LTD,130591
North East Lincolnshire Council,http://statistics.data.gov.uk/id/local-authority/00FC,Deputy Chief Executive,Ad Environment,Grounds And Street Cleansing,Rep Alterations Maint Building,Buildings - Repairs And Maint,GA102,31/07/15,362107,921.15,REVENUE,BCJ CONSTRUCTION LTD,112224
North East Lincolnshire Council,http://statistics.data.gov.uk/id/local-authority/00FC,Deputy Chief Executive,Ad Environment,Grounds And Street Cleansing,Rep Alterations Maint Building,Buildings - Repairs And Maint,GA102,31/07/15,362106,542,REVENUE,BCJ CONSTRUCTION LTD,112224
North East Lincolnshire Council,http://statistics.data.gov.uk/id/local-authority/00FC,Deputy Chief Executive,Ad Environment,Grounds And Street Cleansing,Rep Alterations Maint Building,Buildings - Repairs And Maint,GA102,21/07/15,359881,1150,REVENUE,BCJ CONSTRUCTION LTD,112224
North East Lincolnshire Council,http://statistics.data.gov.uk/id/local-authority/00FC,Deputy Chief Executive,Ad Environment,Neighbourhood Serv Mgmt A/C,Indirect Employee Expenses,Staff Training,EB122,13/07/15,358062,495,REVENUE,PENNA PLC,122954
North East Lincolnshire Council,http://statistics.data.gov.uk/id/local-authority/00FC,Deputy Chief Executive,Ad Environment,Waste Services,Rep Alterations Maint Building,Buildings - Repairs And Maint,GA102,30/07/15,359907,2135,REVENUE,SIGN OF THE TIMES,100575
North East Lincolnshire Council,http://statistics.data.gov.uk/id/local-authority/00FC,Deputy Chief Executive,Ad Environment,Waste Services,Equip / Furniture / Materials,Equipment - Purchase,LA101,13/07/15,360356,296.8,REVENUE,ARCO LTD,100509
North East Lincolnshire Council,http://statistics.data.gov.uk/id/local-authority/00FC,Deputy Chief Executive,Ad Environment,Waste Services,Equip / Furniture / Materials,Equipment - Purchase,LA101,13/07/15,359485,263,REVENUE,ARCO LTD,100509
North East Lincolnshire Council,http://statistics.data.gov.uk/id/local-authority/00FC,Deputy Chief Executive,Ad Environment,Waste Services,Clothes Uniforms And Laundry,Protective Clothing,LC101,30/07/15,360979,730,REVENUE,ARDEN WINCH & CO lTD,122948
North East Lincolnshire Council,http://statistics.data.gov.uk/id/local-authority/00FC,Deputy Chief Executive,Ad Environment,Waste Services,Clothes Uniforms And Laundry,Protective Clothing,LC101,06/07/15,359175,298.54,REVENUE,PARKER MERCHANTING,109415
North East Lincolnshire Council,http://statistics.data.gov.uk/id/local-authority/00FC,Deputy Chief Executive,Ad Environment,Waste Services,Clothes Uniforms And Laundry,Protective Clothing,LC101,30/07/15,360979,320,REVENUE,ARDEN WINCH & CO lTD,122948
North East Lincolnshire Council,http://statistics.data.gov.uk/id/local-authority/00FC,Deputy Chief Executive,Ad Environment,Waste Services,Private Contractors,Third Party Prov - Private,PH101,23/07/15,358247,2053.8,REVENUE,PAGE PAPER LTD,129292
North East Lincolnshire Council,http://statistics.data.gov.uk/id/local-authority/00FC,Deputy Chief Executive,Ad Environment,Waste Services,Private Contractors,Third Party Prov - Private,PH101,23/07/15,358245,4177.53,REVENUE,PAGE PAPER LTD,129292
North East Lincolnshire Council,http://statistics.data.gov.uk/id/local-authority/00FC,Deputy Chief Executive,Ad Environment,Waste Services,Private Contractors,Third Party Prov - Private,PH101,23/07/15,358246,1541.61,REVENUE,PAGE PAPER LTD,129292
North East Lincolnshire Council,http://statistics.data.gov.uk/id/local-authority/00FC,Deputy Chief Executive,Ad Environment,Waste Services,Private Contractors,Third Party Prov - Private,PH101,23/07/15,358842,531.72,REVENUE,PAGE PAPER LTD,129292
North East Lincolnshire Council,http://statistics.data.gov.uk/id/local-authority/00FC,Deputy Chief Executive,Ad Environment,Waste Services,Private Contractors,Third Party Prov - Private,PH101,23/07/15,359902,340.83,REVENUE,PAGE PAPER LTD,129292
North East Lincolnshire Council,http://statistics.data.gov.uk/id/local-authority/00FC,Deputy Chief Executive,Ad Environment,Waste Services,Private Contractors,Third Party Prov - Private,PH101,23/07/15,360353,850,REVENUE,MAYRISE LIMITED,101670
North East Lincolnshire Council,http://statistics.data.gov.uk/id/local-authority/00FC,Deputy Chief Executive,Ad Environment,Waste Disposal And Strategy,Private Contractors,Contract Payments,PH105,20/07/15,362105,REDACTED COMMERCIALLY SENSITIVE,REVENUE,NEWLINCS DEVELOPMENT LTD,101125
North East Lincolnshire Council,http://statistics.data.gov.uk/id/local-authority/00FC,Deputy Chief Executive,Ad Environment,Waste Disposal And Strategy,Private Contractors,Contract Payments Landfill Tax,PH106,20/07/15,362105,REDACTED COMMERCIALLY SENSITIVE,REVENUE,NEWLINCS DEVELOPMENT LTD,101125
North East Lincolnshire Council,http://statistics.data.gov.uk/id/local-authority/00FC,Deputy Chief Executive,Ad Environment,Community Protection,Print Stationery / Gen Off Exp,Publicity,LD105,14/07/15,360649,346.5,REVENUE,NAVIGO,104262
North East Lincolnshire Council,http://statistics.data.gov.uk/id/local-authority/00FC,Deputy Chief Executive,Ad Environment,Community Protection,Private Contractors,Third Party Prov - Private,PH101,10/07/15,360936,450,REVENUE,CONSTRUCTION SERVICES DIRECT LTD,124419
North East Lincolnshire Council,http://statistics.data.gov.uk/id/local-authority/00FC,Deputy Chief Executive,Ad Environment,Community Protection,Private Contractors,Third Party Prov - Private,PH101,06/07/15,360013,3760.86,REVENUE,SANGREAT KENNELS,103270
North East Lincolnshire Council,http://statistics.data.gov.uk/id/local-authority/00FC,Deputy Chief Executive,Ad Environment,Community Protection,Equip / Furniture / Materials,Goods For Resale,LA123,02/07/15,358451,438.98,REVENUE,VIP SYSTEM LTD,101697
North East Lincolnshire Council,http://statistics.data.gov.uk/id/local-authority/00FC,Deputy Chief Executive,Ad Environment,Community Protection,Equip / Furniture / Materials,Goods For Resale,LA123,30/07/15,359908,438.98,REVENUE,VIP SYSTEM LTD,101697
North East Lincolnshire Council,http://statistics.data.gov.uk/id/local-authority/00FC,Deputy Chief Executive,Ad Environment,Community Protection,Equip / Furniture / Materials,Goods For Resale,LA123,02/07/15,358451,447.64,REVENUE,VIP SYSTEM LTD,101697
North East Lincolnshire Council,http://statistics.data.gov.uk/id/local-authority/00FC,Deputy Chief Executive,Ad Environment,Community Protection,Miscellaneous Expenses,Other Supplies & Services,LL110,21/07/15,360568,347,REVENUE,INTELLIGENT DATA SYSTEMS (UK) LTD,128734
North East Lincolnshire Council,http://statistics.data.gov.uk/id/local-authority/00FC,Deputy Chief Executive,Ad Environment,Community Protection,Other Local Authorities,Third Pp - Other Local Auth,PC101,15/07/15,360316,8661,REVENUE,REDACTED PERSONAL INFORMATION,REDACTED PERSONAL INFORMATION
North East Lincolnshire Council,http://statistics.data.gov.uk/id/local-authority/00FC,Deputy Chief Executive,Ad Environment,Community Protection,Miscellaneous Expenses,Environmental/Health Analysis,LL120,23/07/15,359987,1054.74,REVENUE,ALCONTROL LABORATORIES,100899
North East Lincolnshire Council,http://statistics.data.gov.uk/id/local-authority/00FC,Deputy Chief Executive,Ad Early Intervention,Integrated Youth Services,Cleaning And Domestic Supplies,Refuse Collection,GH104,30/07/15,363084,818.8,REVENUE,GRIMSBY OPERATIONS LTD,101116
North East Lincolnshire Council,http://statistics.data.gov.uk/id/local-authority/00FC,Deputy Chief Executive,Ad Early Intervention,Integrated Youth Services,Grants And Subscriptions,Subscriptions,LJ101,07/07/15,359612,320,REVENUE,BACP,105204
North East Lincolnshire Council,http://statistics.data.gov.uk/id/local-authority/00FC,Deputy Chief Executive,Ad Early Intervention,Integrated Youth Services,Contributions To Provisions,Contributions - Third Sector,LK102,13/07/15,360888,270,REVENUE,GRIMSBY TOWN FOOTBALL IN THE COMMUNITY,100978
North East Lincolnshire Council,http://statistics.data.gov.uk/id/local-authority/00FC,Deputy Chief Executive,Ad Early Intervention,Integrated Youth Services,Contributions To Provisions,Contributions - Third Sector,LK102,13/07/15,360892,616,REVENUE,GRIMSBY TOWN FOOTBALL IN THE COMMUNITY,100978
North East Lincolnshire Council,http://statistics.data.gov.uk/id/local-authority/00FC,Deputy Chief Executive,Ad Early Intervention,Integrated Youth Services,Private Contractors,Contract Payments,PH105,23/07/15,362402,55595.08,REVENUE,GRIMSBY CLEETHORPES & HUMBER REGION YMCA,100305
North East Lincolnshire Council,http://statistics.data.gov.uk/id/local-authority/00FC,Deputy Chief Executive,Ad Early Intervention,Integrated Youth Services,Equip / Furniture / Materials,Equipment - Purchase,LA101,21/07/15,362356,2260.82,REVENUE,TRADE UK ACCOUNT,104939
North East Lincolnshire Council,http://statistics.data.gov.uk/id/local-authority/00FC,Deputy Chief Executive,Ad Early Intervention,Integrated Youth Services,Miscellaneous Expenses,Legal Fees - General,LL103,15/07/15,361153,250,REVENUE,BEETENSON & GIBBON SOLICITORS,100514
North East Lincolnshire Council,http://statistics.data.gov.uk/id/local-authority/00FC,Deputy Chief Executive,Ad Early Intervention,Integrated Youth Services,Voluntary Associations,Third Pp - Third Sector,PF101,30/07/15,363185,13500,REVENUE,SHALOM YOUTH PROJECT,103924
North East Lincolnshire Council,http://statistics.data.gov.uk/id/local-authority/00FC,Deputy Chief Executive,Ad Early Intervention,Integrated Youth Services,Print Stationery / Gen Off Exp,Advertising,LD104,27/07/15,362705,995,REVENUE,AMVALE LIMITED,101030
North East Lincolnshire Council,http://statistics.data.gov.uk/id/local-authority/00FC,Deputy Chief Executive,Ad Early Intervention,Integrated Youth Services,Print Stationery / Gen Off Exp,Advertising,LD104,27/07/15,362706,2150,REVENUE,DELI-LICIOUS,101903
North East Lincolnshire Council,http://statistics.data.gov.uk/id/local-authority/00FC,Deputy Chief Executive,Ad Early Intervention,Childrens Health,Equip / Furniture / Materials,Equipment - Purchase,LA101,02/07/15,359107,360,REVENUE,E H ADVERTISING LIMITED,101403
North East Lincolnshire Council,http://statistics.data.gov.uk/id/local-authority/00FC,Deputy Chief Executive,Ad Early Intervention,Childrens Health,Communications And Computing,Telephones,LF112,09/07/15,359912,276.19,REVENUE,FRESHNEY GREEN PCC,105080
North East Lincolnshire Council,http://statistics.data.gov.uk/id/local-authority/00FC,Deputy Chief Executive,Ad Early Intervention,Childrens Health,Equip / Furniture / Materials,Equipment - Maintenance,LA104,09/07/15,360592,276.41,REVENUE,CULL PAPERLESS SOLUTIONS LTD,121735
North East Lincolnshire Council,http://statistics.data.gov.uk/id/local-authority/00FC,Deputy Chief Executive,Ad Early Intervention,Childrens Health,Private Contractors,Third Party Prov - Private,PH101,31/07/15,363909,2667,REVENUE,NHS NORTH YORKSHIRE AND HUMBER CSU,121292
North East Lincolnshire Council,http://statistics.data.gov.uk/id/local-authority/00FC,Deputy Chief Executive,Ad Early Intervention,Childrens Health,Other Agencies,Health Charges,PJ131,30/07/15,362659,950,REVENUE,CASTLEROCK RECRUITMENT GROUP,119098
North East Lincolnshire Council,http://statistics.data.gov.uk/id/local-authority/00FC,Deputy Chief Executive,Ad Early Intervention,Childrens Health,Other Agencies,Health Charges,PJ131,23/07/15,362677,950,REVENUE,CASTLEROCK RECRUITMENT GROUP,119098
North East Lincolnshire Council,http://statistics.data.gov.uk/id/local-authority/00FC,Deputy Chief Executive,Ad Early Intervention,Childrens Health,Other Agencies,Health Charges,PJ131,30/07/15,362678,950,REVENUE,CASTLEROCK RECRUITMENT GROUP,119098
North East Lincolnshire Council,http://statistics.data.gov.uk/id/local-authority/00FC,Deputy Chief Executive,Ad Early Intervention,Family Hubs,Rep Alterations Maint Building,Buildings - Repairs And Maint,GA102,02/07/15,358955,340,REVENUE,ETON-LINCS LIMITED,101510
North East Lincolnshire Council,http://statistics.data.gov.uk/id/local-authority/00FC,Deputy Chief Executive,Ad Early Intervention,Family Hubs,Energy Costs,Electricity,GB102,06/07/15,359831,1288.86,REVENUE,NPOWER LIMITED,101414
North East Lincolnshire Council,http://statistics.data.gov.uk/id/local-authority/00FC,Deputy Chief Executive,Ad Early Intervention,Family Hubs,Energy Costs,Gas,GB101,23/07/15,362177,444.61,REVENUE,BRITISH GAS TRADING LTD,101507
North East Lincolnshire Council,http://statistics.data.gov.uk/id/local-authority/00FC,Deputy Chief Executive,Ad Early Intervention,Family Hubs,Cleaning And Domestic Supplies,Cleaning - Services,GH102,07/07/15,359901,544.87,REVENUE,FUTURE CLEANING SERVICES LTD,102557
North East Lincolnshire Council,http://statistics.data.gov.uk/id/local-authority/00FC,Deputy Chief Executive,Ad Early Intervention,Family Hubs,Cleaning And Domestic Supplies,Refuse Collection,GH104,02/07/15,359616,406.12,REVENUE,BELL WASTE CONTROL,101433
North East Lincolnshire Council,http://statistics.data.gov.uk/id/local-authority/00FC,Deputy Chief Executive,Ad Early Intervention,Family Hubs,Miscellaneous Expenses,Legal Fees - General,LL103,17/07/15,361152,250,REVENUE,BEETENSON & GIBBON SOLICITORS,100514
North East Lincolnshire Council,http://statistics.data.gov.uk/id/local-authority/00FC,Deputy Chief Executive,Ad Early Intervention,Family Hubs,Rep Alterations Maint Building,Buildings - Repairs And Maint,GA102,13/07/15,360661,280.97,REVENUE,STANNAH LIFT SERVICES LTD,100622
North East Lincolnshire Council,http://statistics.data.gov.uk/id/local-authority/00FC,Deputy Chief Executive,Ad Early Intervention,Family Hubs,Rep Alterations Maint Building,Buildings - Repairs And Maint,GA102,02/07/15,358748,994,REVENUE,C & G ENGINEERING SERVICES,100637
North East Lincolnshire Council,http://statistics.data.gov.uk/id/local-authority/00FC,Deputy Chief Executive,Ad Early Intervention,Family Hubs,Cleaning And Domestic Supplies,Cleaning - Services,GH102,23/07/15,362171,612,REVENUE,FOR UNDER FIVES LTD,100647
North East Lincolnshire Council,http://statistics.data.gov.uk/id/local-authority/00FC,Deputy Chief Executive,Ad Early Intervention,Family Hubs,Energy Costs,Electricity,GB102,02/07/15,359451,710.94,REVENUE,NPOWER LIMITED,101414
North East Lincolnshire Council,http://statistics.data.gov.uk/id/local-authority/00FC,Deputy Chief Executive,Ad Early Intervention,Family Hubs,Water Services,Water,GE101,02/07/15,359196,292.65,REVENUE,ANGLIAN WATER,100508
North East Lincolnshire Council,http://statistics.data.gov.uk/id/local-authority/00FC,Deputy Chief Executive,Ad Early Intervention,Family Hubs,Cleaning And Domestic Supplies,Cleaning - Consumables,GH103,31/07/15,364009,-10.82,REVENUE,PETER HOGARTH & SONS LTD,100815
North East Lincolnshire Council,http://statistics.data.gov.uk/id/local-authority/00FC,Deputy Chief Executive,Ad Early Intervention,Family Hubs,Energy Costs,Electricity,GB102,23/07/15,362516,640.36,REVENUE,EASTFIELD PRIMARY ACADEMY,121907
North East Lincolnshire Council,http://statistics.data.gov.uk/id/local-authority/00FC,Deputy Chief Executive,Ad Early Intervention,Family Hubs,Energy Costs,Heating Fuel,GB103,30/07/15,362515,604.67,REVENUE,EASTFIELD PRIMARY ACADEMY,121907
North East Lincolnshire Council,http://statistics.data.gov.uk/id/local-authority/00FC,Deputy Chief Executive,Ad Early Intervention,Family Hubs,Cleaning And Domestic Supplies,Cleaning - Services,GH102,23/07/15,362529,252.72,REVENUE,PHS GROUP LTD,100554
North East Lincolnshire Council,http://statistics.data.gov.uk/id/local-authority/00FC,Deputy Chief Executive,Ad Early Intervention,Family Hubs,Energy Costs,Gas,GB101,14/07/15,360553,367.08,REVENUE,THRUNSCOE PRIMARY AND NURSERY ACADEMY,118749
North East Lincolnshire Council,http://statistics.data.gov.uk/id/local-authority/00FC,Deputy Chief Executive,Ad Early Intervention,Family Hubs,Cleaning And Domestic Supplies,Cleaning - Services,GH102,14/07/15,360553,338.52,REVENUE,THRUNSCOE PRIMARY AND NURSERY ACADEMY,118749
North East Lincolnshire Council,http://statistics.data.gov.uk/id/local-authority/00FC,Deputy Chief Executive,Ad Early Intervention,Family Hubs,Cleaning And Domestic Supplies,Cleaning - Services,GH102,14/07/15,360553,385.72,REVENUE,THRUNSCOE PRIMARY AND NURSERY ACADEMY,118749
North East Lincolnshire Council,http://statistics.data.gov.uk/id/local-authority/00FC,Deputy Chief Executive,Ad Early Intervention,Family Hubs,Energy Costs,Electricity,GB102,13/07/15,360635,348.63,REVENUE,WILLOWS PRIMARY ACADEMY,120478
North East Lincolnshire Council,http://statistics.data.gov.uk/id/local-authority/00FC,Deputy Chief Executive,Ad Early Intervention,Family Hubs,Energy Costs,Gas,GB101,13/07/15,360636,547.13,REVENUE,WILLOWS PRIMARY ACADEMY,120478
North East Lincolnshire Council,http://statistics.data.gov.uk/id/local-authority/00FC,Deputy Chief Executive,Ad Early Intervention,Family Hubs,Cleaning And Domestic Supplies,Cleaning - Services,GH102,09/07/15,360367,710.78,REVENUE,FUTURE CLEANING SERVICES LTD,102557
North East Lincolnshire Council,http://statistics.data.gov.uk/id/local-authority/00FC,Deputy Chief Executive,Ad Early Intervention,Family Hubs,Cleaning And Domestic Supplies,Refuse Collection,GH104,07/07/15,359486,338,REVENUE,BIFFA WASTE SERVICES LTD,100515
North East Lincolnshire Council,http://statistics.data.gov.uk/id/local-authority/00FC,Deputy Chief Executive,Ad Early Intervention,Family Hubs,Cleaning And Domestic Supplies,Cleaning - Services,GH102,09/07/15,360366,885,REVENUE,FUTURE CLEANING SERVICES LTD,102557
North East Lincolnshire Council,http://statistics.data.gov.uk/id/local-authority/00FC,Deputy Chief Executive,Ad Early Intervention,Family Hubs,Cleaning And Domestic Supplies,Cleaning - Services,GH102,15/07/15,361011,505.09,REVENUE,FUTURE CLEANING SERVICES LTD,102557
North East Lincolnshire Council,http://statistics.data.gov.uk/id/local-authority/00FC,Deputy Chief Executive,Ad Early Intervention,Family Hubs,Cleaning And Domestic Supplies,Refuse Collection,GH104,15/07/15,360995,804.56,REVENUE,PHS GROUP LTD,100554
North East Lincolnshire Council,http://statistics.data.gov.uk/id/local-authority/00FC,Deputy Chief Executive,Ad Early Intervention,Family Hubs,Other Agencies,Child Care Payments,PJ104,17/07/15,362156,588.91,REVENUE,FOR UNDER FIVES,101931
North East Lincolnshire Council,http://statistics.data.gov.uk/id/local-authority/00FC,Deputy Chief Executive,Ad Early Intervention,Family Hubs,Other Agencies,Child Care Payments,PJ104,23/07/15,362161,542.93,REVENUE,FOR UNDER FIVES,101931
North East Lincolnshire Council,http://statistics.data.gov.uk/id/local-authority/00FC,Deputy Chief Executive,Ad Early Intervention,Family Hubs,Other Agencies,Child Care Payments,PJ104,27/07/15,362520,563.39,REVENUE,IMMINGHAM DAY NURSERY,100998
North East Lincolnshire Council,http://statistics.data.gov.uk/id/local-authority/00FC,Deputy Chief Executive,Ad Early Intervention,Family Hubs,Other Agencies,Child Care Payments,PJ104,27/07/15,362521,734.94,REVENUE,IMMINGHAM DAY NURSERY,100998
North East Lincolnshire Council,http://statistics.data.gov.uk/id/local-authority/00FC,Deputy Chief Executive,Ad Early Intervention,Family Hubs,Other Agencies,Child Care Payments,PJ104,17/07/15,361805,252,REVENUE,FOR UNDER FIVES (QUEENSWAY),102496
North East Lincolnshire Council,http://statistics.data.gov.uk/id/local-authority/00FC,Deputy Chief Executive,Ad Early Intervention,Family Hubs,Other Agencies,Child Care Payments,PJ104,17/07/15,361809,259.04,REVENUE,PRE-SCHOOL LEARNING ALLIANCE,107441
North East Lincolnshire Council,http://statistics.data.gov.uk/id/local-authority/00FC,Deputy Chief Executive,Ad Early Intervention,Family Hubs,Other Agencies,Child Care Payments,PJ104,23/07/15,361822,250.04,REVENUE,PRE-SCHOOL LEARNING ALLIANCE,107441
North East Lincolnshire Council,http://statistics.data.gov.uk/id/local-authority/00FC,Deputy Chief Executive,Ad Early Intervention,Family Hubs,Other Agencies,Child Care Payments,PJ104,23/07/15,361895,259.04,REVENUE,PRE-SCHOOL LEARNING ALLIANCE,107441
North East Lincolnshire Council,http://statistics.data.gov.uk/id/local-authority/00FC,Deputy Chief Executive,Ad Early Intervention,Family Hubs,Catering,Provisions,LB101,02/07/15,359109,1000,REVENUE,TESCO STORES LIMITED,102576
North East Lincolnshire Council,http://statistics.data.gov.uk/id/local-authority/00FC,Deputy Chief Executive,Ad Early Intervention,Family Hubs,Other Agencies,Child Care Payments,PJ104,15/07/15,361538,1281,REVENUE,FOR UNDER FIVES LTD,100647
North East Lincolnshire Council,http://statistics.data.gov.uk/id/local-authority/00FC,Deputy Chief Executive,Ad Early Intervention,Family Hubs,Other Agencies,Child Care Payments,PJ104,06/07/15,359786,567,REVENUE,FOR UNDER FIVES LTD,100647
North East Lincolnshire Council,http://statistics.data.gov.uk/id/local-authority/00FC,Deputy Chief Executive,Ad Early Intervention,Family Hubs,Other Agencies,Child Care Payments,PJ104,30/07/15,363110,448,REVENUE,FOR UNDER FIVES LTD,100647
North East Lincolnshire Council,http://statistics.data.gov.uk/id/local-authority/00FC,Deputy Chief Executive,Ad Early Intervention,Community Learning Services,Miscellaneous Expenses,Activities - Service Users,LL114,28/07/15,363123,415.54,REVENUE,COMMUNITY LEARNING CENTRE,110635
North East Lincolnshire Council,http://statistics.data.gov.uk/id/local-authority/00FC,Deputy Chief Executive,Ad Early Intervention,Community Learning Services,Miscellaneous Expenses,Other Expenses General,LL119,14/07/15,361361,11265,REVENUE,THE CAMBRIDGE PARK ACADEMY,107472
North East Lincolnshire Council,http://statistics.data.gov.uk/id/local-authority/00FC,Deputy Chief Executive,Ad Early Intervention,Community Learning Services,Miscellaneous Expenses,Other Expenses General,LL119,14/07/15,361360,5633,REVENUE,THE CAMBRIDGE PARK ACADEMY,107472
North East Lincolnshire Council,http://statistics.data.gov.uk/id/local-authority/00FC,Deputy Chief Executive,Ad Early Intervention,Community Learning Services,Equip / Furniture / Materials,Vending Machines,LA115,14/07/15,361431,-41.03,REVENUE,PELICAN ROUGE COFFEE SOLUTIONS LIMITED,130360
North East Lincolnshire Council,http://statistics.data.gov.uk/id/local-authority/00FC,Deputy Chief Executive,Ad Early Intervention,Community Learning Services,Miscellaneous Expenses,Activities - Service Users,LL114,21/07/15,362526,440,REVENUE,FEDERATION FOR INDUSTRY SECTOR SKILLS,121731
North East Lincolnshire Council,http://statistics.data.gov.uk/id/local-authority/00FC,Deputy Chief Executive,Ad Early Intervention,Community Learning Services,Miscellaneous Expenses,Activities - Service Users,LL114,07/07/15,359948,440,REVENUE,FEDERATION FOR INDUSTRY SECTOR SKILLS,121731
North East Lincolnshire Council,http://statistics.data.gov.uk/id/local-authority/00FC,Deputy Chief Executive,Ad Early Intervention,Community Learning Services,Miscellaneous Expenses,Exam Fees,LL115,30/07/15,363875,308,REVENUE,CITY & GUILDS,100645
North East Lincolnshire Council,http://statistics.data.gov.uk/id/local-authority/00FC,Deputy Chief Executive,Ad Early Intervention,Community Learning Services,Miscellaneous Expenses,Exam Fees,LL115,30/07/15,363996,405,REVENUE,NOCN,123052
North East Lincolnshire Council,http://statistics.data.gov.uk/id/local-authority/00FC,Deputy Chief Executive,Ad Early Intervention,Community Learning Services,Miscellaneous Expenses,Exam Fees,LL115,28/07/15,363123,284.46,REVENUE,COMMUNITY LEARNING CENTRE,110635
North East Lincolnshire Council,http://statistics.data.gov.uk/id/local-authority/00FC,Deputy Chief Executive,Ad Early Intervention,Community Learning Services,Miscellaneous Expenses,Exam Fees,LL115,30/07/15,363880,437,REVENUE,COUNCIL FOR AWARDS IN CARE HEALTH & EDUCATION,103423
North East Lincolnshire Council,http://statistics.data.gov.uk/id/local-authority/00FC,Deputy Chief Executive,Ad Early Intervention,Integ Local Service Delivery,Private Contractors,Third Party Prov - Private,PH101,06/07/15,359861,2067,REVENUE,CANON PETER HALL CE PRIMARY ACADEMY,126646
North East Lincolnshire Council,http://statistics.data.gov.uk/id/local-authority/00FC,Deputy Chief Executive,Ad Early Intervention,Integ Local Service Delivery,Private Contractors,Third Party Prov - Private,PH101,06/07/15,359853,2194.2,REVENUE,EASTFIELD PRIMARY ACADEMY,121907
North East Lincolnshire Council,http://statistics.data.gov.uk/id/local-authority/00FC,Deputy Chief Executive,Ad Early Intervention,Integ Local Service Delivery,Private Contractors,Third Party Prov - Private,PH101,06/07/15,359834,1717.2,REVENUE,EDWARD HENEAGE PRIMARY (ACADEMY),111742
North East Lincolnshire Council,http://statistics.data.gov.uk/id/local-authority/00FC,Deputy Chief Executive,Ad Early Intervention,Integ Local Service Delivery,Private Contractors,Third Party Prov - Private,PH101,06/07/15,359858,2480.4,REVENUE,ELLISTON PRIMARY SCHOOL,126466
North East Lincolnshire Council,http://statistics.data.gov.uk/id/local-authority/00FC,Deputy Chief Executive,Ad Early Intervention,Integ Local Service Delivery,Private Contractors,Third Party Prov - Private,PH101,06/07/15,359960,763.2,REVENUE,GREAT COATES PRIMARY SCHOOL,101104
North East Lincolnshire Council,http://statistics.data.gov.uk/id/local-authority/00FC,Deputy Chief Executive,Ad Early Intervention,Integ Local Service Delivery,Private Contractors,Third Party Prov - Private,PH101,06/07/15,359841,1812.6,REVENUE,MACAULAY PRIMARY ACADEMY,112680
North East Lincolnshire Council,http://statistics.data.gov.uk/id/local-authority/00FC,Deputy Chief Executive,Ad Early Intervention,Integ Local Service Delivery,Private Contractors,Third Party Prov - Private,PH101,06/07/15,359857,1431,REVENUE,OASIS ACADEMY SCHOOL (NUNSTHORPE SCHOOL),122861
North East Lincolnshire Council,http://statistics.data.gov.uk/id/local-authority/00FC,Deputy Chief Executive,Ad Early Intervention,Integ Local Service Delivery,Private Contractors,Third Party Prov - Private,PH101,06/07/15,359849,477,REVENUE,OLD CLEE PRIMARY ACADEMY,119822
North East Lincolnshire Council,http://statistics.data.gov.uk/id/local-authority/00FC,Deputy Chief Executive,Ad Early Intervention,Integ Local Service Delivery,Private Contractors,Third Party Prov - Private,PH101,06/07/15,359854,2938.32,REVENUE,REYNOLDS PRIMARY ACADEMY,122175
North East Lincolnshire Council,http://statistics.data.gov.uk/id/local-authority/00FC,Deputy Chief Executive,Ad Early Intervention,Integ Local Service Delivery,Private Contractors,Third Party Prov - Private,PH101,06/07/15,359962,858.6,REVENUE,SCARTHO INFANTS SCHOOL,120365
North East Lincolnshire Council,http://statistics.data.gov.uk/id/local-authority/00FC,Deputy Chief Executive,Ad Early Intervention,Integ Local Service Delivery,Private Contractors,Third Party Prov - Private,PH101,06/07/15,359837,858.6,REVENUE,ORMISTON SOUTH PARADE ACADEMY,111750
North East Lincolnshire Council,http://statistics.data.gov.uk/id/local-authority/00FC,Deputy Chief Executive,Ad Early Intervention,Integ Local Service Delivery,Private Contractors,Third Party Prov - Private,PH101,06/07/15,359845,1812.6,REVENUE,ST MARYS CATHOLIC PRIMARY VOLUNTARY ACADEMY,115108
North East Lincolnshire Council,http://statistics.data.gov.uk/id/local-authority/00FC,Deputy Chief Executive,Ad Early Intervention,Integ Local Service Delivery,Private Contractors,Third Party Prov - Private,PH101,06/07/15,359839,1717.2,REVENUE,STRAND PRIMARY ACADEMY,111862
North East Lincolnshire Council,http://statistics.data.gov.uk/id/local-authority/00FC,Deputy Chief Executive,Ad Early Intervention,Integ Local Service Delivery,Private Contractors,Third Party Prov - Private,PH101,06/07/15,359846,934.92,REVENUE,THRUNSCOE PRIMARY AND NURSERY ACADEMY,118749
North East Lincolnshire Council,http://statistics.data.gov.uk/id/local-authority/00FC,Deputy Chief Executive,Ad Early Intervention,Integ Local Service Delivery,Private Contractors,Third Party Prov - Private,PH101,06/07/15,359832,2098.8,REVENUE,WEELSBY ACADEMY,111161
North East Lincolnshire Council,http://statistics.data.gov.uk/id/local-authority/00FC,Deputy Chief Executive,Ad Early Intervention,Integ Local Service Delivery,Private Contractors,Third Party Prov - Private,PH101,06/07/15,359851,286.2,REVENUE,WILLOWS PRIMARY ACADEMY,120478
North East Lincolnshire Council,http://statistics.data.gov.uk/id/local-authority/00FC,Deputy Chief Executive,Ad Early Intervention,Integ Local Service Delivery,Private Contractors,Third Party Prov - Private,PH101,06/07/15,359842,477,REVENUE,YARBOROUGH ACADEMY,112852
North East Lincolnshire Council,http://statistics.data.gov.uk/id/local-authority/00FC,Deputy Chief Executive,Ad Early Intervention,Integ Local Service Delivery,Other Agencies,Nursery Educ Fund - Standard,PJ139,06/07/15,359937,19906.32,REVENUE,CLEETHORPES CHILDCARE,101591
North East Lincolnshire Council,http://statistics.data.gov.uk/id/local-authority/00FC,Deputy Chief Executive,Ad Early Intervention,Integ Local Service Delivery,Other Agencies,Nursery Educ Fund - Standard,PJ139,21/07/15,362430,3047.78,REVENUE,REDACTED PERSONAL INFORMATION,REDACTED PERSONAL INFORMATION
North East Lincolnshire Council,http://statistics.data.gov.uk/id/local-authority/00FC,Deputy Chief Executive,Ad Early Intervention,Integ Local Service Delivery,Other Agencies,Nursery Educ Fund - Standard,PJ139,21/07/15,362428,1639.95,REVENUE,REDACTED PERSONAL INFORMATION,REDACTED PERSONAL INFORMATION
North East Lincolnshire Council,http://statistics.data.gov.uk/id/local-authority/00FC,Deputy Chief Executive,Ad Early Intervention,Integ Local Service Delivery,Car Allowances,Travel - Employees,JF101,23/07/15,362930,-28.6,REVENUE,CLICK TRAVEL,127476
North East Lincolnshire Council,http://statistics.data.gov.uk/id/local-authority/00FC,Deputy Chief Executive,Ad Early Intervention,Integ Local Service Delivery,Car Allowances,Travel - Employees,JF101,09/07/15,359995,288.3,REVENUE,REVELLS TAXIS (ED/SOC SERV),100559
North East Lincolnshire Council,http://statistics.data.gov.uk/id/local-authority/00FC,Deputy Chief Executive,Ad Early Intervention,Integ Local Service Delivery,Communications And Computing,Computer H/Ware - Purchases,LF105,31/07/15,363099,454.71,REVENUE,SPECIALIST COMPUTER CENTRES PLC,110715
North East Lincolnshire Council,http://statistics.data.gov.uk/id/local-authority/00FC,Deputy Chief Executive,Ad Early Intervention,Integ Local Service Delivery,Private Contractors,Third Party Prov - Private,PH101,06/07/15,346414,2070.12,REVENUE,TRIPLE P UK LTD,109465
North East Lincolnshire Council,http://statistics.data.gov.uk/id/local-authority/00FC,Deputy Chief Executive,Ad Early Intervention,Child Protection / Safeguardin,Contributions To Provisions,Contributions - Other,LK103,17/07/15,362074,7500,REVENUE,WAKEFIELD MD COUNCIL,100967
North East Lincolnshire Council,http://statistics.data.gov.uk/id/local-authority/00FC,Deputy Chief Executive,Ad Early Intervention,Palliative / Complex Care,Private Contractors,Third Party Prov - Private,PH101,14/07/15,361423,900,REVENUE,ST ANDREWS HOSPICE,103069
North East Lincolnshire Council,http://statistics.data.gov.uk/id/local-authority/00FC,Deputy Chief Executive,Ad Early Intervention,Childrens Social Care Innov,Equip / Furniture / Materials,Equipment - Hire,LA102,06/07/15,359333,716.2,REVENUE,THE SAVILLE GROUP LTD,100560
North East Lincolnshire Council,http://statistics.data.gov.uk/id/local-authority/00FC,Deputy Chief Executive,Ad Early Intervention,Childrens Social Care Innov,Equip / Furniture / Materials,Teaching Materials,LA117,17/07/15,361799,744.87,REVENUE,SIMUL LTD,122141
North East Lincolnshire Council,http://statistics.data.gov.uk/id/local-authority/00FC,Deputy Chief Executive,Ad Early Intervention,Childrens Social Care Innov,Equip / Furniture / Materials,Teaching Materials,LA117,17/07/15,361801,500,REVENUE,SIMUL LTD,122141
North East Lincolnshire Council,http://statistics.data.gov.uk/id/local-authority/00FC,Deputy Chief Executive,Ad Early Intervention,Childrens Social Care Innov,Equip / Furniture / Materials,Teaching Materials,LA117,17/07/15,361802,1096.8,REVENUE,SIMUL LTD,122141
North East Lincolnshire Council,http://statistics.data.gov.uk/id/local-authority/00FC,Deputy Chief Executive,Ad Early Intervention,Childrens Social Care Innov,Equip / Furniture / Materials,Teaching Materials,LA117,27/07/15,363234,5685.28,REVENUE,TRACEY HILL TRAINING & CONSULTANCY LIMITED,121786
North East Lincolnshire Council,http://statistics.data.gov.uk/id/local-authority/00FC,Deputy Chief Executive,Ad Early Intervention,Childrens Social Care Innov,Equip / Furniture / Materials,Teaching Materials,LA117,21/07/15,361693,5690.55,REVENUE,TRACEY HILL TRAINING & CONSULTANCY LIMITED,121786
North East Lincolnshire Council,http://statistics.data.gov.uk/id/local-authority/00FC,Deputy Chief Executive,Ad Early Intervention,Childrens Social Care Innov,Private Contractors,Third Party Prov - Private,PH101,30/07/15,361875,4800,REVENUE,VIV HOGG TRAINING & CONSULTANCY,126963
North East Lincolnshire Council,http://statistics.data.gov.uk/id/local-authority/00FC,Deputy Chief Executive,Ad Early Intervention,Childrens Social Care Innov,Private Contractors,Third Party Prov - Private,PH101,15/07/15,361097,349,REVENUE,MA EDUCATION LTD,105566
North East Lincolnshire Council,http://statistics.data.gov.uk/id/local-authority/00FC,Deputy Chief Executive,Ad Early Intervention,Childrens Social Care Innov,Private Contractors,Third Party Prov - Private,PH101,23/07/15,362391,1057.5,REVENUE,ICON HOTELS (GRIMSBY) LLP,130919
North East Lincolnshire Council,http://statistics.data.gov.uk/id/local-authority/00FC,Deputy Chief Executive,Ad Early Intervention,Childrens Social Care Innov,Consultancy,Consultancy,PL101,21/07/15,361695,5108.6,REVENUE,DAVID BURNBY & ASSOCIATES,103325
North East Lincolnshire Council,http://statistics.data.gov.uk/id/local-authority/00FC,Deputy Chief Executive,Ad Early Intervention,Childrens Social Care Innov,Consultancy,Consultancy,PL101,23/07/15,362698,3874.65,REVENUE,DAVID BURNBY & ASSOCIATES,103325
North East Lincolnshire Council,http://statistics.data.gov.uk/id/local-authority/00FC,Deputy Chief Executive,Ad Childrens Services,School Access Governor Student,Contract Hire-Operating Leases,Vehicles - Contract Hire,JC101,23/07/15,362196,1410.4,REVENUE,REDACTED PERSONAL INFORMATION,REDACTED PERSONAL INFORMATION
North East Lincolnshire Council,http://statistics.data.gov.uk/id/local-authority/00FC,Deputy Chief Executive,Ad Childrens Services,School Access Governor Student,Contract Hire-Operating Leases,Vehicles - Contract Hire,JC101,15/07/15,361144,1732.5,REVENUE,AMVALE LIMITED,101030
North East Lincolnshire Council,http://statistics.data.gov.uk/id/local-authority/00FC,Deputy Chief Executive,Ad Childrens Services,School Access Governor Student,Contract Hire-Operating Leases,Vehicles - Contract Hire,JC101,15/07/15,360968,1108,REVENUE,ANDREW RITCHIE TAXI,122163
North East Lincolnshire Council,http://statistics.data.gov.uk/id/local-authority/00FC,Deputy Chief Executive,Ad Childrens Services,School Access Governor Student,Contract Hire-Operating Leases,Vehicles - Contract Hire,JC101,17/07/15,361428,852,REVENUE,WHEELCHAIR FRIENDLY TAXI SERVICE,101915
North East Lincolnshire Council,http://statistics.data.gov.uk/id/local-authority/00FC,Deputy Chief Executive,Ad Childrens Services,School Access Governor Student,Contract Hire-Operating Leases,Vehicles - Contract Hire,JC101,13/07/15,360922,516,REVENUE,AA RADIO CARS LTD,101222
North East Lincolnshire Council,http://statistics.data.gov.uk/id/local-authority/00FC,Deputy Chief Executive,Ad Childrens Services,School Access Governor Student,Contract Hire-Operating Leases,Vehicles - Contract Hire,JC101,23/07/15,362387,369,REVENUE,REVELLS TAXIS (ED/SOC SERV),100559
North East Lincolnshire Council,http://statistics.data.gov.uk/id/local-authority/00FC,Deputy Chief Executive,Ad Childrens Services,School Access Governor Student,Contract Hire-Operating Leases,Vehicles - Contract Hire,JC101,23/07/15,362386,876,REVENUE,REVELLS TAXIS (ED/SOC SERV),100559
North East Lincolnshire Council,http://statistics.data.gov.uk/id/local-authority/00FC,Deputy Chief Executive,Ad Childrens Services,School Access Governor Student,Contract Hire-Operating Leases,Vehicles - Contract Hire,JC101,23/07/15,362383,716,REVENUE,REVELLS TAXIS (ED/SOC SERV),100559
North East Lincolnshire Council,http://statistics.data.gov.uk/id/local-authority/00FC,Deputy Chief Executive,Ad Childrens Services,School Access Governor Student,Contract Hire-Operating Leases,Vehicles - Contract Hire,JC101,15/07/15,360941,1054,REVENUE,WHEELCHAIR FRIENDLY TAXI SERVICE,101915
North East Lincolnshire Council,http://statistics.data.gov.uk/id/local-authority/00FC,Deputy Chief Executive,Ad Childrens Services,School Access Governor Student,Contract Hire-Operating Leases,Vehicles - Contract Hire,JC101,13/07/15,360607,1080,REVENUE,MINICABS CLEETHORPES (LINCS) LTD,102124
North East Lincolnshire Council,http://statistics.data.gov.uk/id/local-authority/00FC,Deputy Chief Executive,Ad Childrens Services,School Access Governor Student,Contract Hire-Operating Leases,Vehicles - Contract Hire,JC101,15/07/15,361433,1308,REVENUE,AA RADIO CARS LTD,101222
North East Lincolnshire Council,http://statistics.data.gov.uk/id/local-authority/00FC,Deputy Chief Executive,Ad Childrens Services,School Access Governor Student,Contract Hire-Operating Leases,Vehicles - Contract Hire,JC101,23/07/15,362205,1198.56,REVENUE,REVELLS TAXIS (ED/SOC SERV),100559
North East Lincolnshire Council,http://statistics.data.gov.uk/id/local-authority/00FC,Deputy Chief Executive,Ad Childrens Services,School Access Governor Student,Contract Hire-Operating Leases,Vehicles - Contract Hire,JC101,23/07/15,362416,748,REVENUE,REVELLS TAXIS (ED/SOC SERV),100559
North East Lincolnshire Council,http://statistics.data.gov.uk/id/local-authority/00FC,Deputy Chief Executive,Ad Childrens Services,School Access Governor Student,Contract Hire-Operating Leases,Vehicles - Contract Hire,JC101,13/07/15,360602,648,REVENUE,MINICABS CLEETHORPES (LINCS) LTD,102124
North East Lincolnshire Council,http://statistics.data.gov.uk/id/local-authority/00FC,Deputy Chief Executive,Ad Childrens Services,School Access Governor Student,Contract Hire-Operating Leases,Vehicles - Contract Hire,JC101,13/07/15,360935,388.8,REVENUE,COXONS CARS LIMITED,100578
North East Lincolnshire Council,http://statistics.data.gov.uk/id/local-authority/00FC,Deputy Chief Executive,Ad Childrens Services,School Access Governor Student,Contract Hire-Operating Leases,Vehicles - Contract Hire,JC101,15/07/15,360972,760,REVENUE,REDACTED PERSONAL INFORMATION,REDACTED PERSONAL INFORMATION
North East Lincolnshire Council,http://statistics.data.gov.uk/id/local-authority/00FC,Deputy Chief Executive,Ad Childrens Services,School Access Governor Student,Contract Hire-Operating Leases,Vehicles - Contract Hire,JC101,15/07/15,361370,480,REVENUE,LINKS TAXIS,100546
North East Lincolnshire Council,http://statistics.data.gov.uk/id/local-authority/00FC,Deputy Chief Executive,Ad Childrens Services,School Access Governor Student,Contract Hire-Operating Leases,Vehicles - Contract Hire,JC101,13/07/15,360924,270,REVENUE,COXONS CARS LIMITED,100578
North East Lincolnshire Council,http://statistics.data.gov.uk/id/local-authority/00FC,Deputy Chief Executive,Ad Childrens Services,School Access Governor Student,Contract Hire-Operating Leases,Vehicles - Contract Hire,JC101,13/07/15,360932,302.5,REVENUE,COXONS CARS LIMITED,100578
North East Lincolnshire Council,http://statistics.data.gov.uk/id/local-authority/00FC,Deputy Chief Executive,Ad Childrens Services,School Access Governor Student,Contract Hire-Operating Leases,Vehicles - Contract Hire,JC101,13/07/15,360919,352,REVENUE,AA RADIO CARS LTD,101222
North East Lincolnshire Council,http://statistics.data.gov.uk/id/local-authority/00FC,Deputy Chief Executive,Ad Childrens Services,School Access Governor Student,Contract Hire-Operating Leases,Vehicles - Contract Hire,JC101,17/07/15,362083,420,REVENUE,LINKS TAXIS,100546
North East Lincolnshire Council,http://statistics.data.gov.uk/id/local-authority/00FC,Deputy Chief Executive,Ad Childrens Services,School Access Governor Student,Contract Hire-Operating Leases,Vehicles - Contract Hire,JC101,23/07/15,362207,466,REVENUE,REVELLS TAXIS (ED/SOC SERV),100559
North East Lincolnshire Council,http://statistics.data.gov.uk/id/local-authority/00FC,Deputy Chief Executive,Ad Childrens Services,School Access Governor Student,Contract Hire-Operating Leases,Vehicles - Contract Hire,JC101,15/07/15,361416,787.5,REVENUE,LINKS TAXIS,100546
North East Lincolnshire Council,http://statistics.data.gov.uk/id/local-authority/00FC,Deputy Chief Executive,Ad Childrens Services,School Access Governor Student,Contract Hire-Operating Leases,Vehicles - Contract Hire,JC101,13/07/15,360934,361.1,REVENUE,COXONS CARS LIMITED,100578
North East Lincolnshire Council,http://statistics.data.gov.uk/id/local-authority/00FC,Deputy Chief Executive,Ad Childrens Services,School Access Governor Student,Contract Hire-Operating Leases,Vehicles - Contract Hire,JC101,23/07/15,362384,287,REVENUE,REVELLS TAXIS (ED/SOC SERV),100559
North East Lincolnshire Council,http://statistics.data.gov.uk/id/local-authority/00FC,Deputy Chief Executive,Ad Childrens Services,School Access Governor Student,Contract Hire-Operating Leases,Vehicles - Contract Hire,JC101,17/07/15,362094,1512,REVENUE,LINKS TAXIS,100546
North East Lincolnshire Council,http://statistics.data.gov.uk/id/local-authority/00FC,Deputy Chief Executive,Ad Childrens Services,School Access Governor Student,Contract Hire-Operating Leases,Vehicles - Contract Hire,JC101,13/07/15,360928,900,REVENUE,COXONS CARS LIMITED,100578
North East Lincolnshire Council,http://statistics.data.gov.uk/id/local-authority/00FC,Deputy Chief Executive,Ad Childrens Services,School Access Governor Student,Contract Hire-Operating Leases,Vehicles - Contract Hire,JC101,15/07/15,361414,960,REVENUE,LINKS TAXIS,100546
North East Lincolnshire Council,http://statistics.data.gov.uk/id/local-authority/00FC,Deputy Chief Executive,Ad Childrens Services,School Access Governor Student,Contract Hire-Operating Leases,Vehicles - Contract Hire,JC101,17/07/15,362099,429,REVENUE,LINKS TAXIS,100546
North East Lincolnshire Council,http://statistics.data.gov.uk/id/local-authority/00FC,Deputy Chief Executive,Ad Childrens Services,School Access Governor Student,Contract Hire-Operating Leases,Vehicles - Contract Hire,JC101,30/07/15,363109,315,REVENUE,LINKS TAXIS,100546
North East Lincolnshire Council,http://statistics.data.gov.uk/id/local-authority/00FC,Deputy Chief Executive,Ad Childrens Services,School Access Governor Student,Contract Hire-Operating Leases,Vehicles - Contract Hire,JC101,30/07/15,363699,600,REVENUE,LINKS TAXIS,100546
North East Lincolnshire Council,http://statistics.data.gov.uk/id/local-authority/00FC,Deputy Chief Executive,Ad Childrens Services,School Access Governor Student,Private Contractors,Concessionary Fares,PH104,02/07/15,359391,2782.6,REVENUE,STAGECOACH SERVICES,101404
North East Lincolnshire Council,http://statistics.data.gov.uk/id/local-authority/00FC,Deputy Chief Executive,Ad Childrens Services,School Access Governor Student,Contract Hire-Operating Leases,Vehicles - Contract Hire,JC101,15/07/15,361400,660,REVENUE,LINKS TAXIS,100546
North East Lincolnshire Council,http://statistics.data.gov.uk/id/local-authority/00FC,Deputy Chief Executive,Ad Childrens Services,School Access Governor Student,Contract Hire-Operating Leases,Vehicles - Contract Hire,JC101,13/07/15,360619,550,REVENUE,MINICABS CLEETHORPES (LINCS) LTD,102124
North East Lincolnshire Council,http://statistics.data.gov.uk/id/local-authority/00FC,Deputy Chief Executive,Ad Childrens Services,School Access Governor Student,Contract Hire-Operating Leases,Vehicles - Contract Hire,JC101,14/07/15,361137,2310,REVENUE,AMVALE LIMITED,101030
North East Lincolnshire Council,http://statistics.data.gov.uk/id/local-authority/00FC,Deputy Chief Executive,Ad Childrens Services,School Access Governor Student,Contract Hire-Operating Leases,Vehicles - Contract Hire,JC101,14/07/15,361136,2530,REVENUE,AMVALE LIMITED,101030
North East Lincolnshire Council,http://statistics.data.gov.uk/id/local-authority/00FC,Deputy Chief Executive,Ad Childrens Services,School Access Governor Student,Contract Hire-Operating Leases,Vehicles - Contract Hire,JC101,15/07/15,361138,2530,REVENUE,AMVALE LIMITED,101030
North East Lincolnshire Council,http://statistics.data.gov.uk/id/local-authority/00FC,Deputy Chief Executive,Ad Childrens Services,School Access Governor Student,Contract Hire-Operating Leases,Vehicles - Contract Hire,JC101,15/07/15,360945,660,REVENUE,REDACTED PERSONAL INFORMATION,REDACTED PERSONAL INFORMATION
North East Lincolnshire Council,http://statistics.data.gov.uk/id/local-authority/00FC,Deputy Chief Executive,Ad Childrens Services,School Access Governor Student,Contract Hire-Operating Leases,Vehicles - Contract Hire,JC101,27/07/15,362701,855,REVENUE,FISHERS OF GRIMSBY,111965
North East Lincolnshire Council,http://statistics.data.gov.uk/id/local-authority/00FC,Deputy Chief Executive,Ad Childrens Services,School Access Governor Student,Contract Hire-Operating Leases,Vehicles - Contract Hire,JC101,15/07/15,360971,3454,REVENUE,SHERWOOD TRAVEL,100868
North East Lincolnshire Council,http://statistics.data.gov.uk/id/local-authority/00FC,Deputy Chief Executive,Ad Childrens Services,School Access Governor Student,Contract Hire-Operating Leases,Vehicles - Contract Hire,JC101,27/07/15,362702,3498,REVENUE,FISHERS OF GRIMSBY,111965
North East Lincolnshire Council,http://statistics.data.gov.uk/id/local-authority/00FC,Deputy Chief Executive,Ad Childrens Services,School Access Governor Student,Contract Hire-Operating Leases,Vehicles - Contract Hire,JC101,14/07/15,361145,3410,REVENUE,AMVALE LIMITED,101030
North East Lincolnshire Council,http://statistics.data.gov.uk/id/local-authority/00FC,Deputy Chief Executive,Ad Childrens Services,School Access Governor Student,Contract Hire-Operating Leases,Vehicles - Contract Hire,JC101,14/07/15,361131,3466.1,REVENUE,COOPERS TOURS (LINCS) LTD,111878
North East Lincolnshire Council,http://statistics.data.gov.uk/id/local-authority/00FC,Deputy Chief Executive,Ad Childrens Services,School Access Governor Student,Contract Hire-Operating Leases,Vehicles - Contract Hire,JC101,15/07/15,361146,3410,REVENUE,AMVALE LIMITED,101030
North East Lincolnshire Council,http://statistics.data.gov.uk/id/local-authority/00FC,Deputy Chief Executive,Ad Childrens Services,School Access Governor Student,Contract Hire-Operating Leases,Vehicles - Contract Hire,JC101,15/07/15,361405,572,REVENUE,LINKS TAXIS,100546
North East Lincolnshire Council,http://statistics.data.gov.uk/id/local-authority/00FC,Deputy Chief Executive,Ad Childrens Services,School Access Governor Student,Contract Hire-Operating Leases,Vehicles - Contract Hire,JC101,30/07/15,363694,390,REVENUE,LINKS TAXIS,100546
North East Lincolnshire Council,http://statistics.data.gov.uk/id/local-authority/00FC,Deputy Chief Executive,Ad Childrens Services,School Access Governor Student,Contract Hire-Operating Leases,Vehicles - Contract Hire,JC101,13/07/15,360931,363,REVENUE,COXONS CARS LIMITED,100578
North East Lincolnshire Council,http://statistics.data.gov.uk/id/local-authority/00FC,Deputy Chief Executive,Ad Childrens Services,School Access Governor Student,Contract Hire-Operating Leases,Vehicles - Contract Hire,JC101,15/07/15,360944,1540,REVENUE,REDACTED PERSONAL INFORMATION,REDACTED PERSONAL INFORMATION
North East Lincolnshire Council,http://statistics.data.gov.uk/id/local-authority/00FC,Deputy Chief Executive,Ad Childrens Services,School Access Governor Student,Contract Hire-Operating Leases,Vehicles - Contract Hire,JC101,15/07/15,360970,4048,REVENUE,MILLMAN COACHES,100700
North East Lincolnshire Council,http://statistics.data.gov.uk/id/local-authority/00FC,Deputy Chief Executive,Ad Childrens Services,School Access Governor Student,Contract Hire-Operating Leases,Vehicles - Contract Hire,JC101,13/07/15,360933,457.6,REVENUE,COXONS CARS LIMITED,100578
North East Lincolnshire Council,http://statistics.data.gov.uk/id/local-authority/00FC,Deputy Chief Executive,Ad Childrens Services,School Access Governor Student,Private Contractors,Concessionary Fares,PH104,02/07/15,359391,3338,REVENUE,STAGECOACH SERVICES,101404
North East Lincolnshire Council,http://statistics.data.gov.uk/id/local-authority/00FC,Deputy Chief Executive,Ad Childrens Services,School Access Governor Student,Contract Hire-Operating Leases,Vehicles - Contract Hire,JC101,13/07/15,360917,986,REVENUE,AA RADIO CARS LTD,101222
North East Lincolnshire Council,http://statistics.data.gov.uk/id/local-authority/00FC,Deputy Chief Executive,Ad Childrens Services,School Access Governor Student,Contract Hire-Operating Leases,Vehicles - Contract Hire,JC101,17/07/15,362084,405,REVENUE,LINKS TAXIS,100546
North East Lincolnshire Council,http://statistics.data.gov.uk/id/local-authority/00FC,Deputy Chief Executive,Ad Childrens Services,School Access Governor Student,Contract Hire-Operating Leases,Vehicles - Contract Hire,JC101,23/07/15,362388,1054,REVENUE,REVELLS TAXIS (ED/SOC SERV),100559
North East Lincolnshire Council,http://statistics.data.gov.uk/id/local-authority/00FC,Deputy Chief Executive,Ad Childrens Services,School Access Governor Student,Contract Hire-Operating Leases,Vehicles - Contract Hire,JC101,15/07/15,361025,1360,REVENUE,REDACTED PERSONAL INFORMATION,REDACTED PERSONAL INFORMATION
North East Lincolnshire Council,http://statistics.data.gov.uk/id/local-authority/00FC,Deputy Chief Executive,Ad Childrens Services,School Access Governor Student,Contract Hire-Operating Leases,Vehicles - Contract Hire,JC101,15/07/15,361408,2200,REVENUE,LINKS TAXIS,100546
North East Lincolnshire Council,http://statistics.data.gov.uk/id/local-authority/00FC,Deputy Chief Executive,Ad Childrens Services,School Access Governor Student,Contract Hire-Operating Leases,Vehicles - Contract Hire,JC101,15/07/15,360969,3150,REVENUE,MILLMAN COACHES,100700
North East Lincolnshire Council,http://statistics.data.gov.uk/id/local-authority/00FC,Deputy Chief Executive,Ad Childrens Services,School Access Governor Student,Contract Hire-Operating Leases,Vehicles - Contract Hire,JC101,15/07/15,360973,2551.5,REVENUE,GRIMSBY MINIBUSES LTD,121524
North East Lincolnshire Council,http://statistics.data.gov.uk/id/local-authority/00FC,Deputy Chief Executive,Ad Childrens Services,School Access Governor Student,Contract Hire-Operating Leases,Vehicles - Contract Hire,JC101,27/07/15,362707,1822.5,REVENUE,GRIMSBY MINIBUSES LTD,121524
North East Lincolnshire Council,http://statistics.data.gov.uk/id/local-authority/00FC,Deputy Chief Executive,Ad Childrens Services,School Access Governor Student,Contract Hire-Operating Leases,Vehicles - Contract Hire,JC101,15/07/15,360974,2520,REVENUE,GRIMSBY MINIBUSES LTD,121524
North East Lincolnshire Council,http://statistics.data.gov.uk/id/local-authority/00FC,Deputy Chief Executive,Ad Childrens Services,School Access Governor Student,Contract Hire-Operating Leases,Vehicles - Contract Hire,JC101,27/07/15,362708,1800,REVENUE,GRIMSBY MINIBUSES LTD,121524
North East Lincolnshire Council,http://statistics.data.gov.uk/id/local-authority/00FC,Deputy Chief Executive,Ad Childrens Services,School Access Governor Student,Contract Hire-Operating Leases,Vehicles - Contract Hire,JC101,23/07/15,362385,415.8,REVENUE,REVELLS TAXIS (ED/SOC SERV),100559
North East Lincolnshire Council,http://statistics.data.gov.uk/id/local-authority/00FC,Deputy Chief Executive,Ad Childrens Services,School Access Governor Student,Contract Hire-Operating Leases,Vehicles - Contract Hire,JC101,15/07/15,361419,600,REVENUE,LINKS TAXIS,100546
North East Lincolnshire Council,http://statistics.data.gov.uk/id/local-authority/00FC,Deputy Chief Executive,Ad Childrens Services,School Access Governor Student,Contract Hire-Operating Leases,Vehicles - Contract Hire,JC101,15/07/15,361395,801,REVENUE,COXONS CARS LIMITED,100578
North East Lincolnshire Council,http://statistics.data.gov.uk/id/local-authority/00FC,Deputy Chief Executive,Ad Childrens Services,School Access Governor Student,Contract Hire-Operating Leases,Vehicles - Contract Hire,JC101,15/07/15,361369,588,REVENUE,LINKS TAXIS,100546
North East Lincolnshire Council,http://statistics.data.gov.uk/id/local-authority/00FC,Deputy Chief Executive,Ad Childrens Services,School Access Governor Student,Contract Hire-Operating Leases,Vehicles - Contract Hire,JC101,30/07/15,363689,420,REVENUE,LINKS TAXIS,100546
North East Lincolnshire Council,http://statistics.data.gov.uk/id/local-authority/00FC,Deputy Chief Executive,Ad Childrens Services,School Access Governor Student,Contract Hire-Operating Leases,Vehicles - Contract Hire,JC101,15/07/15,361368,504,REVENUE,LINKS TAXIS,100546
North East Lincolnshire Council,http://statistics.data.gov.uk/id/local-authority/00FC,Deputy Chief Executive,Ad Childrens Services,School Access Governor Student,Contract Hire-Operating Leases,Vehicles - Contract Hire,JC101,30/07/15,363688,360,REVENUE,LINKS TAXIS,100546
North East Lincolnshire Council,http://statistics.data.gov.uk/id/local-authority/00FC,Deputy Chief Executive,Ad Childrens Services,School Access Governor Student,Contract Hire-Operating Leases,Vehicles - Contract Hire,JC101,14/07/15,361126,588,REVENUE,AA RADIO CARS LTD,101222
North East Lincolnshire Council,http://statistics.data.gov.uk/id/local-authority/00FC,Deputy Chief Executive,Ad Childrens Services,School Access Governor Student,Contract Hire-Operating Leases,Vehicles - Contract Hire,JC101,13/07/15,360926,504,REVENUE,COXONS CARS LIMITED,100578
North East Lincolnshire Council,http://statistics.data.gov.uk/id/local-authority/00FC,Deputy Chief Executive,Ad Childrens Services,School Access Governor Student,Contract Hire-Operating Leases,Vehicles - Contract Hire,JC101,17/07/15,361415,672,REVENUE,LINKS TAXIS,100546
North East Lincolnshire Council,http://statistics.data.gov.uk/id/local-authority/00FC,Deputy Chief Executive,Ad Childrens Services,School Access Governor Student,Contract Hire-Operating Leases,Vehicles - Contract Hire,JC101,30/07/15,363702,480,REVENUE,LINKS TAXIS,100546
North East Lincolnshire Council,http://statistics.data.gov.uk/id/local-authority/00FC,Deputy Chief Executive,Ad Childrens Services,School Access Governor Student,Contract Hire-Operating Leases,Vehicles - Contract Hire,JC101,15/07/15,361421,882,REVENUE,LINKS TAXIS,100546
North East Lincolnshire Council,http://statistics.data.gov.uk/id/local-authority/00FC,Deputy Chief Executive,Ad Childrens Services,School Access Governor Student,Contract Hire-Operating Leases,Vehicles - Contract Hire,JC101,30/07/15,363692,630,REVENUE,LINKS TAXIS,100546
North East Lincolnshire Council,http://statistics.data.gov.uk/id/local-authority/00FC,Deputy Chief Executive,Ad Childrens Services,School Access Governor Student,Contract Hire-Operating Leases,Vehicles - Contract Hire,JC101,15/07/15,361372,735,REVENUE,LINKS TAXIS,100546
North East Lincolnshire Council,http://statistics.data.gov.uk/id/local-authority/00FC,Deputy Chief Executive,Ad Childrens Services,School Access Governor Student,Contract Hire-Operating Leases,Vehicles - Contract Hire,JC101,30/07/15,363690,525,REVENUE,LINKS TAXIS,100546
North East Lincolnshire Council,http://statistics.data.gov.uk/id/local-authority/00FC,Deputy Chief Executive,Ad Childrens Services,School Access Governor Student,Contract Hire-Operating Leases,Vehicles - Contract Hire,JC101,17/07/15,362096,682.5,REVENUE,LINKS TAXIS,100546
North East Lincolnshire Council,http://statistics.data.gov.uk/id/local-authority/00FC,Deputy Chief Executive,Ad Childrens Services,School Access Governor Student,Contract Hire-Operating Leases,Vehicles - Contract Hire,JC101,30/07/15,363691,525,REVENUE,LINKS TAXIS,100546
North East Lincolnshire Council,http://statistics.data.gov.uk/id/local-authority/00FC,Deputy Chief Executive,Ad Childrens Services,School Access Governor Student,Contract Hire-Operating Leases,Vehicles - Contract Hire,JC101,15/07/15,361132,2898,REVENUE,AMVALE LIMITED,101030
North East Lincolnshire Council,http://statistics.data.gov.uk/id/local-authority/00FC,Deputy Chief Executive,Ad Childrens Services,School Access Governor Student,Contract Hire-Operating Leases,Vehicles - Contract Hire,JC101,15/07/15,360975,1890,REVENUE,HANSONS AIRPORT EXPRESS,111879
North East Lincolnshire Council,http://statistics.data.gov.uk/id/local-authority/00FC,Deputy Chief Executive,Ad Childrens Services,School Access Governor Student,Contract Hire-Operating Leases,Vehicles - Contract Hire,JC101,15/07/15,360967,2730,REVENUE,THE BUS RUN,101522
North East Lincolnshire Council,http://statistics.data.gov.uk/id/local-authority/00FC,Deputy Chief Executive,Ad Childrens Services,School Access Governor Student,Contract Hire-Operating Leases,Vehicles - Contract Hire,JC101,14/07/15,361134,1866.9,REVENUE,AMVALE LIMITED,101030
North East Lincolnshire Council,http://statistics.data.gov.uk/id/local-authority/00FC,Deputy Chief Executive,Ad Childrens Services,School Access Governor Student,Contract Hire-Operating Leases,Vehicles - Contract Hire,JC101,15/07/15,361413,1155,REVENUE,LINKS TAXIS,100546
North East Lincolnshire Council,http://statistics.data.gov.uk/id/local-authority/00FC,Deputy Chief Executive,Ad Childrens Services,School Access Governor Student,Contract Hire-Operating Leases,Vehicles - Contract Hire,JC101,30/07/15,363693,825,REVENUE,LINKS TAXIS,100546
North East Lincolnshire Council,http://statistics.data.gov.uk/id/local-authority/00FC,Deputy Chief Executive,Ad Childrens Services,School Access Governor Student,Contract Hire-Operating Leases,Vehicles - Contract Hire,JC101,23/07/15,362191,820,REVENUE,AMVALE LIMITED,101030
North East Lincolnshire Council,http://statistics.data.gov.uk/id/local-authority/00FC,Deputy Chief Executive,Ad Childrens Services,School Access Governor Student,Contract Hire-Operating Leases,Vehicles - Contract Hire,JC101,23/07/15,362193,820,REVENUE,AMVALE LIMITED,101030
North East Lincolnshire Council,http://statistics.data.gov.uk/id/local-authority/00FC,Deputy Chief Executive,Ad Childrens Services,School Access Governor Student,Contract Hire-Operating Leases,Vehicles - Contract Hire,JC101,23/07/15,362192,820,REVENUE,AMVALE LIMITED,101030
North East Lincolnshire Council,http://statistics.data.gov.uk/id/local-authority/00FC,Deputy Chief Executive,Ad Childrens Services,School Access Governor Student,Contract Hire-Operating Leases,Vehicles - Contract Hire,JC101,15/07/15,361407,882,REVENUE,LINKS TAXIS,100546
North East Lincolnshire Council,http://statistics.data.gov.uk/id/local-authority/00FC,Deputy Chief Executive,Ad Childrens Services,School Access Governor Student,Contract Hire-Operating Leases,Vehicles - Contract Hire,JC101,23/07/15,362186,664.65,REVENUE,REVELLS TAXIS (ED/SOC SERV),100559
North East Lincolnshire Council,http://statistics.data.gov.uk/id/local-authority/00FC,Deputy Chief Executive,Ad Childrens Services,School Access Governor Student,Contract Hire-Operating Leases,Vehicles - Contract Hire,JC101,15/07/15,360993,1302,REVENUE,WHEELCHAIR FRIENDLY TAXI SERVICE,101915
North East Lincolnshire Council,http://statistics.data.gov.uk/id/local-authority/00FC,Deputy Chief Executive,Ad Childrens Services,School Access Governor Student,Contract Hire-Operating Leases,Vehicles - Contract Hire,JC101,13/07/15,360594,1470,REVENUE,MINICABS CLEETHORPES (LINCS) LTD,102124
North East Lincolnshire Council,http://statistics.data.gov.uk/id/local-authority/00FC,Deputy Chief Executive,Ad Childrens Services,School Access Governor Student,Contract Hire-Operating Leases,Vehicles - Contract Hire,JC101,13/07/15,360918,1092,REVENUE,AA RADIO CARS LTD,101222
North East Lincolnshire Council,http://statistics.data.gov.uk/id/local-authority/00FC,Deputy Chief Executive,Ad Childrens Services,School Access Governor Student,Contract Hire-Operating Leases,Vehicles - Contract Hire,JC101,15/07/15,361403,840,REVENUE,LINKS TAXIS,100546
North East Lincolnshire Council,http://statistics.data.gov.uk/id/local-authority/00FC,Deputy Chief Executive,Ad Childrens Services,School Access Governor Student,Contract Hire-Operating Leases,Vehicles - Contract Hire,JC101,15/07/15,360660,882,REVENUE,MINICABS CLEETHORPES (LINCS) LTD,102124
North East Lincolnshire Council,http://statistics.data.gov.uk/id/local-authority/00FC,Deputy Chief Executive,Ad Childrens Services,School Access Governor Student,Contract Hire-Operating Leases,Vehicles - Contract Hire,JC101,15/07/15,361373,420,REVENUE,LINKS TAXIS,100546
North East Lincolnshire Council,http://statistics.data.gov.uk/id/local-authority/00FC,Deputy Chief Executive,Ad Childrens Services,School Access Governor Student,Contract Hire-Operating Leases,Vehicles - Contract Hire,JC101,17/07/15,361418,756,REVENUE,LINKS TAXIS,100546
North East Lincolnshire Council,http://statistics.data.gov.uk/id/local-authority/00FC,Deputy Chief Executive,Ad Childrens Services,School Access Governor Student,Contract Hire-Operating Leases,Vehicles - Contract Hire,JC101,30/07/15,363697,540,REVENUE,LINKS TAXIS,100546
North East Lincolnshire Council,http://statistics.data.gov.uk/id/local-authority/00FC,Deputy Chief Executive,Ad Childrens Services,School Access Governor Student,Contract Hire-Operating Leases,Vehicles - Contract Hire,JC101,30/07/15,363698,300,REVENUE,LINKS TAXIS,100546
North East Lincolnshire Council,http://statistics.data.gov.uk/id/local-authority/00FC,Deputy Chief Executive,Ad Childrens Services,School Access Governor Student,Contract Hire-Operating Leases,Vehicles - Contract Hire,JC101,15/07/15,361394,561,REVENUE,COXONS CARS LIMITED,100578
North East Lincolnshire Council,http://statistics.data.gov.uk/id/local-authority/00FC,Deputy Chief Executive,Ad Childrens Services,School Access Governor Student,Contract Hire-Operating Leases,Vehicles - Contract Hire,JC101,15/07/15,361371,945,REVENUE,LINKS TAXIS,100546
North East Lincolnshire Council,http://statistics.data.gov.uk/id/local-authority/00FC,Deputy Chief Executive,Ad Childrens Services,School Access Governor Student,Contract Hire-Operating Leases,Vehicles - Contract Hire,JC101,13/07/15,360920,462,REVENUE,AA RADIO CARS LTD,101222
North East Lincolnshire Council,http://statistics.data.gov.uk/id/local-authority/00FC,Deputy Chief Executive,Ad Childrens Services,School Access Governor Student,Contract Hire-Operating Leases,Vehicles - Contract Hire,JC101,15/07/15,361397,920,REVENUE,LINKS TAXIS,100546
North East Lincolnshire Council,http://statistics.data.gov.uk/id/local-authority/00FC,Deputy Chief Executive,Ad Childrens Services,School Access Governor Student,Contract Hire-Operating Leases,Vehicles - Contract Hire,JC101,30/07/15,363701,660,REVENUE,LINKS TAXIS,100546
North East Lincolnshire Council,http://statistics.data.gov.uk/id/local-authority/00FC,Deputy Chief Executive,Ad Childrens Services,School Access Governor Student,Contract Hire-Operating Leases,Vehicles - Contract Hire,JC101,15/07/15,361422,1050,REVENUE,LINKS TAXIS,100546
North East Lincolnshire Council,http://statistics.data.gov.uk/id/local-authority/00FC,Deputy Chief Executive,Ad Childrens Services,School Access Governor Student,Contract Hire-Operating Leases,Vehicles - Contract Hire,JC101,15/07/15,361417,315,REVENUE,LINKS TAXIS,100546
North East Lincolnshire Council,http://statistics.data.gov.uk/id/local-authority/00FC,Deputy Chief Executive,Ad Childrens Services,School Access Governor Student,Contract Hire-Operating Leases,Vehicles - Contract Hire,JC101,15/07/15,361416,262.5,REVENUE,LINKS TAXIS,100546
North East Lincolnshire Council,http://statistics.data.gov.uk/id/local-authority/00FC,Deputy Chief Executive,Ad Childrens Services,School Access Governor Student,Contract Hire-Operating Leases,Vehicles - Contract Hire,JC101,17/07/15,362100,968,REVENUE,LINKS TAXIS,100546
North East Lincolnshire Council,http://statistics.data.gov.uk/id/local-authority/00FC,Deputy Chief Executive,Ad Childrens Services,School Access Governor Student,Contract Hire-Operating Leases,Vehicles - Contract Hire,JC101,23/07/15,362189,1320,REVENUE,REVELLS TAXIS (ED/SOC SERV),100559
North East Lincolnshire Council,http://statistics.data.gov.uk/id/local-authority/00FC,Deputy Chief Executive,Ad Childrens Services,School Access Governor Student,Contract Hire-Operating Leases,Vehicles - Contract Hire,JC101,15/07/15,361128,630,REVENUE,COUNTRY CABS,101999
North East Lincolnshire Council,http://statistics.data.gov.uk/id/local-authority/00FC,Deputy Chief Executive,Ad Childrens Services,School Access Governor Student,Contract Hire-Operating Leases,Vehicles - Contract Hire,JC101,15/07/15,361406,1800,REVENUE,LINKS TAXIS,100546
North East Lincolnshire Council,http://statistics.data.gov.uk/id/local-authority/00FC,Deputy Chief Executive,Ad Childrens Services,School Access Governor Student,Contract Hire-Operating Leases,Vehicles - Contract Hire,JC101,30/07/15,363696,900,REVENUE,LINKS TAXIS,100546
North East Lincolnshire Council,http://statistics.data.gov.uk/id/local-authority/00FC,Deputy Chief Executive,Ad Childrens Services,School Access Governor Student,Contract Hire-Operating Leases,Vehicles - Contract Hire,JC101,13/07/15,360622,1480,REVENUE,MINICABS CLEETHORPES (LINCS) LTD,102124
North East Lincolnshire Council,http://statistics.data.gov.uk/id/local-authority/00FC,Deputy Chief Executive,Ad Childrens Services,School Access Governor Student,Contract Hire-Operating Leases,Vehicles - Contract Hire,JC101,15/07/15,361425,1951,REVENUE,LINKS TAXIS,100546
North East Lincolnshire Council,http://statistics.data.gov.uk/id/local-authority/00FC,Deputy Chief Executive,Ad Childrens Services,School Access Governor Student,Contract Hire-Operating Leases,Vehicles - Contract Hire,JC101,31/07/15,363993,980,REVENUE,LINKS TAXIS,100546
North East Lincolnshire Council,http://statistics.data.gov.uk/id/local-authority/00FC,Deputy Chief Executive,Ad Childrens Services,School Access Governor Student,Contract Hire-Operating Leases,Vehicles - Contract Hire,JC101,13/07/15,360934,361.1,REVENUE,COXONS CARS LIMITED,100578
North East Lincolnshire Council,http://statistics.data.gov.uk/id/local-authority/00FC,Deputy Chief Executive,Ad Childrens Services,School Access Governor Student,Contract Hire-Operating Leases,Vehicles - Contract Hire,JC101,23/07/15,362196,2115.6,REVENUE,REDACTED PERSONAL INFORMATION,REDACTED PERSONAL INFORMATION
North East Lincolnshire Council,http://statistics.data.gov.uk/id/local-authority/00FC,Deputy Chief Executive,Ad Childrens Services,School Access Governor Student,Contract Hire-Operating Leases,Vehicles - Contract Hire,JC101,14/07/15,360656,2706,REVENUE,MINICABS CLEETHORPES (LINCS) LTD,102124
North East Lincolnshire Council,http://statistics.data.gov.uk/id/local-authority/00FC,Deputy Chief Executive,Ad Childrens Services,School Access Governor Student,Contract Hire-Operating Leases,Vehicles - Contract Hire,JC101,14/07/15,361140,4158,REVENUE,AMVALE LIMITED,101030
North East Lincolnshire Council,http://statistics.data.gov.uk/id/local-authority/00FC,Deputy Chief Executive,Ad Childrens Services,School Access Governor Student,Contract Hire-Operating Leases,Vehicles - Contract Hire,JC101,15/07/15,361144,3517.5,REVENUE,AMVALE LIMITED,101030
North East Lincolnshire Council,http://statistics.data.gov.uk/id/local-authority/00FC,Deputy Chief Executive,Ad Childrens Services,School Access Governor Student,Contract Hire-Operating Leases,Vehicles - Contract Hire,JC101,17/07/15,362098,412.72,REVENUE,LINKS TAXIS,100546
North East Lincolnshire Council,http://statistics.data.gov.uk/id/local-authority/00FC,Deputy Chief Executive,Ad Childrens Services,School Access Governor Student,Contract Hire-Operating Leases,Vehicles - Contract Hire,JC101,27/07/15,362703,499.5,REVENUE,AMVALE LIMITED,101030
North East Lincolnshire Council,http://statistics.data.gov.uk/id/local-authority/00FC,Deputy Chief Executive,Ad Childrens Services,School Access Governor Student,Contract Hire-Operating Leases,Vehicles - Contract Hire,JC101,14/07/15,361123,946,REVENUE,MINICABS CLEETHORPES (LINCS) LTD,102124
North East Lincolnshire Council,http://statistics.data.gov.uk/id/local-authority/00FC,Deputy Chief Executive,Ad Childrens Services,School Access Governor Student,Contract Hire-Operating Leases,Vehicles - Contract Hire,JC101,15/07/15,361409,630,REVENUE,LINKS TAXIS,100546
North East Lincolnshire Council,http://statistics.data.gov.uk/id/local-authority/00FC,Deputy Chief Executive,Ad Childrens Services,School Access Governor Student,Contract Hire-Operating Leases,Vehicles - Contract Hire,JC101,17/07/15,362069,440,REVENUE,AMVALE LIMITED,101030
North East Lincolnshire Council,http://statistics.data.gov.uk/id/local-authority/00FC,Deputy Chief Executive,Ad Childrens Services,School Access Governor Student,Contract Hire-Operating Leases,Vehicles - Contract Hire,JC101,15/07/15,360946,2200,REVENUE,REDACTED PERSONAL INFORMATION,REDACTED PERSONAL INFORMATION
North East Lincolnshire Council,http://statistics.data.gov.uk/id/local-authority/00FC,Deputy Chief Executive,Ad Childrens Services,School Access Governor Student,Contract Hire-Operating Leases,Vehicles - Contract Hire,JC101,15/07/15,360991,1430,REVENUE,WHEELCHAIR FRIENDLY TAXI SERVICE,101915
North East Lincolnshire Council,http://statistics.data.gov.uk/id/local-authority/00FC,Deputy Chief Executive,Ad Childrens Services,School Access Governor Student,Contract Hire-Operating Leases,Vehicles - Contract Hire,JC101,15/07/15,361125,1562,REVENUE,MINICABS CLEETHORPES (LINCS) LTD,102124
North East Lincolnshire Council,http://statistics.data.gov.uk/id/local-authority/00FC,Deputy Chief Executive,Ad Childrens Services,School Access Governor Student,Contract Hire-Operating Leases,Vehicles - Contract Hire,JC101,14/07/15,361124,1140,REVENUE,MINICABS CLEETHORPES (LINCS) LTD,102124
North East Lincolnshire Council,http://statistics.data.gov.uk/id/local-authority/00FC,Deputy Chief Executive,Ad Childrens Services,School Access Governor Student,Contract Hire-Operating Leases,Vehicles - Contract Hire,JC101,07/07/15,359990,3000,REVENUE,AMVALE LIMITED,101030
North East Lincolnshire Council,http://statistics.data.gov.uk/id/local-authority/00FC,Deputy Chief Executive,Ad Childrens Services,School Access Governor Student,Contract Hire-Operating Leases,Vehicles - Contract Hire,JC101,15/07/15,361141,4400,REVENUE,AMVALE LIMITED,101030
North East Lincolnshire Council,http://statistics.data.gov.uk/id/local-authority/00FC,Deputy Chief Executive,Ad Childrens Services,School Access Governor Student,Contract Hire-Operating Leases,Vehicles - Contract Hire,JC101,15/07/15,361142,3960,REVENUE,AMVALE LIMITED,101030
North East Lincolnshire Council,http://statistics.data.gov.uk/id/local-authority/00FC,Deputy Chief Executive,Ad Childrens Services,School Access Governor Student,Contract Hire-Operating Leases,Vehicles - Contract Hire,JC101,14/07/15,361143,3960,REVENUE,AMVALE LIMITED,101030
North East Lincolnshire Council,http://statistics.data.gov.uk/id/local-authority/00FC,Deputy Chief Executive,Ad Childrens Services,School Access Governor Student,Contract Hire-Operating Leases,Vehicles - Contract Hire,JC101,15/07/15,361404,1320,REVENUE,LINKS TAXIS,100546
North East Lincolnshire Council,http://statistics.data.gov.uk/id/local-authority/00FC,Deputy Chief Executive,Ad Childrens Services,School Access Governor Student,Contract Hire-Operating Leases,Vehicles - Contract Hire,JC101,15/07/15,361399,1200,REVENUE,LINKS TAXIS,100546
North East Lincolnshire Council,http://statistics.data.gov.uk/id/local-authority/00FC,Deputy Chief Executive,Ad Childrens Services,School Access Governor Student,Contract Hire-Operating Leases,Vehicles - Contract Hire,JC101,17/07/15,362078,1540,REVENUE,COUNTRY CABS,101999
North East Lincolnshire Council,http://statistics.data.gov.uk/id/local-authority/00FC,Deputy Chief Executive,Ad Childrens Services,School Access Governor Student,Contract Hire-Operating Leases,Vehicles - Contract Hire,JC101,27/07/15,362700,774,REVENUE,AA RADIO CARS LTD,101222
North East Lincolnshire Council,http://statistics.data.gov.uk/id/local-authority/00FC,Deputy Chief Executive,Ad Childrens Services,School Access Governor Student,Contract Hire-Operating Leases,Vehicles - Contract Hire,JC101,27/07/15,362699,708.8,REVENUE,REVELLS TAXIS (ED/SOC SERV),100559
North East Lincolnshire Council,http://statistics.data.gov.uk/id/local-authority/00FC,Deputy Chief Executive,Ad Childrens Services,School Access Governor Student,Contract Hire-Operating Leases,Vehicles - Contract Hire,JC101,17/07/15,362097,410,REVENUE,LINKS TAXIS,100546
North East Lincolnshire Council,http://statistics.data.gov.uk/id/local-authority/00FC,Deputy Chief Executive,Ad Childrens Services,School Access Governor Student,Contract Hire-Operating Leases,Vehicles - Contract Hire,JC101,15/07/15,361401,616,REVENUE,LINKS TAXIS,100546
North East Lincolnshire Council,http://statistics.data.gov.uk/id/local-authority/00FC,Deputy Chief Executive,Ad Childrens Services,School Access Governor Student,Contract Hire-Operating Leases,Vehicles - Contract Hire,JC101,30/07/15,363695,364,REVENUE,LINKS TAXIS,100546
North East Lincolnshire Council,http://statistics.data.gov.uk/id/local-authority/00FC,Deputy Chief Executive,Ad Childrens Services,School Access Governor Student,Contract Hire-Operating Leases,Vehicles - Contract Hire,JC101,13/07/15,360916,350,REVENUE,AA RADIO CARS LTD,101222
North East Lincolnshire Council,http://statistics.data.gov.uk/id/local-authority/00FC,Deputy Chief Executive,Ad Childrens Services,School Access Governor Student,Contract Hire-Operating Leases,Vehicles - Contract Hire,JC101,15/07/15,361412,1080,REVENUE,LINKS TAXIS,100546
North East Lincolnshire Council,http://statistics.data.gov.uk/id/local-authority/00FC,Deputy Chief Executive,Ad Childrens Services,School Access Governor Student,Contract Hire-Operating Leases,Vehicles - Contract Hire,JC101,15/07/15,361398,864,REVENUE,LINKS TAXIS,100546
North East Lincolnshire Council,http://statistics.data.gov.uk/id/local-authority/00FC,Deputy Chief Executive,Ad Childrens Services,School Access Governor Student,Contract Hire-Operating Leases,Vehicles - Contract Hire,JC101,14/07/15,360646,936,REVENUE,MINICABS CLEETHORPES (LINCS) LTD,102124
North East Lincolnshire Council,http://statistics.data.gov.uk/id/local-authority/00FC,Deputy Chief Executive,Ad Childrens Services,School Access Governor Student,Contract Hire-Operating Leases,Vehicles - Contract Hire,JC101,15/07/15,361129,378,REVENUE,COXONS CARS LIMITED,100578
North East Lincolnshire Council,http://statistics.data.gov.uk/id/local-authority/00FC,Deputy Chief Executive,Ad Childrens Services,School Access Governor Student,Contract Hire-Operating Leases,Vehicles - Contract Hire,JC101,17/07/15,362095,430,REVENUE,LINKS TAXIS,100546
North East Lincolnshire Council,http://statistics.data.gov.uk/id/local-authority/00FC,Deputy Chief Executive,Ad Childrens Services,School Access Governor Student,Contract Hire-Operating Leases,Vehicles - Contract Hire,JC101,15/07/15,361411,990,REVENUE,LINKS TAXIS,100546
North East Lincolnshire Council,http://statistics.data.gov.uk/id/local-authority/00FC,Deputy Chief Executive,Ad Childrens Services,School Access Governor Student,Contract Hire-Operating Leases,Vehicles - Contract Hire,JC101,30/07/15,363700,440,REVENUE,LINKS TAXIS,100546
